Workbook

Sheet A
A1: Emissions and Efficiency Calculator
A4: Design Number | D4: Havyard 587 | H4: LOA | K4: fill in | L4: m
A5: Project Number | D5: NA | H5: Breadth | K5: fill in | L5: m
A6: Vessel Name | D6: NFT Steigen | H6: Depth to main deck | K6: fill in | L6: m
A7: Vessel Type | D7: Live Fish Carrier | H7: Draft | K7: fill in | L7: m
A8: Owner | D8: Norsk Fisketransport | H8: Main Engine | K8: ='B2'!C26 -> 4333.333333 | L8: kW
A9: Operation Area | D9: Norwegian Coast | H9: Shaft generator | K9: fill in | L9: kW
H10: Power supply | K10: fill in
H11: Year built | K11: fill in
A12: Date printed | D12: =TODAY() -> 2018-05-31 | H12: Loading Capacity | K12: =Data!B3 -> 3250 | L12: m3
A13: Verson | D13: 1
A14: Made by | D14: JKO | G14: Date: | H14: 2018-05-27
A15: Verified by | G15: Date:
A16: Approced by | G16: Date:
A18: SHEET A | D18: FRONT PAGE
A19: SHEET B1 | D19: VARIABLES | H19: Simple
A20: SHEET B2 | D20: VARIABLES | H20: Predefined variables (advanced setup)
A21: SHEET C | D21: RESULTS
A22: SHEET D | D22: SHIP DESIGN
A23: SHEET E | D23: ROUTE STUDIES
A24: SHEET F | D24: ENGINE SETUP
A25: SHEET G | D25: COST AND ASSEMBLY
A26: This report is an energy analysis of the ship design specified above. Theoretical models and simulations are used to produce the current results. The model is ment to be a tool to evaluate different energy systems for a ship design. It contains data for efficiencies, losses, emissions, costs and more. The tool is not to be used as documentation of real-time performance, but for guidance for customer and end-user. The model was produced as a masterthesis at UiB august 2017-june 2018. To get the latest update, please send an email to jorgen.kopperstad@gmail.com © UIB 2018
A59: This document / specification is the property of COMPANY NAME, and must not be copied or the contents thereof or any information received in conjunction therewith must not be imparted to any unauthorised third party. It must not be used for any other project than for which it was originally ordered. The receipt of the drawing / specification implies that the conditions mentioned herein are accepted.

Sheet B1
A1: Project | B1: =A!D5 -> NA | C1: B. VARIABLES - Simple Setup
A2: Ship name | B2: =A!D6 -> NFT Steigen
A4: Ship Design
D5: Unit
A6: Water | D6: m3 | H6: Minimum % of battery power | K6: 0.15
A9: Route Study
D11: Hours per month | F11: 31 days
A12: Standby in Harbour | E12: 72 | F12: hours
A13: Pulling out | E13: 8 | F13: hours | G13: Capability level
A14: Transit without cargo, ECO | E14: 150 | F14: hours | G14: Sea margin level
A15: Transit without cargo, FULL | E15: 30 | F15: hours
A16: Transit with cargo, ECO | E16: 150 | F16: hours | H16: Design route (Optional)
A17: Transit with cargo, FULL | E17: 30 | F17: hours | H17: Pulling out | K17: 5 | L17: min
A18: Approaching | E18: 8 | F18: hours | H18: Transit without cargo, ECO | K18: =5*60 -> 300 | L18: min
A19: Cargo Operations | E19: 200 | F19: hours | H19: Transit without cargo, FULL | L19: min
A20: Manoeuvring | E20: 19 | F20: hours | H20: Transit with cargo, ECO | K20: 600 | L20: min
A21: Tankwash | E21: 47 | F21: hours | H21: Transit with cargo, FULL | L21: min
A22: Waiting on facility | E22: 10 | F22: hours | H22: Approaching | K22: 20 | L22: min
A23: Operational STBY | E23: 20 | F23: hours | H23: Cargo Operations | K23: =60*2 -> 120 | L23: min
H24: Manoeuvring | K24: 40 | L24: min
D25: Hours per month | F25: =31*24 -> 744 | H25: Tankwash | K25: 60 | L25: min
D26: Left | F26: =F25-SUM(E12:E23) -> 0 | H26: Waiting on facility | K26: 30 | L26: min
H27: Operational STBY | L27: min

Sheet B2
A1: Project | B1: =A!D5 -> NA | C1: B2. VARIABLES - Predefined variables/functions
A2: Ship name | B2: =A!D6 -> NFT Steigen
A4: Ship Design
J5: constant | K5: x | L5: x2 | M5: x3
A6: Ship Power Speed Curve Setting | E6: 2 | G6: Ship-Power Curve | J6: =Data!N30 -> 0.7900710625 | K6: =Data!M30 -> 0 | L6: =Data!L30 -> 0.7900710625 | M6: =Data!K30 -> 0.83165375
D8: LOA | E8: LPP | F8: LWL | G8: Breadth | H8: Draught | I8: Deadwgt. | J8: Lightwgt | K8: Ballast | L8: Service Area
B9: Dimensions | I9: 8000 | L9: =Data!A19 -> 1
B11: Operation Power [kW]
B12: Standby in Harbour | E12: =IF(Data!A3=1,Data!F3,"") -> 280 | F12: Transit with cargo, ECO | I12: 2000 | J12: Manoeuvring | M12: =Data!N3 -> 2300
B13: Pulling out | E13: =IF(Data!A3=1,Data!H3,"") -> 1500 | F13: Transit with cargo, FULL | I13: 2600 | J13: Tankwash | M13: 1000
B14: Transit without cargo, ECO | E14: 1500 | F14: Approaching | I14: 2000 | J14: Waiting on facility | M14: 1000
B15: Transit without cargo, FULL | E15: 2300 | F15: Cargo Operations | I15: =Data!M3 -> 2450 | J15: Operational STBY | M15: 1000
A16: Route Studies
H17: =1-H18 -> 0.95
A18: Design speed | C18: 12 | D18: knots | E18: Sea Service Area Margin | H18: =IF(L9=1,'E '!F48,IF(L9=2,'E '!F49,IF(L9=3,'E '!F50,IF(L9=4,'E '!F51,""))))/100 -> 0.05 | J18: Time in port | L18: =IF('B1'!E12="","",'B1'!E12/SUM('B1'!E12:E23)) -> 0.09677419355 | M18: %
E19: Design sea margin, max | H19: =IF(Data!A20=1,'E '!C48,IF(Data!A20=2,'E '!C49,IF(Data!A20=3,'E '!C50,IF(Data!A20=4,'E '!C51,""))))/100 -> 0.4 | J19: Time at sea | L19: =IF('B1'!E13="","",SUM('B1'!E13:E23)/SUM('B1'!E12:E23)) -> 0.9032258065 | M19: %
A24: Engine Setup
A26: Max Power | C26: =MAX(E12:E15,I12:I15,M12:M15,)/(1-H19) -> 4333.333333 | D26: kW
A27: Design Speed Power | C27: 1600 | D27: kW | I27: Hotel Load | K27: 100 | L27: kW
B29: Generator | D29: Drives/Converter | F29: DC/DC Converters | H29: Switchboard | J29: El-motors | K29: Gear | L29: Cabling | M29: Open
A30: Losses | B30: 0.05 | D30: 0.05 | F30: 0.05 | H30: 0.03 | J30: 0.059 | K30: 0.05 | L30: 0.03 | M30: 0
B34: Power only for propulsion
B35: Standby in Harbour | E35: =Data!G35 -> 0 | F35: Transit with cargo, ECO | I35: 1700 | J35: Manoeuvring | M35: 1200
B36: Pulling out | E36: 1300 | F36: Transit with cargo, FULL | I36: 2500 | J36: Tankwash | M36: 300
B37: Transit without cargo, ECO | E37: 1100 | F37: Approaching | I37: 1700 | J37: Waiting on facility | M37: 400
B38: Transit without cargo, FULL | E38: 2000 | F38: Cargo Operations | I38: 0 | J38: Operational STBY | M38: 400
D40: Emissions
D41: CO2 per kg fuel, kg | F41: Nox per kWh, g | H41: CO per kWh, g | J41: PM per kWh, g | L41: SO per kWh, g
A42: Diesel Variable RPM | E42: 3.17 | G42: 7.85 | I42: 5 | K42: 0.5 | M42: 1
A43: Diesel Constant RPM | E43: 3.17 | G43: 7.85 | I43: 5 | K43: 0.5 | M43: 1
A44: LNG Constant RPM | E44: 2.756 | G44: 1.5 | I44: 0.05 | K44: 0.005 | M44: 0.01

Sheet C
A1: Project | B1: =A!D5 -> NA | C1: C. RESULTS
A2: Ship name | B2: =A!D6 -> NFT Steigen
A4: Daily emissions
E5: CO2 [kg] | F5: NOx [kg] | G5: PM [kg] | H5: SO [kg] | I5: CO [kg] | J5: Carbon Footprint [t] | L5: In addition comes the emissions from producing the engine. These are not included in the calculations
A6: Diesel variable RPM | E6: =Data!AB79/31 -> 35684.35315 | F6: =(Data!AC79/31)/1000 -> 388.0292749 | G6: =(Data!AE79/31)/1000 -> 24.71524044 | H6: =(Data!AF79/31)/1000 -> 11.25689374 | I6: =(Data!AD79/31)/1000 -> 247.1524044 | K6: =(E16*F!$E$60)/1000000+(E6/1000) -> 40.15581648
A7: Diesel Constant RPM | E7: =Data!AB97/31 -> 36271.87664 | F7: =(Data!AC97/31)/1000 -> 381.4094646 | G7: =(Data!AE97/31)/1000 -> 24.29359647 | H7: =(Data!AF97/31)/1000 -> 11.44223238 | I7: =(Data!AD97/31)/1000 -> 242.9359647 | K7: =(E17*F!$E$60)/1000000+(E7/1000) -> 40.81696019
A8: Diesel Constant RPM (Diesel-Electric) | E8: =IF(Data!BH151>0,IF(Data!BN109>0,Data!CD134/31,Data!BE134/31),Data!AB115/31) -> 34628.80127 | F8: =IF(Data!BH151>0,IF(Data!BN109>0,(Data!CE134/31)/1000,(Data!BF134/31)/1000),(Data!AC115/31)/1000) -> 366.1241197 | G8: =IF(Data!BH151>0,IF(Data!BN109>0,((Data!CG134/31)/1000),(Data!BH134/31)/1000),(Data!AE115/31)/1000) -> 23.32000762 | H8: =IF(Data!BH151>0,IF(Data!BN109>0,(Data!CH134/31)/1000,(Data!BI134/31)/1000),(Data!AF115/31)/1000) -> 10.92391207 | I8: =IF(Data!BH151>0,IF(Data!BN109>0,(Data!CF134/31)/1000,(Data!BG134/31)/1000),(Data!AD115/31)/1000) -> 233.2000762 | K8: =(E18*F!$E$60)/1000000+(E8/1000)+((I18*F!E62)/1000000) -> 38.96845135
A9: LNG Constant RPM | E9: =Data!AB134/31 -> 23599.71985 | F9: =(Data!AC134/31)/1000 -> 81.50716394 | G9: =(Data!AE134/31)/1000 -> 0.2716905465 | H9: =(Data!AF134/31)/1000 -> 0.08563033326 | I9: =(Data!AD134/31)/1000 -> 2.716905465 | K9: =(E19*F!$E$61)/1000000+(E9/1000) -> 27.09206736
A10: LNG Constant RPM (LNG-Electric) | E10: =IF(Data!BH151>0,IF(Data!BN147>0,(Data!CD172/31),Data!BE172/31),Data!AB153/31) -> 23615.86647 | F10: =IF(Data!BH151>0,IF(Data!BN147>0,((Data!CE172/31)/1000),((Data!BF172/31)/1000)),(Data!AC153/31)/1000) -> 69.94944898 | G10: =IF(Data!BH151>0,IF(Data!BN147>0,(Data!CG172/31)/1000,((Data!BH172/31)/1000)),(Data!AE153/31)/1000) -> 0.2331648299 | H10: =IF(Data!BH151>0,IF(Data!BN147>0,(Data!CH172/31)/1000,((Data!BI172/31)/1000)),(Data!AF153/31)/1000) -> 0.08568892043 | I10: =IF(Data!BH151>0,IF(Data!BN147>0,(Data!CF172/31)/1000,((Data!BG172/31)/1000)),(Data!AD153/31)/1000) -> 2.331648299 | K10: =(E20*F!$E$61)/1000000+(E10/1000)+((I20*1000*F!E62)/1000000) -> 27.55626881
A11: Hydrogen | E11: NA | F11: NA | G11: NA | H11: NA | I11: NA | K11: =((((G21*1000)/0.6)*F!E62)/1000000)+((I21*1000*F!E62)/1000000) -> 8.295586546
A12: Batteries | E12: NA | F12: NA | G12: NA | H12: NA | I12: NA | K12: =(I22*1000*F!E62)/1000000 -> 2.695964387
A14: Daily Consumptions
E15: Fuel [kg] | F15: Energy, fuel [kWh] | H15: Energy, electricity [kWh] | K15: Used [kWh] | L15: Incl WTWE [kWh]
A16: Diesel variable RPM | E16: =Data!Z79/31 -> 11256.89374 | G16: =(Data!Y79/1000)/31 -> 134.7450181 | K16: =G16+I16 -> 134.7450181 | L16: NA
A17: Diesel Constant RPM | E17: =Data!Z97/31 -> 11442.23238 | G17: =(Data!Y97/1000)/31 -> 136.9635216 | K17: =G17+I17 -> 136.9635216 | L17: NA
A18: Diesel Constant RPM (Diesel-Electric) | E18: =IF(Data!BH151>0,IF(Data!BN109>0,Data!CC134/31,Data!BD134/31),Data!Z115/31) -> 10923.91207 | G18: =IF(Data!BH113>0,IF(Data!BN109>0,((Data!CB134)/1000)/31,((Data!BC134)/1000)/31),(Data!Y115/1000)/31) -> 130.7592275 | I18: =Data!BH113/1000/31 -> 9.074419591 | K18: 139.8336471 | L18: NA
A19: LNG Constant RPM | E19: =Data!Z134/31 -> 8563.033326 | G19: =(Data!Y134/1000)/31 -> 117.2279262 | K19: 117.2279262 | L19: NA
A20: LNG Constant RPM (LNG-Electric) | E20: =IF(Data!BH151>0,IF(Data!BN147>0,Data!CC172/31,(Data!BD172/31)),Data!Z153/31) -> 8568.892043 | G20: =IF(Data!BH151>0,IF(Data!BN147>0,(((Data!CB172)/1000)/31),(((Data!BC172)/1000)/31)),(Data!Y153/1000)/31) -> 102.5696378 | I20: =Data!BH151/1000/31 -> 8.913308176 | K20: 111.4829459 | L20: NA
A21: Hydrogen | E21: =Data!R227/31 -> 2526.574582 | G21: =(Data!Q227/1000)/31 -> 99.54703855 | K21: =G21+I21 -> 99.54703855 | L21: NA
A22: Batteries | E22: NA | G22: NA | I22: =Data!R192/31/1000 -> 53.91928774 | K22: =I22 -> 53.91928774 | L22: =IF((I22)*F!$G$62=0,"NA",(I22)*F!$G$62) -> NA
A24: Lifetime Costs estimation
C25: Diesel Var. | D25: Diesel const | F25: Diesel-Battery | H25: LNG Const | J25: LNG-Battery | L25: Batteries | M25: Hydrogen
C26: =G!C28 -> 314.3493014 | E26: =G!E28 -> 319.3248564 | G26: =G!G28 -> 399.4111362 | I26: =G!I28 -> 303.411704 | K26: =G!K28 -> 361.1398916 | L26: =G!M28 -> 1115.772958 | M26: =G!O28 -> 555.0940168

Sheet D
A1: Project | B1: =A!D5 -> NA | C1: D. SHIP DESIGN - Ferry
A2: Ship name | B2: =A!D6 -> NFT Steigen
A4: Power-speed Curve
A24: Main Dimensions
D27: LOA | E27: LPP | F27: LWL | G27: Breadth | H27: Draught | I27: Deadwgt. | J27: Lightwgt | K27: Ballast | L27: Service Area
B28: Dimensions | D28: ='B2'!D9 -> 0 | E28: ='B2'!E9 -> 0 | F28: ='B2'!F9 -> 0 | G28: ='B2'!G9 -> 0 | H28: ='B2'!H9 -> 0 | I28: ='B2'!I9 -> 8000 | J28: ='B2'!J9 -> 0 | K28: ='B2'!K9 -> 0 | L28: ='B2'!L9:M9 -> 1

Sheet E
A1: Project | B1: =A!D5 -> NA | C1: E. ROUTE STUDIES
A2: Ship name | B2: =A!D6 -> NFT Steigen
A4: Input from simple setup - route studies
D6: Hours per month | P6: =D6 -> Hours per month
A7: Standby in Harbour | E7: ='B1'!E12 -> 72 | F7: hours | P7: =D7 -> 0
A8: Pulling out | E8: ='B1'!E13 -> 8 | F8: hours | P8: 0 | S8: hotel power
A9: Transit without cargo, ECO | E9: ='B1'!E14 -> 150 | F9: hours | P9: 0 | S9: =100/0.97 -> 103.0927835
A10: Transit without cargo, FULL | E10: ='B1'!E15 -> 30 | F10: hours | P10: 0
A11: Transit with cargo, ECO | E11: ='B1'!E16 -> 150 | F11: hours | P11: 0
A12: Transit with cargo, FULL | E12: ='B1'!E17 -> 30 | F12: hours
A13: Approaching | E13: ='B1'!E18 -> 8 | F13: hours
A14: Cargo Operations | E14: ='B1'!E19 -> 200 | F14: hours
A15: Manoeuvring | E15: ='B1'!E20 -> 19 | F15: hours
A16: Tankwash | E16: ='B1'!E21 -> 47 | F16: hours
A17: Waiting on facility | E17: ='B1'!E22 -> 10 | F17: hours
A18: Operational STBY | E18: ='B1'!E23 -> 20 | F18: hours
D26: kWh
A27: Standby in Harbour | E27: =E7*'B2'!E12 -> 20160 | F27: kWh
A28: Pulling out | E28: =E8*'B2'!E13 -> 12000 | F28: kWh
A29: Transit without cargo, ECO | E29: =E9*'B2'!E14 -> 225000 | F29: kWh
A30: Transit without cargo, FULL | E30: =E10*'B2'!E15 -> 69000 | F30: kWh
A31: Transit with cargo, ECO | E31: =E11*'B2'!I12 -> 300000 | F31: kWh
A32: Transit with cargo, FULL | E32: =E12*'B2'!I13 -> 78000 | F32: kWh
A33: Approaching | E33: =E13*'B2'!I14 -> 16000 | F33: kWh
A34: Cargo Operations | E34: =E14*'B2'!I15 -> 490000 | F34: kWh
A35: Manoeuvring | E35: =E15*'B2'!M12 -> 43700 | F35: kWh
A36: Tankwash | E36: =E16*'B2'!M13 -> 47000 | F36: kWh
A37: Waiting on facility | E37: =E17*'B2'!M14 -> 10000 | F37: kWh
A38: Operational STBY | E38: =E18*'B2'!M15 -> 20000 | F38: kWh
A45: Capabilites and Sea Margin
B46: Capabilites | E46: Sea Margin
B47: Level | C47: % | E47: Level | F47: %
B48: 1 | C48: 20 | E48: 1 | F48: 5
B49: 2 | C49: 40 | E49: 2 | F49: 12
B50: 3 | C50: 70 | E50: 3 | F50: 18
B51: 4 | C51: 100 | E51: 4 | F51: 40

Sheet F
A1: Project | B1: =A!D5 -> NA | C1: F. ENGINE SETUP
A2: Ship name | B2: =A!D6 -> NFT Steigen | C2: 1 | K2: 1 | O2: yes
O3: no
A4: Efficiency, propulsion
C5: Diesel Var. | D5: Diesel const | F5: Diesel-Battery | H5: LNG Const | J5: LNG-Battery | L5: Batteries | M5: Hydrogen | AN5: Batteries | AO5: Hydrogen
A6: Generator | C6: 2 | E6: 2 | G6: 1 | I6: 1 | K6: 1 | L6: 2 | M6: 2 | AN6: =IF(Z6=1,"95%","1") -> 1 | AO6: =IF(AA6=1,"95%","1") -> 1
A7: Drives/Converter | C7: 2 | E7: 2 | G7: 1 | I7: 1 | K7: 1 | L7: 1 | M7: 1 | AN7: =IF(Z7=1,"95%","1") -> 1 | AO7: =IF(AA7=1,"95%","1") -> 1
A8: Cabling | C8: 2 | E8: 2 | G8: 1 | I8: 1 | K8: 1 | L8: 1 | M8: 1 | AN8: =IF(Z8=1,"97%","1") -> 1 | AO8: =IF(AA8=1,"97%","1") -> 1
A9: Switchboard | C9: 2 | E9: 2 | G9: 1 | I9: 1 | K9: 1 | L9: 1 | M9: 1 | AN9: =IF(Z9=1,"97%","1") -> 1 | AO9: =IF(AA9=1,"97%","1") -> 1
A10: El-motors | C10: 2 | E10: 2 | G10: 1 | I10: 1 | K10: 1 | L10: 1 | M10: 1 | AN10: =IF(Z10=1,"94,1%","1") -> 1 | AO10: =IF(AA10=1,"94,1%","1") -> 1
A11: DC/DC converters | C11: 2 | E11: 2 | G11: 2 | I11: 2 | K11: 2 | L11: 2 | M11: 1 | AN11: =IF(Z11=1,"95%","1") -> 1 | AO11: =IF(AA11=1,"95%","1") -> 1
A12: Gear | C12: 1 | E12: 1 | G12: 1 | I12: 2 | K12: 2 | L12: 1 | M12: 1 | AN12: =IF(Z12=1,"96%","1") -> 1 | AO12: =IF(AA12=1,"96%","1") -> 1
AN13: =IF(Z13=1,"98,9%","1") -> 1 | AO13: =IF(AA13=1,"98,9%","1") -> 1
A14: Overall | C14: =Data!J19 -> 0.95 | E14: =Data!K19 -> 0.95 | G14: =Data!L19 -> 0.7591085934 | I14: =Data!N19 -> 0.7900710625 | K14: =Data!P19 -> 0.7900710625 | L14: =Data!R19 -> 0.7900710625 | M14: =Data!T19 -> 0.7505675094 | AN14: =IF(Z14=1,"93,9%","1") -> 1 | AO14: =IF(AA14=1,"93,9%","1") -> 1
AN15: =IF(Z15=1,"97%","1") -> 1 | AO15: =IF(AA15=1,"97%","1") -> 1
A16: Efficiency, electricity production
C17: Diesel Var. | D17: Diesel const | F17: Diesel-Battery | H17: LNG Const | J17: LNG-Battery | L17: Batteries | M17: Hydrogen
A18: Generator | C18: 1 | E18: 1 | G18: 1 | I18: 1 | K18: 1 | L18: 2 | M18: 2 | AN18: DC/DC Converters
A19: Drives/converter | C19: 1 | E19: 1 | G19: 1 | I19: 1 | K19: 1 | L19: 1 | M19: 1 | AN19: 0.05
A20: Cabling | C20: 1 | E20: 1 | G20: 1 | I20: 1 | K20: 1 | L20: 1 | M20: 1
A21: Switchboard | C21: 1 | E21: 1 | G21: 1 | I21: 1 | K21: 1 | L21: 1 | M21: 1
A22: DC/DC Converters | C22: 1 | E22: 2 | G22: 1 | I22: 1 | K22: 1 | L22: 1 | M22: 1
A23: ='B2'!M29 -> Open | C23: 1 | E23: 2 | G23: 1 | I23: 1 | K23: 1 | L23: 1 | M23: 2
B25: Overall | C25: =Data!J30 -> 0.8067041375 | E25: =Data!K30 -> 0.83165375 | G25: =Data!L30 -> 0.7900710625 | I25: =Data!N30 -> 0.7900710625 | K25: =Data!P30 -> 0.7900710625 | L25: =Data!R30 -> 0.83165375 | M25: =Data!T30 -> 0.83165375
A27: Efficiency, fossile fuels
C28: Const | D28: x | E28: x2 | F28: x3 | G28: x4 | H28: x5 | I28: x6
A29: Diesel Variable RPM | C29: 0.3099 | D29: 0.58 | E29: -4.0844 | F29: 15.441 | G29: -29.665 | H29: 27.841 | I29: -10.15
A30: Diesel Constant RPM | C30: 0.1667 | D30: 1.1482 | E30: -3.1976 | F30: 5.072 | G30: -4.1771 | H30: 1.3626
A31: LNG | C31: 0.1406 | D31: 0.01706 | E31: -0.0004 | F31: 4e-06 | G31: -2e-08
A33: Efficiency, electricity production, Hydrogen
A35: Max power | C35: =G35*C38 -> 4440 | E35: Number of cells | G35: =Data!E229 -> 37 | I35: 54% until | K35: =Data!D232 -> 1295 | L35: kW
A36: Hours of operation | C36: 25000 | D36: h | I36: Peak Power Efficiency | K36: 0.54
A37: Design lifetime | C37: =ROUNDUP(C36/8760,0) -> 3 | D37: years | F37: Weight | G37: =G35*360 -> 13320 | H37: kg | I37: Peak Efficiency | K37: 35 | L37: kW
A38: Design Stack Size | C38: 120 | D38: kW | F38: Cost cells | G38: =G35*1.55 -> 57.35 | H38: MNOK | P38: 0.494
A39: From max efficiency to mac performance
A40: const | B40: x | C40: x2 | D40: x3 | E40: x4
A41: 0.44 | B41: 0.84 | C41: -2.54 | D41: 2.96 | E41: -1.25
A42: Efficiency, electricity production, Batteries
A44: Design lifetime | C44: 10 | D44: years | E44: Design Capacity | G44: =Data!M197 -> 56383.37754 | H44: kWh
A45: Cycluses | C45: =C55 -> 1.225531915 | E45: Number of stacks | G45: =G44/135.6 -> 415.806619 | H45: Stacks
A46: Allowed discharge | C46: =IF(C45<=6000,"80",IF(AND(6001<=C45,C45<=9000),"60",IF(AND(9001<=C45,C45<=14000),"50",IF(AND(14001<=C45,C45<=22000),"40",IF(AND(22001<=C45,C45<=41000),"30",IF(AND(41001<=C45,C45<=95000),"20",IF(AND(95001<=C45,C45<=160000),"15",IF(AND(160001<=C45,C45<=350000),"10","")))))))) -> 80 | D46: % | E46: Weight of stacks | G46: =G45*1762 -> 732651.2627 | H46: kg
A48: Power | B48: =0.5*G44 -> 28191.68877 | C48: =1*G44 -> 56383.37754 | D48: =1.5*G44 -> 84575.06631 | E48: =2*G44 -> 112766.7551 | F48: =2.5*G44 -> 140958.4438 | G48: =3*G44 -> 169150.1326 | I48: Time in harbour for charging | L48: 60 | M48: min
A49: Losses | B49: 0.0095 | C49: 0.0175 | D49: 0.0255 | E49: 0.035 | F49: 0.043 | G49: 0.0525
A51: Hybridization
A53: Charging power | C53: 1400 | D53: kW | E53: Battery Lifetime | G53: 10 | H53: years
A54: Time for charging | C54: 60 | D54: min | E54: Battery % of kWh | G54: ='B1'!K6 -> 0.15
A55: Per day | C55: =24/Data!AL134 -> 1.225531915 | D55: n
A57: Carbon footprint and well to wheel efficiency fromproduction
D58: CO2-equivalents | F58: Well to wheel efficiency
D59: per kg fuel, g | F59: %
A60: Diesel variable rpm | E60: 397.22
A61: LNG | E61: 407.84
A62: Electricity, Norwegian mix | E62: 50

Sheet G
A1: Project | B1: 17-144 | C1: G. COST AND ASSEMBLY
A2: Ship name | B2: ='B1'!B2 -> NFT Steigen
A4: Price development and investments
B5: Disel Variable RPM | D5: Diesel Constan RPM | F5: Diesel Electric | H5: LNG | J5: LNG Electric | L5: Hydrogen | N5: Batteries
B6: CAPEX | C6: OPEX | D6: CAPEX | E6: OPEX | F6: CAPEX | G6: OPEX | H6: CAPEX | I6: OPEX | J6: CAPEX | K6: OPEX | L6: CAPEX | M6: OPEX | N6: CAPEX | O6: OPEX
A7: 1 | B7: =(('B2'!$C$26)*$G$53)/1000000 -> 13 | C7: =(('B2'!$C$26*$M$53)+($D$53*'C '!$G$16*1000*365))/1000000 -> 28.52552032 | D7: =(('B2'!$C$26)*$G$53)/1000000 -> 13 | E7: =(('B2'!$C$26*$M$53)+($D$53*'C '!$G$17*1000*365))/1000000 -> 28.99517752 | F7: =(((('B2'!$C$26)*$G$53)/1000000)+N("Batteries")+((Data!AN104*G56)/1000000)) -> 61.23279757 | G7: =(('B2'!$C$26*$M$53)+($M$56*Data!AN104)+($D$53*Data!CB134*12)+($D$56*Data!$BH$113*12))/1000000 -> 30.13675086 | H7: =(('B2'!$C$26)*$G$54)/1000000 -> 43.33333333 | I7: =(('B2'!$C$26*$M$54)+($D$54*'C '!$G$19*1000*365))/1000000 -> 24.81715198 | J7: =(((('B2'!$C$26)*$G$54)/1000000)+N("Batteries")+((Data!AN142*G56)/1000000)) -> 90.27258413 | K7: =(('B2'!$C$26*$M$53)+($M$56*Data!AN142)+($D$53*Data!CB172*12)+($D$56*Data!$BH$151*12))/1000000 -> 24.02040291 | L7: =((((F!G38)+N("Batteries")+((Data!R349*G56)/1000000)))) -> 57.35 | M7: =((F!$C$35*$M$55)+($M$56*Data!$R$349)+($D$55*Data!$Q$227*12)+($D$56*Data!$H$360*12))/1000000 -> 84.43181621 | N7: =((F!G44)*$G$56)/1000000 -> 307.8532414 | O7: =((F!$G$44*$M$56)+($D$56*Data!$R$192*12))/1000000 -> 11.43304577
A8: 2 | B8: =IF($I$53>19,0,IF($I$53=1,$B$7,0)) -> 0 | C8: =(('B2'!$C$26*$M$53)+($D$53*'C '!$G$16*1000*365))/1000000 -> 28.52552032 | D8: =IF($I$53>19,0,IF($I$53=1,$B$7,0)) -> 0 | E8: =(('B2'!$C$26*$M$53)+($D$53*'C '!$G$17*1000*365))/1000000 -> 28.99517752 | F8: =IF($I$53>19,0,IF($I$53=1,((('B2'!$C$26)*$G$53)/1000000),0))+N("Batteries")+IF($I$56>19,0,IF($I$56=1,((Data!AN104*G56)/1000000))) -> 0 | G8: =(('B2'!$C$26*$M$53)+($M$56*Data!AN104)+($D$53*Data!CB134*12)+($D$56*Data!$BH$113*12))/1000000 -> 30.13675086 | H8: =IF($I$54>19,0,IF($I$54=1,$H$7,0)) -> 0 | I8: =(('B2'!$C$26*$M$54)+($D$54*'C '!$G$19*1000*365))/1000000 -> 24.81715198 | J8: =IF($I$54>19,0,IF($I$53=1,((('B2'!$C$26)*$G$54)/1000000),0))+N("Batteries")+IF($I$56>19,0,IF($I$56=1,((Data!AN142*G56)/1000000))) -> 0 | K8: =(('B2'!$C$26*$M$53)+($M$56*Data!AN142)+($D$53*Data!CB172*12)+($D$56*Data!$BH$151*12))/1000000 -> 24.02040291 | L8: =IF($I$55>19,0,IF($I$55=1,(F!G38),0)+N("Batteries")+IF($I$56>19,0,IF($I$56=1,((Data!R349*G56)/1000000)))) -> 0 | M8: =((F!$C$35*$M$55)+($M$56*Data!$R$349)+($D$55*Data!$Q$227*12)+($D$56*Data!$H$360*12))/1000000 -> 84.43181621 | N8: =IF($I$56>19,0,IF($I$56=1,$N$7,0)) -> 0 | O8: =((F!$G$44*$M$56)+($D$56*Data!$R$192*12))/1000000 -> 11.43304577
A9: 3 | B9: =IF($I$53>19,0,IF($I$53=1,$B$7,IF($I$53=2,$B$7,0))) -> 0 | C9: =(('B2'!$C$26*$M$53)+($D$53*'C '!$G$16*1000*365))/1000000 -> 28.52552032 | D9: =IF($I$53>19,0,IF($I$53=1,$B$7,IF($I$53=2,$B$7,0))) -> 0 | E9: =(('B2'!$C$26*$M$53)+($D$53*'C '!$G$17*1000*365))/1000000 -> 28.99517752 | F9: =IF($I$53>19,0,IF($I$53=1,((('B2'!$C$26)*$G$53)/1000000),IF($I$53=2,((('B2'!$C$26)*$G$53)/1000000),0)))+N("Batteries")+IF($I$56>19,0,IF($I$56=1,((Data!AN104*G56)/1000000),IF($I$56=2,((Data!AN104*G56)/1000000),0))) -> 0 | G9: =(('B2'!$C$26*$M$53)+($M$56*Data!AN104)+($D$53*Data!CB134*12)+($D$56*Data!$BH$113*12))/1000000 -> 30.13675086 | H9: =IF($I$54>19,0,IF($I$54=1,$H$7,IF($I$54=2,$H$7,0))) -> 0 | I9: =(('B2'!$C$26*$M$54)+($D$54*'C '!$G$19*1000*365))/1000000 -> 24.81715198 | J9: =IF($I$54>19,0,IF($I$54=1,((('B2'!$C$26)*$G$54)/1000000),IF($I$54=2,((('B2'!$C$26)*$G$54)/1000000),0)))+N("Batteries")+IF($I$56>19,0,IF($I$56=1,((Data!AN142*G56)/1000000),IF($I$56=2,((Data!AN142*G56)/1000000),0))) -> 0 | K9: =(('B2'!$C$26*$M$53)+($M$56*Data!AN142)+($D$53*Data!CB172*12)+($D$56*Data!$BH$151*12))/1000000 -> 24.02040291 | L9: =IF($I$55>19,0,IF($I$55=1,F!G38,IF($I$55=2,F!G38,0)))+N("Batteries")+IF($I$56>19,0,IF($I$56=1,((Data!R349*G56)/1000000),IF($I$56=2,((Data!R349*G56)/1000000),0))) -> 0 | M9: =((F!$C$35*$M$55)+($M$56*Data!$R$349)+($D$55*Data!$Q$227*12)+($D$56*Data!$H$360*12))/1000000 -> 84.43181621 | N9: =IF($I$56>19,0,IF($I$56=1,$N$7,IF($I$56=2,$N$7,0))) -> 0 | O9: =((F!$G$44*$M$56)+($D$56*Data!$R$192*12))/1000000 -> 11.43304577
A10: 4 | B10: =IF($I$53>19,0,IF($I$53=1,$B$7,IF($I$53=3,$B$7,0))) -> 0 | C10: =(('B2'!$C$26*$M$53)+($D$53*'C '!$G$16*1000*365))/1000000 -> 28.52552032 | D10: =IF($I$53>19,0,IF($I$53=1,$B$7,IF($I$53=3,$B$7,0))) -> 0 | E10: =(('B2'!$C$26*$M$53)+($D$53*'C '!$G$17*1000*365))/1000000 -> 28.99517752 | F10: =IF($I$53>19,0,IF($I$53=1,((('B2'!$C$26)*$G$53)/1000000),IF($I$53=3,((('B2'!$C$26)*$G$53)/1000000),0)))+N("Batteries")+IF($I$56>19,0,IF($I$56=1,((Data!AN104*G56)/1000000),IF($I$56=3,((Data!AN104*G56)/1000000),0))) -> 0 | G10: =(('B2'!$C$26*$M$53)+($M$56*Data!AN104)+($D$53*Data!CB134*12)+($D$56*Data!$BH$113*12))/1000000 -> 30.13675086 | H10: =IF($I$54>19,0,IF($I$54=1,$H$7,IF($I$54=3,$H$7,0))) -> 0 | I10: =(('B2'!$C$26*$M$54)+($D$54*'C '!$G$19*1000*365))/1000000 -> 24.81715198 | J10: =IF($I$54>19,0,IF($I$54=1,((('B2'!$C$26)*$G$54)/1000000),IF($I$54=3,((('B2'!$C$26)*$G$54)/1000000),0)))+N("Batteries")+IF($I$56>19,0,IF($I$56=1,((Data!AN142*G56)/1000000),IF($I$56=3,((Data!AN142*G56)/1000000),0))) -> 0 | K10: =(('B2'!$C$26*$M$53)+($M$56*Data!AN142)+($D$53*Data!CB172*12)+($D$56*Data!$BH$151*12))/1000000 -> 24.02040291 | L10: =IF($I$55>19,0,IF($I$55=1,F!G38,IF($I$55=3,F!G38,0)))+N("Batteries")+IF($I$56>19,0,IF($I$56=1,((Data!R349*G56)/1000000),IF($I$56=3,((Data!R349*G56)/1000000),0))) -> 57.35 | M10: =((F!$C$35*$M$55)+($M$56*Data!$R$349)+($D$55*Data!$Q$227*12)+($D$56*Data!$H$360*12))/1000000 -> 84.43181621 | N10: =IF($I$56>19,0,IF($I$56=1,$N$7,IF($I$56=3,$N$7,0))) -> 0 | O10: =((F!$G$44*$M$56)+($D$56*Data!$R$192*12))/1000000 -> 11.43304577
A11: 5 | B11: =IF($I$53>19,0,IF($I$53=1,$B$7,IF($I$53=4,$B$7,IF($I$53=2,$B$7,0)))) -> 0 | C11: =(('B2'!$C$26*$M$53)+($D$53*'C '!$G$16*1000*365))/1000000 -> 28.52552032 | D11: =IF($I$53>19,0,IF($I$53=1,$B$7,IF($I$53=4,$B$7,IF($I$53=2,$B$7,0)))) -> 0 | E11: =(('B2'!$C$26*$M$53)+($D$53*'C '!$G$17*1000*365))/1000000 -> 28.99517752 | F11: =IF($I$53>19,0,IF($I$53=1,((('B2'!$C$26)*$G$53)/1000000),IF($I$53=4,((('B2'!$C$26)*$G$53)/1000000),IF($I$53=2,((('B2'!$C$26)*$G$53)/1000000),0))))+N("Batteries")+IF($I$56>19,0,IF($I$56=1,((Data!AN104*G56)/1000000),IF($I$56=4,((Data!AN104*G56)/1000000),IF($I$56=2,((Data!AN104*G56)/1000000),0)))) -> 0 | G11: =(('B2'!$C$26*$M$53)+($M$56*Data!AN104)+($D$53*Data!CB134*12)+($D$56*Data!$BH$113*12))/1000000 -> 30.13675086 | H11: =IF($I$54>19,0,IF($I$54=1,$H$7,IF($I$54=4,$H$7,IF($I$54=2,$H$7,0)))) -> 0 | I11: =(('B2'!$C$26*$M$54)+($D$54*'C '!$G$19*1000*365))/1000000 -> 24.81715198 | J11: =IF($I$54>19,0,IF($I$54=1,((('B2'!$C$26)*$G$54)/1000000),IF($I$54=4,((('B2'!$C$26)*$G$54)/1000000),IF($I$54=2,((('B2'!$C$26)*$G$54)/1000000),0))))+N("Batteries")+IF($I$56>19,0,IF($I$56=1,((Data!AN142*G56)/1000000),IF($I$56=4,((Data!AN142*G56)/1000000),IF($I$56=2,((Data!AN142*G56)/1000000),0)))) -> 0 | K11: =(('B2'!$C$26*$M$53)+($M$56*Data!AN142)+($D$53*Data!CB172*12)+($D$56*Data!$BH$151*12))/1000000 -> 24.02040291 | L11: =IF($I$55>19,0,IF($I$55=1,F!G38,IF($I$55=4,F!G38,IF($I$55=2,F!G38,0))))+N("Batteries")+IF($I$56>19,0,IF($I$56=1,((Data!R349*G56)/1000000),IF($I$56=4,((Data!R349*G56)/1000000),IF($I$56=2,((Data!R349*G56)/1000000),0)))) -> 0 | M11: =((F!$C$35*$M$55)+($M$56*Data!$R$349)+($D$55*Data!$Q$227*12)+($D$56*Data!$H$360*12))/1000000 -> 84.43181621 | N11: =IF($I$56>19,0,IF($I$56=1,$N$7,IF($I$56=4,$N$7,IF($I$56=2,$N$7,0)))) -> 0 | O11: =((F!$G$44*$M$56)+($D$56*Data!$R$192*12))/1000000 -> 11.43304577
A12: 6 | B12: =IF($I$53>19,0,IF($I$53=1,$B$7,IF($I$53=5,$B$7,0))) -> 0 | C12: =(('B2'!$C$26*$M$53)+($D$53*'C '!$G$16*1000*365))/1000000 -> 28.52552032 | D12: =IF($I$53>19,0,IF($I$53=1,$B$7,IF($I$53=5,$B$7,0))) -> 0 | E12: =(('B2'!$C$26*$M$53)+($D$53*'C '!$G$17*1000*365))/1000000 -> 28.99517752 | F12: =IF($I$53>19,0,IF($I$53=1,((('B2'!$C$26)*$G$53)/1000000),IF($I$53=5,((('B2'!$C$26)*$G$53)/1000000),0)))+N("Batteries")+IF($I$56>19,0,IF($I$56=1,((Data!AN104*G56)/1000000),IF($I$56=5,((Data!AN104*G56)/1000000),0))) -> 0 | G12: =(('B2'!$C$26*$M$53)+($M$56*Data!AN104)+($D$53*Data!CB134*12)+($D$56*Data!$BH$113*12))/1000000 -> 30.13675086 | H12: =IF($I$54>19,0,IF($I$54=1,$H$7,IF($I$54=5,$H$7,0))) -> 0 | I12: =(('B2'!$C$26*$M$54)+($D$54*'C '!$G$19*1000*365))/1000000 -> 24.81715198 | J12: =IF($I$54>19,0,IF($I$54=1,((('B2'!$C$26)*$G$54)/1000000),IF($I$54=5,((('B2'!$C$26)*$G$54)/1000000),0)))+N("Batteries")+IF($I$56>19,0,IF($I$56=1,((Data!AN142*G56)/1000000),IF($I$56=5,((Data!AN142*G56)/1000000),0))) -> 0 | K12: =(('B2'!$C$26*$M$53)+($M$56*Data!AN142)+($D$53*Data!CB172*12)+($D$56*Data!$BH$151*12))/1000000 -> 24.02040291 | L12: =IF($I$55>19,0,IF($I$55=1,F!G38,IF($I$55=5,F!G38,0)))+N("Batteries")+IF($I$56>19,0,IF($I$56=1,((Data!R349*G56)/1000000),IF($I$56=5,((Data!R349*G56)/1000000),0))) -> 0 | M12: =((F!$C$35*$M$55)+($M$56*Data!$R$349)+($D$55*Data!$Q$227*12)+($D$56*Data!$H$360*12))/1000000 -> 84.43181621 | N12: =IF($I$56>19,0,IF($I$56=1,$N$7,IF($I$56=5,$N$7,0))) -> 0 | O12: =((F!$G$44*$M$56)+($D$56*Data!$R$192*12))/1000000 -> 11.43304577
A13: 7 | B13: =IF($I$53>19,0,IF($I$53=1,$B$7,IF($I$53=2,$B$7,IF($I$53=6,$B$7,IF($I$53=3,$B$7,0))))) -> 0 | C13: =(('B2'!$C$26*$M$53)+($D$53*'C '!$G$16*1000*365))/1000000 -> 28.52552032 | D13: =IF($I$53>19,0,IF($I$53=1,$B$7,IF($I$53=2,$B$7,IF($I$53=6,$B$7,IF($I$53=3,$B$7,0))))) -> 0 | E13: =(('B2'!$C$26*$M$53)+($D$53*'C '!$G$17*1000*365))/1000000 -> 28.99517752 | F13: =IF($I$53>19,0,IF($I$53=1,((('B2'!$C$26)*$G$53)/1000000),IF($I$53=2,((('B2'!$C$26)*$G$53)/1000000),IF($I$53=6,((('B2'!$C$26)*$G$53)/1000000),IF($I$53=3,((('B2'!$C$26)*$G$53)/1000000),0)))))+N("Batteries")+IF($I$56>19,0,IF($I$56=1,((Data!AN104*G56)/1000000),IF($I$56=2,((Data!AN104*G56)/1000000),IF($I$56=6,((Data!AN104*G56)/1000000),IF($I$56=3,((Data!AN104*G56)/1000000),0))))) -> 0 | G13: =(('B2'!$C$26*$M$53)+($M$56*Data!AN104)+($D$53*Data!CB134*12)+($D$56*Data!$BH$113*12))/1000000 -> 30.13675086 | H13: =IF($I$54>19,0,IF($I$54=1,$H$7,IF($I$54=2,$H$7,IF($I$54=6,$H$7,IF($I$54=3,$H$7,0))))) -> 0 | I13: =(('B2'!$C$26*$M$54)+($D$54*'C '!$G$19*1000*365))/1000000 -> 24.81715198 | J13: =IF($I$54>19,0,IF($I$54=1,((('B2'!$C$26)*$G$54)/1000000),IF($I$54=2,((('B2'!$C$26)*$G$54)/1000000),IF($I$54=6,((('B2'!$C$26)*$G$54)/1000000),IF($I$54=3,((('B2'!$C$26)*$G$54)/1000000),0)))))+N("Batteries")+IF($I$56>19,0,IF($I$56=1,((Data!AN142*G56)/1000000),IF($I$56=2,((Data!AN142*G56)/1000000),IF($I$56=6,((Data!AN142*G56)/1000000),IF($I$56=3,((Data!AN142*G56)/1000000),0))))) -> 0 | K13: =(('B2'!$C$26*$M$53)+($M$56*Data!AN142)+($D$53*Data!CB172*12)+($D$56*Data!$BH$151*12))/1000000 -> 24.02040291 | L13: =IF($I$55>19,0,IF($I$55=1,F!G38,IF($I$55=2,F!G38,IF($I$55=6,F!G38,IF($I$55=3,F!G38,0)))))+N("Batteries")+IF($I$56>19,0,IF($I$56=1,((Data!R349*G56)/1000000),IF($I$56=2,((Data!R349*G56)/1000000),IF($I$56=6,((Data!R349*G56)/1000000),IF($I$56=3,((Data!R349*G56)/1000000),0))))) -> 57.35 | M13: =((F!$C$35*$M$55)+($M$56*Data!$R$349)+($D$55*Data!$Q$227*12)+($D$56*Data!$H$360*12))/1000000 -> 84.43181621 | N13: =IF($I$56>19,0,IF($I$56=1,$N$7,IF($I$56=2,$N$7,IF($I$56=6,$N$7,IF($I$56=3,$N$7,0))))) -> 0 | O13: =((F!$G$44*$M$56)+($D$56*Data!$R$192*12))/1000000 -> 11.43304577
A14: 8 | B14: =IF($I$53>19,0,IF($I$53=1,$B$7,IF($I$53=7,$B$7,0))) -> 0 | C14: =(('B2'!$C$26*$M$53)+($D$53*'C '!$G$16*1000*365))/1000000 -> 28.52552032 | D14: =IF($I$53>19,0,IF($I$53=1,$B$7,IF($I$53=7,$B$7,0))) -> 0 | E14: =(('B2'!$C$26*$M$53)+($D$53*'C '!$G$17*1000*365))/1000000 -> 28.99517752 | F14: =IF($I$53>19,0,IF($I$53=1,((('B2'!$C$26)*$G$53)/1000000),IF($I$53=7,((('B2'!$C$26)*$G$53)/1000000),0)))+N("Batteries")+IF($I$56>19,0,IF($I$56=1,((Data!AN104*G56)/1000000),IF($I$56=7,((Data!AN104*G56)/1000000),0))) -> 0 | G14: =(('B2'!$C$26*$M$53)+($M$56*Data!AN104)+($D$53*Data!CB134*12)+($D$56*Data!$BH$113*12))/1000000 -> 30.13675086 | H14: =IF($I$54>19,0,IF($I$54=1,$H$7,IF($I$54=7,$H$7,0))) -> 0 | I14: =(('B2'!$C$26*$M$54)+($D$54*'C '!$G$19*1000*365))/1000000 -> 24.81715198 | J14: =IF($I$54>19,0,IF($I$54=1,((('B2'!$C$26)*$G$54)/1000000),IF($I$54=7,((('B2'!$C$26)*$G$54)/1000000),0)))+N("Batteries")+IF($I$56>19,0,IF($I$56=1,((Data!AN142*G56)/1000000),IF($I$56=7,((Data!AN142*G56)/1000000),0))) -> 0 | K14: =(('B2'!$C$26*$M$53)+($M$56*Data!AN142)+($D$53*Data!CB172*12)+($D$56*Data!$BH$151*12))/1000000 -> 24.02040291 | L14: =IF($I$55>19,0,IF($I$55=1,F!G38,IF($I$55=7,F!G38,0)))+N("Batteries")+IF($I$56>19,0,IF($I$56=1,((Data!R349*G56)/1000000),IF($I$56=7,((Data!R349*G56)/1000000),0))) -> 0 | M14: =((F!$C$35*$M$55)+($M$56*Data!$R$349)+($D$55*Data!$Q$227*12)+($D$56*Data!$H$360*12))/1000000 -> 84.43181621 | N14: =IF($I$56>19,0,IF($I$56=1,$N$7,IF($I$56=7,$N$7,0))) -> 0 | O14: =((F!$G$44*$M$56)+($D$56*Data!$R$192*12))/1000000 -> 11.43304577
A15: 9 | B15: =IF($I$53>19,0,IF($I$53=1,$B$7,IF($I$53=8,$B$7,IF($I$53=4,$B$7,IF($I$53=2,$B$7,0))))) -> 0 | C15: =(('B2'!$C$26*$M$53)+($D$53*'C '!$G$16*1000*365))/1000000 -> 28.52552032 | D15: =IF($I$53>19,0,IF($I$53=1,$B$7,IF($I$53=8,$B$7,IF($I$53=4,$B$7,IF($I$53=2,$B$7,0))))) -> 0 | E15: =(('B2'!$C$26*$M$53)+($D$53*'C '!$G$17*1000*365))/1000000 -> 28.99517752 | F15: =IF($I$53>19,0,IF($I$53=1,((('B2'!$C$26)*$G$53)/1000000),IF($I$53=8,((('B2'!$C$26)*$G$53)/1000000),IF($I$53=4,((('B2'!$C$26)*$G$53)/1000000),IF($I$53=2,((('B2'!$C$26)*$G$53)/1000000),0)))))+N("Batteries")+IF($I$56>19,0,IF($I$56=1,((Data!AN104*G56)/1000000),IF($I$56=8,((Data!AN104*G56)/1000000),IF($I$56=4,((Data!AN104*G56)/1000000),IF($I$56=2,((Data!AN104*G56)/1000000),0))))) -> 0 | G15: =(('B2'!$C$26*$M$53)+($M$56*Data!AN104)+($D$53*Data!CB134*12)+($D$56*Data!$BH$113*12))/1000000 -> 30.13675086 | H15: =IF($I$54>19,0,IF($I$54=1,$H$7,IF($I$54=8,$H$7,IF($I$54=4,$H$7,IF($I$54=2,$H$7,0))))) -> 0 | I15: =(('B2'!$C$26*$M$54)+($D$54*'C '!$G$19*1000*365))/1000000 -> 24.81715198 | J15: =IF($I$54>19,0,IF($I$54=1,((('B2'!$C$26)*$G$54)/1000000),IF($I$54=8,((('B2'!$C$26)*$G$54)/1000000),IF($I$54=4,((('B2'!$C$26)*$G$54)/1000000),IF($I$54=2,((('B2'!$C$26)*$G$54)/1000000),0)))))+N("Batteries")+IF($I$56>19,0,IF($I$56=1,((Data!AN142*G56)/1000000),IF($I$56=8,((Data!AN142*G56)/1000000),IF($I$56=4,((Data!AN142*G56)/1000000),IF($I$56=2,((Data!AN142*G56)/1000000),0))))) -> 0 | K15: =(('B2'!$C$26*$M$53)+($M$56*Data!AN142)+($D$53*Data!CB172*12)+($D$56*Data!$BH$151*12))/1000000 -> 24.02040291 | L15: =IF($I$55>19,0,IF($I$55=1,F!G38,IF($I$55=8,F!G38,IF($I$55=4,F!G38,IF($I$55=2,F!G38,0)))))+N("Batteries")+IF($I$56>19,0,IF($I$56=1,((Data!R349*G56)/1000000),IF($I$56=8,((Data!R349*G56)/1000000),IF($I$56=4,((Data!R349*G56)/1000000),IF($I$56=2,((Data!R349*G56)/1000000),0))))) -> 0 | M15: =((F!$C$35*$M$55)+($M$56*Data!$R$349)+($D$55*Data!$Q$227*12)+($D$56*Data!$H$360*12))/1000000 -> 84.43181621 | N15: =IF($I$56>19,0,IF($I$56=1,$N$7,IF($I$56=8,$N$7,IF($I$56=4,$N$7,IF($I$56=2,$N$7,0))))) -> 0 | O15: =((F!$G$44*$M$56)+($D$56*Data!$R$192*12))/1000000 -> 11.43304577
A16: 10 | B16: =IF($I$53>19,0,IF($I$53=1,$B$7,IF($I$53=9,$B$7,IF($I$53=3,$B$7,0)))) -> 0 | C16: =(('B2'!$C$26*$M$53)+($D$53*'C '!$G$16*1000*365))/1000000 -> 28.52552032 | D16: =IF($I$53>19,0,IF($I$53=1,$B$7,IF($I$53=9,$B$7,IF($I$53=3,$B$7,0)))) -> 0 | E16: =(('B2'!$C$26*$M$53)+($D$53*'C '!$G$17*1000*365))/1000000 -> 28.99517752 | F16: =IF($I$53>19,0,IF($I$53=1,((('B2'!$C$26)*$G$53)/1000000),IF($I$53=9,((('B2'!$C$26)*$G$53)/1000000),IF($I$53=3,((('B2'!$C$26)*$G$53)/1000000),0))))+N("Batteries")+IF($I$56>19,0,IF($I$56=1,((Data!AN104*G56)/1000000),IF($I$56=9,((Data!AN104*G56)/1000000),IF($I$56=3,((Data!AN104*G56)/1000000),0)))) -> 0 | G16: =(('B2'!$C$26*$M$53)+($M$56*Data!AN104)+($D$53*Data!CB134*12)+($D$56*Data!$BH$113*12))/1000000 -> 30.13675086 | H16: =IF($I$54>19,0,IF($I$54=1,$H$7,IF($I$54=9,$H$7,IF($I$54=3,$H$7,0)))) -> 0 | I16: =(('B2'!$C$26*$M$54)+($D$54*'C '!$G$19*1000*365))/1000000 -> 24.81715198 | J16: =IF($I$54>19,0,IF($I$54=1,((('B2'!$C$26)*$G$54)/1000000),IF($I$54=9,((('B2'!$C$26)*$G$54)/1000000),IF($I$54=3,((('B2'!$C$26)*$G$54)/1000000),0))))+N("Batteries")+IF($I$56>19,0,IF($I$56=1,((Data!AN142*G56)/1000000),IF($I$56=9,((Data!AN142*G56)/1000000),IF($I$56=3,((Data!AN142*G56)/1000000),0)))) -> 0 | K16: =(('B2'!$C$26*$M$53)+($M$56*Data!AN142)+($D$53*Data!CB172*12)+($D$56*Data!$BH$151*12))/1000000 -> 24.02040291 | L16: =IF($I$55>19,0,IF($I$55=1,F!G38,IF($I$55=9,F!G38,IF($I$55=3,F!G38,0))))+N("Batteries")+IF($I$56>19,0,IF($I$56=1,((Data!R349*G56)/1000000),IF($I$56=9,((Data!R349*G56)/1000000),IF($I$56=3,((Data!R349*G56)/1000000),0)))) -> 57.35 | M16: =((F!$C$35*$M$55)+($M$56*Data!$R$349)+($D$55*Data!$Q$227*12)+($D$56*Data!$H$360*12))/1000000 -> 84.43181621 | N16: =IF($I$56>19,0,IF($I$56=1,$N$7,IF($I$56=9,$N$7,IF($I$56=3,$N$7,0)))) -> 0 | O16: =((F!$G$44*$M$56)+($D$56*Data!$R$192*12))/1000000 -> 11.43304577
A17: 11 | B17: =IF($I$53>19,0,IF($I$53=1,$B$7,IF($I$53=10,$B$7,IF($I$53=5,$B$7,IF($I$53=2,$B$7,0))))) -> 0 | C17: =(('B2'!$C$26*$M$53)+($D$53*'C '!$G$16*1000*365))/1000000 -> 28.52552032 | D17: =IF($I$53>19,0,IF($I$53=1,$B$7,IF($I$53=10,$B$7,IF($I$53=5,$B$7,IF($I$53=2,$B$7,0))))) -> 0 | E17: =(('B2'!$C$26*$M$53)+($D$53*'C '!$G$17*1000*365))/1000000 -> 28.99517752 | F17: =IF($I$53>19,0,IF($I$53=1,((('B2'!$C$26)*$G$53)/1000000),IF($I$53=10,((('B2'!$C$26)*$G$53)/1000000),IF($I$53=5,((('B2'!$C$26)*$G$53)/1000000),IF($I$53=2,((('B2'!$C$26)*$G$53)/1000000),0)))))+N("Batteries")+IF($I$56>19,0,IF($I$56=1,((Data!AN104*G56)/1000000),IF($I$56=10,((Data!AN104*G56)/1000000),IF($I$56=5,((Data!AN104*G56)/1000000),IF($I$56=2,((Data!AN104*G56)/1000000),0))))) -> 48.23279757 | G17: =(('B2'!$C$26*$M$53)+($M$56*Data!AN104)+($D$53*Data!CB134*12)+($D$56*Data!$BH$113*12))/1000000 -> 30.13675086 | H17: =IF($I$54>19,0,IF($I$54=1,$H$7,IF($I$54=10,$H$7,IF($I$54=5,$H$7,IF($I$54=2,$H$7,0))))) -> 0 | I17: =(('B2'!$C$26*$M$54)+($D$54*'C '!$G$19*1000*365))/1000000 -> 24.81715198 | J17: =IF($I$54>19,0,IF($I$54=1,((('B2'!$C$26)*$G$54)/1000000),IF($I$54=10,((('B2'!$C$26)*$G$54)/1000000),IF($I$54=5,((('B2'!$C$26)*$G$54)/1000000),IF($I$54=2,((('B2'!$C$26)*$G$54)/1000000),0)))))+N("Batteries")+IF($I$56>19,0,IF($I$56=1,((Data!AN142*G56)/1000000),IF($I$56=10,((Data!AN142*G56)/1000000),IF($I$56=5,((Data!AN142*G56)/1000000),IF($I$56=2,((Data!AN142*G56)/1000000),0))))) -> 46.9392508 | K17: =(('B2'!$C$26*$M$53)+($M$56*Data!AN142)+($D$53*Data!CB172*12)+($D$56*Data!$BH$151*12))/1000000 -> 24.02040291 | L17: =IF($I$55>19,0,IF($I$55=1,F!G38,IF($I$55=10,F!G38,IF($I$55=5,F!G38,IF($I$55=2,F!G38,0)))))+N("Batteries")+IF($I$56>19,0,IF($I$56=1,((Data!R349*G56)/1000000),IF($I$56=10,((Data!R349*G56)/1000000),IF($I$56=5,((Data!R349*G56)/1000000),IF($I$56=2,((Data!R349*G56)/1000000),0))))) -> 0 | M17: =((F!$C$35*$M$55)+($M$56*Data!$R$349)+($D$55*Data!$Q$227*12)+($D$56*Data!$H$360*12))/1000000 -> 84.43181621 | N17: =IF($I$56>19,0,IF($I$56=1,$N$7,IF($I$56=10,$N$7,IF($I$56=5,$N$7,IF($I$56=2,$N$7,0))))) -> 307.8532414 | O17: =((F!$G$44*$M$56)+($D$56*Data!$R$192*12))/1000000 -> 11.43304577
A18: 12 | B18: =IF($I$53>19,0,IF($I$53=1,$B$7,IF($I$53=11,$B$7,0))) -> 0 | C18: =(('B2'!$C$26*$M$53)+($D$53*'C '!$G$16*1000*365))/1000000 -> 28.52552032 | D18: =IF($I$53>19,0,IF($I$53=1,$B$7,IF($I$53=11,$B$7,0))) -> 0 | E18: =(('B2'!$C$26*$M$53)+($D$53*'C '!$G$17*1000*365))/1000000 -> 28.99517752 | F18: =IF($I$53>19,0,IF($I$53=1,((('B2'!$C$26)*$G$53)/1000000),IF($I$53=11,((('B2'!$C$26)*$G$53)/1000000),0)))+N("Batteries")+IF($I$56>19,0,IF($I$56=1,((Data!AN104*G56)/1000000),IF($I$56=11,((Data!AN104*G56)/1000000),0))) -> 0 | G18: =(('B2'!$C$26*$M$53)+($M$56*Data!AN104)+($D$53*Data!CB134*12)+($D$56*Data!$BH$113*12))/1000000 -> 30.13675086 | H18: =IF($I$54>19,0,IF($I$54=1,$H$7,IF($I$54=11,$H$7,0))) -> 0 | I18: =(('B2'!$C$26*$M$54)+($D$54*'C '!$G$19*1000*365))/1000000 -> 24.81715198 | J18: =IF($I$54>19,0,IF($I$54=1,((('B2'!$C$26)*$G$54)/1000000),IF($I$54=11,((('B2'!$C$26)*$G$54)/1000000),0)))+N("Batteries")+IF($I$56>19,0,IF($I$56=1,((Data!AN142*G56)/1000000),IF($I$56=11,((Data!AN142*G56)/1000000),0))) -> 0 | K18: =(('B2'!$C$26*$M$53)+($M$56*Data!AN142)+($D$53*Data!CB172*12)+($D$56*Data!$BH$151*12))/1000000 -> 24.02040291 | L18: =IF($I$55>19,0,IF($I$55=1,F!G38,IF($I$55=11,F!G38,0)))+N("Batteries")+IF($I$56>19,0,IF($I$56=1,((Data!R349*G56)/1000000),IF($I$56=11,((Data!R349*G56)/1000000),0))) -> 0 | M18: =((F!$C$35*$M$55)+($M$56*Data!$R$349)+($D$55*Data!$Q$227*12)+($D$56*Data!$H$360*12))/1000000 -> 84.43181621 | N18: =IF($I$56>19,0,IF($I$56=1,$N$7,IF($I$56=11,$N$7,0))) -> 0 | O18: =((F!$G$44*$M$56)+($D$56*Data!$R$192*12))/1000000 -> 11.43304577
A19: 13 | B19: =IF($I$53>19,0,IF($I$53=1,$B$7,IF($I$53=12,$B$7,IF($I$53=6,$B$7,IF($I$53=4,$B$7,IF($I$53=3,$B$7,IF($I$53=2,$B$7,0))))))) -> 0 | C19: =(('B2'!$C$26*$M$53)+($D$53*'C '!$G$16*1000*365))/1000000 -> 28.52552032 | D19: =IF($I$53>19,0,IF($I$53=1,$B$7,IF($I$53=12,$B$7,IF($I$53=6,$B$7,IF($I$53=4,$B$7,IF($I$53=3,$B$7,IF($I$53=2,$B$7,0))))))) -> 0 | E19: =(('B2'!$C$26*$M$53)+($D$53*'C '!$G$17*1000*365))/1000000 -> 28.99517752 | F19: =IF($I$53>19,0,IF($I$53=1,((('B2'!$C$26)*$G$53)/1000000),IF($I$53=12,((('B2'!$C$26)*$G$53)/1000000),IF($I$53=6,((('B2'!$C$26)*$G$53)/1000000),IF($I$53=4,((('B2'!$C$26)*$G$53)/1000000),IF($I$53=3,((('B2'!$C$26)*$G$53)/1000000),IF($I$53=2,((('B2'!$C$26)*$G$53)/1000000),0)))))))+N("Batteries")+IF($I$56>19,0,IF($I$56=1,((Data!AN104*G56)/1000000),IF($I$56=12,((Data!AN104*G56)/1000000),IF($I$56=6,((Data!AN104*G56)/1000000),IF($I$56=4,((Data!AN104*G56)/1000000),IF($I$56=3,((Data!AN104*G56)/1000000),IF($I$56=2,((Data!AN104*G56)/1000000),0))))))) -> 0 | G19: =(('B2'!$C$26*$M$53)+($M$56*Data!AN104)+($D$53*Data!CB134*12)+($D$56*Data!$BH$113*12))/1000000 -> 30.13675086 | H19: =IF($I$54>19,0,IF($I$54=1,$H$7,IF($I$54=12,$H$7,IF($I$54=6,$H$7,IF($I$54=4,$H$7,IF($I$54=3,$H$7,IF($I$54=2,$H$7,0))))))) -> 0 | I19: =(('B2'!$C$26*$M$54)+($D$54*'C '!$G$19*1000*365))/1000000 -> 24.81715198 | J19: =IF($I$54>19,0,IF($I$54=1,((('B2'!$C$26)*$G$54)/1000000),IF($I$54=12,((('B2'!$C$26)*$G$54)/1000000),IF($I$54=6,((('B2'!$C$26)*$G$54)/1000000),IF($I$54=4,((('B2'!$C$26)*$G$54)/1000000),IF($I$54=3,((('B2'!$C$26)*$G$54)/1000000),IF($I$54=2,((('B2'!$C$26)*$G$54)/1000000),0)))))))+N("Batteries")+IF($I$56>19,0,IF($I$56=1,((Data!AN142*G56)/1000000),IF($I$56=12,((Data!AN142*G56)/1000000),IF($I$56=6,((Data!AN142*G56)/1000000),IF($I$56=4,((Data!AN142*G56)/1000000),IF($I$56=3,((Data!AN142*G56)/1000000),IF($I$56=2,((Data!AN142*G56)/1000000),0))))))) -> 0 | K19: =(('B2'!$C$26*$M$53)+($M$56*Data!AN142)+($D$53*Data!CB172*12)+($D$56*Data!$BH$151*12))/1000000 -> 24.02040291 | L19: =IF($I$55>19,0,IF($I$55=1,F!G38,IF($I$55=12,F!G38,IF($I$55=6,F!G38,IF($I$55=4,F!G38,IF($I$55=3,F!G38,IF($I$55=2,F!G38,0)))))))+N("Batteries")+IF($I$56>19,0,IF($I$56=1,((Data!R349*G56)/1000000),IF($I$56=12,((Data!R349*G56)/1000000),IF($I$56=6,((Data!R349*G56)/1000000),IF($I$56=4,((Data!R349*G56)/1000000),IF($I$56=3,((Data!R349*G56)/1000000),IF($I$56=2,((Data!R349*G56)/1000000),0))))))) -> 57.35 | M19: =((F!$C$35*$M$55)+($M$56*Data!$R$349)+($D$55*Data!$Q$227*12)+($D$56*Data!$H$360*12))/1000000 -> 84.43181621 | N19: =IF($I$56>19,0,IF($I$56=1,$N$7,IF($I$56=12,$N$7,IF($I$56=6,$N$7,IF($I$56=4,$N$7,IF($I$56=3,$N$7,IF($I$56=2,$N$7,0))))))) -> 0 | O19: =((F!$G$44*$M$56)+($D$56*Data!$R$192*12))/1000000 -> 11.43304577
A20: 14 | B20: =IF($I$53>19,0,IF($I$53=1,$B$7,IF($I$53=13,$B$7,0))) -> 0 | C20: =(('B2'!$C$26*$M$53)+($D$53*'C '!$G$16*1000*365))/1000000 -> 28.52552032 | D20: =IF($I$53>19,0,IF($I$53=1,$B$7,IF($I$53=13,$B$7,0))) -> 0 | E20: =(('B2'!$C$26*$M$53)+($D$53*'C '!$G$17*1000*365))/1000000 -> 28.99517752 | F20: =IF($I$53>19,0,IF($I$53=1,((('B2'!$C$26)*$G$53)/1000000),IF($I$53=13,((('B2'!$C$26)*$G$53)/1000000),0)))+N("Batteries")+IF($I$56>19,0,IF($I$56=1,((Data!AN104*G56)/1000000),IF($I$56=13,((Data!AN104*G56)/1000000),0))) -> 0 | G20: =(('B2'!$C$26*$M$53)+($M$56*Data!AN104)+($D$53*Data!CB134*12)+($D$56*Data!$BH$113*12))/1000000 -> 30.13675086 | H20: =IF($I$54>19,0,IF($I$54=1,$H$7,IF($I$54=13,$H$7,0))) -> 0 | I20: =(('B2'!$C$26*$M$54)+($D$54*'C '!$G$19*1000*365))/1000000 -> 24.81715198 | J20: =IF($I$54>19,0,IF($I$54=1,((('B2'!$C$26)*$G$54)/1000000),IF($I$54=13,((('B2'!$C$26)*$G$54)/1000000),0)))+N("Batteries")+IF($I$56>19,0,IF($I$56=1,((Data!AN142*G56)/1000000),IF($I$56=13,((Data!AN142*G56)/1000000),0))) -> 0 | K20: =(('B2'!$C$26*$M$53)+($M$56*Data!AN142)+($D$53*Data!CB172*12)+($D$56*Data!$BH$151*12))/1000000 -> 24.02040291 | L20: =IF($I$55>19,0,IF($I$55=1,F!G38,IF($I$55=13,F!G38,0)))+N("Batteries")+IF($I$56>19,0,IF($I$56=1,((Data!R349*G56)/1000000),IF($I$56=13,((Data!R349*G56)/1000000),0))) -> 0 | M20: =((F!$C$35*$M$55)+($M$56*Data!$R$349)+($D$55*Data!$Q$227*12)+($D$56*Data!$H$360*12))/1000000 -> 84.43181621 | N20: =IF($I$56>19,0,IF($I$56=1,$N$7,IF($I$56=13,$N$7,0))) -> 0 | O20: =((F!$G$44*$M$56)+($D$56*Data!$R$192*12))/1000000 -> 11.43304577
A21: 15 | B21: =IF($I$53>19,0,IF($I$53=1,$B$7,IF($I$53=14,$B$7,IF($I$53=7,$B$7,IF($I$53=2,$B$7,0))))) -> 0 | C21: =(('B2'!$C$26*$M$53)+($D$53*'C '!$G$16*1000*365))/1000000 -> 28.52552032 | D21: =IF($I$53>19,0,IF($I$53=1,$B$7,IF($I$53=14,$B$7,IF($I$53=7,$B$7,IF($I$53=2,$B$7,0))))) -> 0 | E21: =(('B2'!$C$26*$M$53)+($D$53*'C '!$G$17*1000*365))/1000000 -> 28.99517752 | F21: =IF($I$53>19,0,IF($I$53=1,((('B2'!$C$26)*$G$53)/1000000),IF($I$53=14,((('B2'!$C$26)*$G$53)/1000000),IF($I$53=7,((('B2'!$C$26)*$G$53)/1000000),IF($I$53=2,((('B2'!$C$26)*$G$53)/1000000),0)))))+N("Batteries")+IF($I$56>19,0,IF($I$56=1,((Data!AN104*G56)/1000000),IF($I$56=14,((Data!AN104*G56)/1000000),IF($I$56=7,((Data!AN104*G56)/1000000),IF($I$56=2,((Data!AN104*G56)/1000000),0))))) -> 0 | G21: =(('B2'!$C$26*$M$53)+($M$56*Data!AN104)+($D$53*Data!CB134*12)+($D$56*Data!$BH$113*12))/1000000 -> 30.13675086 | H21: =IF($I$54>19,0,IF($I$54=1,$H$7,IF($I$54=14,$H$7,IF($I$54=7,$H$7,IF($I$54=2,$H$7,0))))) -> 0 | I21: =(('B2'!$C$26*$M$54)+($D$54*'C '!$G$19*1000*365))/1000000 -> 24.81715198 | J21: =IF($I$54>19,0,IF($I$54=1,((('B2'!$C$26)*$G$54)/1000000),IF($I$54=14,((('B2'!$C$26)*$G$54)/1000000),IF($I$54=7,((('B2'!$C$26)*$G$54)/1000000),IF($I$54=2,((('B2'!$C$26)*$G$54)/1000000),0)))))+N("Batteries")+IF($I$56>19,0,IF($I$56=1,((Data!AN142*G56)/1000000),IF($I$56=14,((Data!AN142*G56)/1000000),IF($I$56=7,((Data!AN142*G56)/1000000),IF($I$56=2,((Data!AN142*G56)/1000000),0))))) -> 0 | K21: =(('B2'!$C$26*$M$53)+($M$56*Data!AN142)+($D$53*Data!CB172*12)+($D$56*Data!$BH$151*12))/1000000 -> 24.02040291 | L21: =IF($I$55>19,0,IF($I$55=1,F!G38,IF($I$55=14,F!G38,IF($I$55=7,F!G38,IF($I$53=2,F!G38,0)))))+N("Batteries")+IF($I$56>19,0,IF($I$56=1,((Data!R349*G56)/1000000),IF($I$56=14,((Data!R349*G56)/1000000),IF($I$56=7,((Data!R349*G56)/1000000),IF($I$56=2,((Data!R349*G56)/1000000),0))))) -> 0 | M21: =((F!$C$35*$M$55)+($M$56*Data!$R$349)+($D$55*Data!$Q$227*12)+($D$56*Data!$H$360*12))/1000000 -> 84.43181621 | N21: =IF($I$56>19,0,IF($I$56=1,$N$7,IF($I$56=14,$N$7,IF($I$56=7,$N$7,IF($I$56=2,$N$7,0))))) -> 0 | O21: =((F!$G$44*$M$56)+($D$56*Data!$R$192*12))/1000000 -> 11.43304577
A22: 16 | B22: =IF($I$53>19,0,IF($I$53=1,$B$7,IF($I$53=15,$B$7,IF($I$53=5,$B$7,IF($I$53=3,$B$7,0))))) -> 0 | C22: =(('B2'!$C$26*$M$53)+($D$53*'C '!$G$16*1000*365))/1000000 -> 28.52552032 | D22: =IF($I$53>19,0,IF($I$53=1,$B$7,IF($I$53=15,$B$7,IF($I$53=5,$B$7,IF($I$53=3,$B$7,0))))) -> 0 | E22: =(('B2'!$C$26*$M$53)+($D$53*'C '!$G$17*1000*365))/1000000 -> 28.99517752 | F22: =IF($I$53>19,0,IF($I$53=1,((('B2'!$C$26)*$G$53)/1000000),IF($I$53=15,((('B2'!$C$26)*$G$53)/1000000),IF($I$53=5,((('B2'!$C$26)*$G$53)/1000000),IF($I$53=3,((('B2'!$C$26)*$G$53)/1000000),0)))))+N("Batteries")+IF($I$56>19,0,IF($I$56=1,((Data!AN104*G56)/1000000),IF($I$56=15,((Data!AN104*G56)/1000000),IF($I$56=5,((Data!AN104*G56)/1000000),IF($I$56=3,((Data!AN104*G56)/1000000),0))))) -> 0 | G22: =(('B2'!$C$26*$M$53)+($M$56*Data!AN104)+($D$53*Data!CB134*12)+($D$56*Data!$BH$113*12))/1000000 -> 30.13675086 | H22: =IF($I$54>19,0,IF($I$54=1,$H$7,IF($I$54=15,$H$7,IF($I$54=5,$H$7,IF($I$54=3,$H$7,0))))) -> 0 | I22: =(('B2'!$C$26*$M$54)+($D$54*'C '!$G$19*1000*365))/1000000 -> 24.81715198 | J22: =IF($I$54>19,0,IF($I$54=1,((('B2'!$C$26)*$G$54)/1000000),IF($I$54=15,((('B2'!$C$26)*$G$54)/1000000),IF($I$54=5,((('B2'!$C$26)*$G$54)/1000000),IF($I$54=3,((('B2'!$C$26)*$G$54)/1000000),0)))))+N("Batteries")+IF($I$56>19,0,IF($I$56=1,((Data!AN142*G56)/1000000),IF($I$56=15,((Data!AN142*G56)/1000000),IF($I$56=5,((Data!AN142*G56)/1000000),IF($I$56=3,((Data!AN142*G56)/1000000),0))))) -> 0 | K22: =(('B2'!$C$26*$M$53)+($M$56*Data!AN142)+($D$53*Data!CB172*12)+($D$56*Data!$BH$151*12))/1000000 -> 24.02040291 | L22: =IF($I$55>19,0,IF($I$55=1,F!G38,IF($I$55=15,F!G38,IF($I$55=5,F!G38,IF($I$55=3,F!G38,0)))))+N("Batteries")+IF($I$56>19,0,IF($I$56=1,((Data!R349*G56)/1000000),IF($I$56=15,((Data!R349*G56)/1000000),IF($I$56=5,((Data!R349*G56)/1000000),IF($I$56=3,((Data!R349*G56)/1000000),0))))) -> 57.35 | M22: =((F!$C$35*$M$55)+($M$56*Data!$R$349)+($D$55*Data!$Q$227*12)+($D$56*Data!$H$360*12))/1000000 -> 84.43181621 | N22: =IF($I$56>19,0,IF($I$56=1,$N$7,IF($I$56=15,$N$7,IF($I$56=5,$N$7,IF($I$56=3,$N$7,0))))) -> 0 | O22: =((F!$G$44*$M$56)+($D$56*Data!$R$192*12))/1000000 -> 11.43304577
A23: 17 | B23: =IF($I$53>19,0,IF($I$53=1,$B$7,IF($I$53=16,$B$7,IF($I$53=4,$B$7,IF($I$53=2,$B$7,IF($I$53=8,$B$7,0)))))) -> 0 | C23: =(('B2'!$C$26*$M$53)+($D$53*'C '!$G$16*1000*365))/1000000 -> 28.52552032 | D23: =IF($I$53>19,0,IF($I$53=1,$B$7,IF($I$53=16,$B$7,IF($I$53=4,$B$7,IF($I$53=2,$B$7,IF($I$53=8,$B$7,0)))))) -> 0 | E23: =(('B2'!$C$26*$M$53)+($D$53*'C '!$G$17*1000*365))/1000000 -> 28.99517752 | F23: =IF($I$53>19,0,IF($I$53=1,((('B2'!$C$26)*$G$53)/1000000),IF($I$53=16,((('B2'!$C$26)*$G$53)/1000000),IF($I$53=4,((('B2'!$C$26)*$G$53)/1000000),IF($I$53=2,((('B2'!$C$26)*$G$53)/1000000),IF($I$53=8,((('B2'!$C$26)*$G$53)/1000000),0))))))+N("Batteries")+IF($I$56>19,0,IF($I$56=1,((Data!AN104*G56)/1000000),IF($I$56=16,((Data!AN104*G56)/1000000),IF($I$56=4,((Data!AN104*G56)/1000000),IF($I$56=2,((Data!AN104*G56)/1000000),IF($I$56=8,((Data!AN104*G56)/1000000),0)))))) -> 0 | G23: =(('B2'!$C$26*$M$53)+($M$56*Data!AN104)+($D$53*Data!CB134*12)+($D$56*Data!$BH$113*12))/1000000 -> 30.13675086 | H23: =IF($I$54>19,0,IF($I$54=1,$H$7,IF($I$54=16,$H$7,IF($I$54=4,$H$7,IF($I$54=2,$H$7,IF($I$54=8,$H$7,0)))))) -> 0 | I23: =(('B2'!$C$26*$M$54)+($D$54*'C '!$G$19*1000*365))/1000000 -> 24.81715198 | J23: =IF($I$54>19,0,IF($I$54=1,((('B2'!$C$26)*$G$54)/1000000),IF($I$54=16,((('B2'!$C$26)*$G$54)/1000000),IF($I$54=4,((('B2'!$C$26)*$G$54)/1000000),IF($I$54=2,((('B2'!$C$26)*$G$54)/1000000),IF($I$54=8,((('B2'!$C$26)*$G$54)/1000000),0))))))+N("Batteries")+IF($I$56>19,0,IF($I$56=1,((Data!AN142*G56)/1000000),IF($I$56=16,((Data!AN142*G56)/1000000),IF($I$56=4,((Data!AN142*G56)/1000000),IF($I$56=2,((Data!AN142*G56)/1000000),IF($I$56=8,((Data!AN142*G56)/1000000),0)))))) -> 0 | K23: =(('B2'!$C$26*$M$53)+($M$56*Data!AN142)+($D$53*Data!CB172*12)+($D$56*Data!$BH$151*12))/1000000 -> 24.02040291 | L23: =IF($I$55>19,0,IF($I$55=1,F!G38,IF($I$55=16,F!G38,IF($I$55=4,F!G38,IF($I$55=2,F!G38,IF($I$55=8,F!G38,0))))))+N("Batteries")+IF($I$56>19,0,IF($I$56=1,((Data!R349*G56)/1000000),IF($I$56=16,((Data!R349*G56)/1000000),IF($I$56=4,((Data!R349*G56)/1000000),IF($I$56=2,((Data!R349*G56)/1000000),IF($I$56=8,((Data!R349*G56)/1000000),0)))))) -> 0 | M23: =((F!$C$35*$M$55)+($M$56*Data!$R$349)+($D$55*Data!$Q$227*12)+($D$56*Data!$H$360*12))/1000000 -> 84.43181621 | N23: =IF($I$56>19,0,IF($I$56=1,$N$7,IF($I$56=16,$N$7,IF($I$56=4,$N$7,IF($I$56=2,$N$7,IF($I$56=8,$N$7,0)))))) -> 0 | O23: =((F!$G$44*$M$56)+($D$56*Data!$R$192*12))/1000000 -> 11.43304577
A24: 18 | B24: =IF($I$53>19,0,IF($I$53=1,$B$7,IF($I$53=17,$B$7,0))) -> 0 | C24: =(('B2'!$C$26*$M$53)+($D$53*'C '!$G$16*1000*365))/1000000 -> 28.52552032 | D24: =IF($I$53>19,0,IF($I$53=1,$B$7,IF($I$53=17,$B$7,0))) -> 0 | E24: =(('B2'!$C$26*$M$53)+($D$53*'C '!$G$17*1000*365))/1000000 -> 28.99517752 | F24: =IF($I$53>19,0,IF($I$53=1,((('B2'!$C$26)*$G$53)/1000000),IF($I$53=17,((('B2'!$C$26)*$G$53)/1000000),0)))+N("Batteries")+IF($I$56>19,0,IF($I$56=1,((Data!AN104*G56)/1000000),IF($I$56=17,((Data!AN104*G56)/1000000),0))) -> 0 | G24: =(('B2'!$C$26*$M$53)+($M$56*Data!AN104)+($D$53*Data!CB134*12)+($D$56*Data!$BH$113*12))/1000000 -> 30.13675086 | H24: =IF($I$54>19,0,IF($I$54=1,$H$7,IF($I$54=17,$H$7,0))) -> 0 | I24: =(('B2'!$C$26*$M$54)+($D$54*'C '!$G$19*1000*365))/1000000 -> 24.81715198 | J24: =IF($I$54>19,0,IF($I$54=1,((('B2'!$C$26)*$G$54)/1000000),IF($I$54=17,((('B2'!$C$26)*$G$54)/1000000),0)))+N("Batteries")+IF($I$56>19,0,IF($I$56=1,((Data!AN142*G56)/1000000),IF($I$56=17,((Data!AN142*G56)/1000000),0))) -> 0 | K24: =(('B2'!$C$26*$M$53)+($M$56*Data!AN142)+($D$53*Data!CB172*12)+($D$56*Data!$BH$151*12))/1000000 -> 24.02040291 | L24: =IF($I$55>19,0,IF($I$55=1,F!G38,IF($I$55=17,F!G38,0)))+N("Batteries")+IF($I$56>19,0,IF($I$56=1,((Data!R349*G56)/1000000),IF($I$56=17,((Data!R349*G56)/1000000),0))) -> 0 | M24: =((F!$C$35*$M$55)+($M$56*Data!$R$349)+($D$55*Data!$Q$227*12)+($D$56*Data!$H$360*12))/1000000 -> 84.43181621 | N24: =IF($I$56>19,0,IF($I$56=1,$N$7,IF($I$56=17,$N$7,0))) -> 0 | O24: =((F!$G$44*$M$56)+($D$56*Data!$R$192*12))/1000000 -> 11.43304577
A25: 19 | B25: =IF($I$53>19,0,IF($I$53=1,$B$7,IF($I$53=18,$B$7,IF($I$53=9,$B$7,IF($I$53=6,$B$7,IF($I$53=3,$B$7,IF($I$53=2,$B$7,0))))))) -> 0 | C25: =(('B2'!$C$26*$M$53)+($D$53*'C '!$G$16*1000*365))/1000000 -> 28.52552032 | D25: =IF($I$53>19,0,IF($I$53=1,$B$7,IF($I$53=18,$B$7,IF($I$53=9,$B$7,IF($I$53=6,$B$7,IF($I$53=3,$B$7,IF($I$53=2,$B$7,0))))))) -> 0 | E25: =(('B2'!$C$26*$M$53)+($D$53*'C '!$G$17*1000*365))/1000000 -> 28.99517752 | F25: =IF($I$53>19,0,IF($I$53=1,((('B2'!$C$26)*$G$53)/1000000),IF($I$53=18,((('B2'!$C$26)*$G$53)/1000000),IF($I$53=9,((('B2'!$C$26)*$G$53)/1000000),IF($I$53=6,((('B2'!$C$26)*$G$53)/1000000),IF($I$53=3,((('B2'!$C$26)*$G$53)/1000000),IF($I$53=2,((('B2'!$C$26)*$G$53)/1000000),0)))))))+N("Batteries")+IF($I$56>19,0,IF($I$56=1,((Data!AN104*G56)/1000000),IF($I$56=18,((Data!AN104*G56)/1000000),IF($I$56=9,((Data!AN104*G56)/1000000),IF($I$56=6,((Data!AN104*G56)/1000000),IF($I$56=3,((Data!AN104*G56)/1000000),IF($I$56=2,((Data!AN104*G56)/1000000),0))))))) -> 0 | G25: =(('B2'!$C$26*$M$53)+($M$56*Data!AN104)+($D$53*Data!CB134*12)+($D$56*Data!$BH$113*12))/1000000 -> 30.13675086 | H25: =IF($I$54>19,0,IF($I$54=1,$H$7,IF($I$54=18,$H$7,IF($I$54=9,$H$7,IF($I$54=6,$H$7,IF($I$54=3,$H$7,IF($I$54=2,$H$7,0))))))) -> 0 | I25: =(('B2'!$C$26*$M$54)+($D$54*'C '!$G$19*1000*365))/1000000 -> 24.81715198 | J25: =IF($I$54>19,0,IF($I$54=1,((('B2'!$C$26)*$G$54)/1000000),IF($I$54=18,((('B2'!$C$26)*$G$54)/1000000),IF($I$54=9,((('B2'!$C$26)*$G$54)/1000000),IF($I$54=6,((('B2'!$C$26)*$G$54)/1000000),IF($I$54=3,((('B2'!$C$26)*$G$54)/1000000),IF($I$54=2,((('B2'!$C$26)*$G$54)/1000000),0)))))))+N("Batteries")+IF($I$56>19,0,IF($I$56=1,((Data!AN142*G56)/1000000),IF($I$56=18,((Data!AN142*G56)/1000000),IF($I$56=9,((Data!AN142*G56)/1000000),IF($I$56=6,((Data!AN142*G56)/1000000),IF($I$56=3,((Data!AN142*G56)/1000000),IF($I$56=2,((Data!AN142*G56)/1000000),0))))))) -> 0 | K25: =(('B2'!$C$26*$M$53)+($M$56*Data!AN142)+($D$53*Data!CB172*12)+($D$56*Data!$BH$151*12))/1000000 -> 24.02040291 | L25: =IF($I$55>19,0,IF($I$55=1,F!G38,IF($I$55=18,F!G38,IF($I$55=9,F!G38,IF($I$55=6,F!G38,IF($I$55=3,F!G38,IF($I$55=2,F!G38,0)))))))+N("Batteries")+IF($I$56>19,0,IF($I$56=1,((Data!R349*G56)/1000000),IF($I$56=18,((Data!R349*G56)/1000000),IF($I$56=9,((Data!R349*G56)/1000000),IF($I$56=6,((Data!R349*G56)/1000000),IF($I$56=3,((Data!R349*G56)/1000000),IF($I$56=2,((Data!R349*G56)/1000000),0))))))) -> 57.35 | M25: =((F!$C$35*$M$55)+($M$56*Data!$R$349)+($D$55*Data!$Q$227*12)+($D$56*Data!$H$360*12))/1000000 -> 84.43181621 | N25: =IF($I$56>19,0,IF($I$56=1,$N$7,IF($I$56=18,$N$7,IF($I$56=9,$N$7,IF($I$56=6,$N$7,IF($I$56=3,$N$7,IF($I$56=2,$N$7,0))))))) -> 0 | O25: =((F!$G$44*$M$56)+($D$56*Data!$R$192*12))/1000000 -> 11.43304577
A26: 20 | B26: =IF($I$53>19,0,IF($I$53=1,$B$7,IF($I$53=19,$B$7,0))) -> 0 | C26: =(('B2'!$C$26*$M$53)+($D$53*'C '!$G$16*1000*365))/1000000 -> 28.52552032 | D26: =IF($I$53>19,0,IF($I$53=1,$B$7,IF($I$53=19,$B$7,0))) -> 0 | E26: =(('B2'!$C$26*$M$53)+($D$53*'C '!$G$17*1000*365))/1000000 -> 28.99517752 | F26: =IF($I$53>19,0,IF($I$53=1,((('B2'!$C$26)*$G$53)/1000000),IF($I$53=19,((('B2'!$C$26)*$G$53)/1000000),0)))+N("Batteries")+IF($I$56>19,0,IF($I$56=1,((Data!AN104*G56)/1000000),IF($I$56=19,((Data!AN104*G56)/1000000),0))) -> 0 | G26: =(('B2'!$C$26*$M$53)+($M$56*Data!AN104)+($D$53*Data!CB134*12)+($D$56*Data!$BH$113*12))/1000000 -> 30.13675086 | H26: =IF($I$54>19,0,IF($I$54=1,$H$7,IF($I$54=19,$H$7,0))) -> 0 | I26: =(('B2'!$C$26*$M$54)+($D$54*'C '!$G$19*1000*365))/1000000 -> 24.81715198 | J26: =IF($I$54>19,0,IF($I$54=1,((('B2'!$C$26)*$G$54)/1000000),IF($I$54=19,((('B2'!$C$26)*$G$54)/1000000),0)))+N("Batteries")+IF($I$56>19,0,IF($I$56=1,((Data!AN142*G56)/1000000),IF($I$56=19,((Data!AN142*G56)/1000000),0))) -> 0 | K26: =(('B2'!$C$26*$M$53)+($M$56*Data!AN142)+($D$53*Data!CB172*12)+($D$56*Data!$BH$151*12))/1000000 -> 24.02040291 | L26: =IF($I$55>19,0,IF($I$55=1,F!G38,IF($I$55=19,F!G38,0)))+N("Batteries")+IF($I$56>19,0,IF($I$56=1,((Data!R349*G56)/1000000),IF($I$56=19,((Data!R349*G56)/1000000),0))) -> 0 | M26: =((F!$C$35*$M$55)+($M$56*Data!$R$349)+($D$55*Data!$Q$227*12)+($D$56*Data!$H$360*12))/1000000 -> 84.43181621 | N26: =IF($I$56>19,0,IF($I$56=1,$N$7,IF($I$56=19,$N$7,0))) -> 0 | O26: =((F!$G$44*$M$56)+($D$56*Data!$R$192*12))/1000000 -> 11.43304577
A28: Costs | C28: =Data!E447 -> 314.3493014 | E28: =Data!G447 -> 319.3248564 | G28: =Data!I447 -> 399.4111362 | I28: =Data!K447 -> 303.411704 | K28: =Data!M447 -> 361.1398916 | M28: =Data!O447 -> 1115.772958 | O28: =Data!Q447 -> 555.0940168
B52: Average price | D52: NOK | G52: NOK | I52: MNOK | M52: NOK
A53: MGO | B53: Price per kWh | D53: 0.58 | E53: Price per kW | G53: 3000 | H53: Lifetime | I53: 20 | J53: Maintenance per year per kW | M53: 0
A54: LNG | B54: Price per kWh | D54: 0.58 | E54: Price per kW | G54: 10000 | H54: Lifetime | I54: 20 | J54: Maintenance per year per kW | M54: 0
A55: Hydrogen | B55: Price per kWh | D55: 2.28 | E55: Price per kW | G55: 13000 | H55: Lifetime | I55: =F!C37 -> 3 | J55: Maintenance per year per kW | M55: 0
A56: Batteries | B56: Price per kWh | D56: 0.57 | E56: Price per kWh | G56: 5460 | H56: Lifetime | I56: 10 | J56: Maintenance per year per kWh | M56: 0
B59: Interest | C59: 0.07

Sheet Data
A2: Indicator | B2: m3 | C2: kW @ 12 knots | D2: Deadweight | E2: Lightweight | F2: Standby in harbour | G2: Standy in harbour, propulsion | H2: Pulling out | I2: Pulling out, propulsion | J2: Transit without cargo, eco | K2: Transit without cargo, eco, propulsion | L2: Transit without cargo, full | M2: Transit without cargo, full, propulsion | N2: Transit with cargo, eco | O2: Transit with cargo, eco, propulsion | P2: Transit with cargo, full | Q2: Transit with cargo, full, propulsion | R2: Approaching | S2: Approaching, propulsion | T2: Caro Operations | U2: Cargo operations, propulsion | V2: Manoeuvring | W2: Manoeuvring, propulsions | X2: Tankwash | Y2: Tankwash, propulsion | Z2: Waiting on facility | AA2: Waiting on facility, propulsion | AB2: Operational STBY | AC2: Operational STBY, propulsion | AD2: Column1 | AE2: Column2 | AF2: Column3 | AG2: Column4 | AH2: Column5
A3: 1 | B3: 3250 | C3: 800 | F3: 280 | G3: 0 | H3: 1500 | I3: 1220 | J3: 1500 | K3: 1200 | L3: 2600 | M3: 2450 | N3: 2300 | O3: 2000 | P3: 2600 | Q3: 2000 | R3: 2600 | T3: 2450 | V3: 2300 | X3: 2000 | Z3: 2600 | AB3: 2000
B4: 7450 | C4: 1600
C10: Manual | J10: Diesel Var. | K10: Diesel const | L10: Diesel-Battery | N10: LNG Const | P10: LNG-Battery | R10: Batteries | T10: Hydrogen
C11: Automatic | H11: Generator | J11: =IF(F!C6=2,"1",1-'B2'!$B$30) -> 1 | K11: =IF(F!E6=2,"1",1-'B2'!$B$30) -> 1 | L11: =IF(F!G6=2,"1",1-'B2'!$B$30) -> 0.95 | N11: =IF(F!I6=2,"1",1-'B2'!$B$30) -> 0.95 | P11: =IF(F!K6=2,"1",1-'B2'!$B$30) -> 0.95 | R11: =IF(F!L6=2,"1",1-'B2'!$B$30) -> 1 | T11: =IF(F!M6=2,"1",1-'B2'!$B$30) -> 1
A12: Indicator | B12: Connected to shore | H12: Drives/Converter | J12: =IF(F!C7=2,"1",1-'B2'!$D$30) -> 1 | K12: =IF(F!E7=2,"1",1-'B2'!$D$30) -> 1 | L12: =IF(F!G7=2,"1",1-'B2'!$D$30) -> 0.95 | N12: =IF(F!I7=2,"1",1-'B2'!$B$30) -> 0.95 | P12: =IF(F!K7=2,"1",1-'B2'!$B$30) -> 0.95 | R12: =IF(F!L7=2,"1",1-'B2'!$B$30) -> 0.95 | T12: =IF(F!M7=2,"1",1-'B2'!$B$30) -> 0.95
A13: 1 | B13: yes | H13: Cabling | J13: =IF(F!C8=2,"1",1-'B2'!$L$30) -> 1 | K13: =IF(F!E8=2,"1",1-'B2'!$L$30) -> 1 | L13: =IF(F!G8=2,"1",1-'B2'!$L$30) -> 0.97 | N13: =IF(F!I8=2,"1",1-'B2'!$L$30) -> 0.97 | P13: =IF(F!K8=2,"1",1-'B2'!$L$30) -> 0.97 | R13: =IF(F!L8=2,"1",1-'B2'!$L$30) -> 0.97 | T13: =IF(F!M8=2,"1",1-'B2'!$L$30) -> 0.97
B14: no | H14: Switchboard | J14: =IF(F!C9=2,"1",1-'B2'!$H$30) -> 1 | K14: =IF(F!E9=2,"1",1-'B2'!$H$30) -> 1 | L14: =IF(F!G9=2,"1",1-'B2'!$H$30) -> 0.97 | N14: =IF(F!I9=2,"1",1-'B2'!$B$30) -> 0.95 | P14: =IF(F!K9=2,"1",1-'B2'!$B$30) -> 0.95 | R14: =IF(F!L9=2,"1",1-'B2'!$B$30) -> 0.95 | T14: =IF(F!M9=2,"1",1-'B2'!$B$30) -> 0.95
H15: El-motors | J15: =IF(F!C10=2,"1",1-'B2'!$J$30) -> 1 | K15: =IF(F!E10=2,"1",1-'B2'!$J$30) -> 1 | L15: =IF(F!G10=2,"1",1-'B2'!$J$30) -> 0.941 | N15: =IF(F!I10=2,"1",1-'B2'!$B$30) -> 0.95 | P15: =IF(F!K10=2,"1",1-'B2'!$B$30) -> 0.95 | R15: =IF(F!L10=2,"1",1-'B2'!$B$30) -> 0.95 | T15: =IF(F!M10=2,"1",1-'B2'!$B$30) -> 0.95
H16: DC/DC converters | J16: =IF(F!C11=2,"1",1-'B2'!$F$30) -> 1 | K16: =IF(F!E11=2,"1",1-'B2'!$F$30) -> 1 | L16: =IF(F!G11=2,"1",1-'B2'!$F$30) -> 1 | N16: =IF(F!I11=2,"1",1-'B2'!$F$30) -> 1 | P16: =IF(F!K11=2,"1",1-'B2'!$F$30) -> 1 | R16: =IF(F!L11=2,"1",1-'B2'!$F$30) -> 1 | T16: =IF(F!M11=2,"1",1-'B2'!$F$30) -> 0.95
B17: Sea margin level | H17: Gear | J17: =IF(F!C12=2,"1",1-'B2'!$K$30) -> 0.95 | K17: =IF(F!E12=2,"1",1-'B2'!$K$30) -> 0.95 | L17: =IF(F!G12=2,"1",1-'B2'!$K$30) -> 0.95 | N17: =IF(F!I12=2,"1",1-'B2'!$K$30) -> 1 | P17: =IF(F!K12=2,"1",1-'B2'!$K$30) -> 1 | R17: =IF(F!L12=2,"1",1-'B2'!$K$30) -> 0.95 | T17: =IF(F!M12=2,"1",1-'B2'!$K$30) -> 0.95
A18: Indicator | B18: 1
A19: 1 | B19: 2 | I19: Overall | J19: =J11*J12*J13*J14*J15*J16*J17 -> 0.95 | K19: =K11*K12*K13*K14*K15*K16*K17 -> 0.95 | L19: =L11*L12*L13*L14*L15*L16*L17 -> 0.7591085934 | N19: =N11*N12*N13*N14*N15*N16*N17 -> 0.7900710625 | P19: 0.7900710625 | R19: 0.7900710625 | T19: 0.7505675094
A20: 2 | B20: 3
B21: 4
J22: Diesel Var. | K22: Diesel const | L22: Diesel-Battery | N22: LNG Const | P22: LNG-Battery | R22: Batteries | T22: Hydrogen
B23: Admiralty coefficient calculations | I23: Generator | J23: =IF(F!C18=2,"1",1-'B2'!$B$30) -> 0.95 | K23: =IF(F!E18=2,"1",1-'B2'!$B$30) -> 0.95 | L23: =IF(F!G18=2,"1",1-'B2'!$B$30) -> 0.95 | N23: =IF(F!I18=2,"1",1-'B2'!$B$30) -> 0.95 | P23: =IF(F!K18=2,"1",1-'B2'!$B$30) -> 0.95 | R23: =IF(F!L18=2,"1",1-'B2'!$B$30) -> 1 | T23: =IF(F!M18=2,"1",1-'B2'!$B$30) -> 1
B24: Speed | C24: Power | I24: Drives/converter | J24: =IF(F!C19=2,"1",1-'B2'!$D$30) -> 0.95 | K24: =IF(F!E19=2,"1",1-'B2'!$B$30) -> 0.95 | L24: =IF(F!G19=2,"1",1-'B2'!$B$30) -> 0.95 | N24: =IF(F!I19=2,"1",1-'B2'!$B$30) -> 0.95 | P24: =IF(F!K19=2,"1",1-'B2'!$B$30) -> 0.95 | R24: =IF(F!L19=2,"1",1-'B2'!$B$30) -> 0.95 | T24: =IF(F!M19=2,"1",1-'B2'!$B$30) -> 0.95
B25: 1 | C25: =((B25^3)*'B2'!$C$27)/('B2'!$C$18^3) -> 0.9259259259 | I25: Cabling | J25: =IF(F!C20=2,"1",1-'B2'!$L$30) -> 0.97 | K25: =IF(F!E20=2,"1",1-'B2'!$L$30) -> 0.97 | L25: =IF(F!G20=2,"1",1-'B2'!$L$30) -> 0.97 | N25: =IF(F!I20=2,"1",1-'B2'!$L$30) -> 0.97 | P25: =IF(F!K20=2,"1",1-'B2'!$L$30) -> 0.97 | R25: =IF(F!L20=2,"1",1-'B2'!$L$30) -> 0.97 | T25: =IF(F!M20=2,"1",1-'B2'!$L$30) -> 0.97
B26: 2 | C26: =((B26^3)*'B2'!$C$27)/('B2'!$C$18^3) -> 7.407407407 | I26: Switchboard | J26: =IF(F!C21=2,"1",1-'B2'!$H$30) -> 0.97 | K26: =IF(F!E21=2,"1",1-'B2'!$B$30) -> 0.95 | L26: =IF(F!G21=2,"1",1-'B2'!$B$30) -> 0.95 | N26: =IF(F!I21=2,"1",1-'B2'!$B$30) -> 0.95 | P26: =IF(F!K21=2,"1",1-'B2'!$B$30) -> 0.95 | R26: =IF(F!L21=2,"1",1-'B2'!$B$30) -> 0.95 | T26: =IF(F!M21=2,"1",1-'B2'!$B$30) -> 0.95
B27: 3 | C27: =((B27^3)*'B2'!$C$27)/('B2'!$C$18^3) -> 25 | I27: DC/DC Converters | J27: =IF(F!C22=2,"1",1-'B2'!$F$30) -> 0.95 | K27: =IF(F!E22=2,"1",1-'B2'!$F$30) -> 1 | L27: =IF(F!G22=2,"1",1-'B2'!$F$30) -> 0.95 | N27: =IF(F!I22=2,"1",1-'B2'!$F$30) -> 0.95 | P27: =IF(F!K22=2,"1",1-'B2'!$F$30) -> 0.95 | R27: =IF(F!L22=2,"1",1-'B2'!$F$30) -> 0.95 | T27: =IF(F!M22=2,"1",1-'B2'!$F$30) -> 0.95
B28: 4 | C28: =((B28^3)*'B2'!$C$27)/('B2'!$C$18^3) -> 59.25925926 | I28: ='B2'!M29 -> Open | J28: =IF(F!C23=2,"1",1-'B2'!$M$32) -> 1 | K28: =IF(F!E23=2,"1",1-'B2'!$M$32) -> 1 | L28: =IF(F!G23=2,"1",1-'B2'!$M$32) -> 1 | N28: =IF(F!I23=2,"1",1-'B2'!$M$32) -> 1 | P28: =IF(F!K23=2,"1",1-'B2'!$M$32) -> 1 | R28: =IF(F!L23=2,"1",1-'B2'!$M$32) -> 1 | T28: =IF(F!M23=2,"1",1-'B2'!$M$32) -> 1
B29: 5 | C29: =((B29^3)*'B2'!$C$27)/('B2'!$C$18^3) -> 115.7407407 | E29: LINEST FUNCTION
B30: 6 | C30: =((B30^3)*'B2'!$C$27)/('B2'!$C$18^3) -> 200 | E30: x3 | F30: x2 | G30: x | H30: const | J30: =J23*J24*J25*J26*J28*J27 -> 0.8067041375 | K30: =K23*K24*K25*K26*K28*K27 -> 0.83165375 | L30: 0.7900710625 | N30: 0.7900710625 | P30: 0.7900710625 | R30: 0.83165375 | T30: 0.83165375
B31: 7 | C31: =((B31^3)*'B2'!$C$27)/('B2'!$C$18^3) -> 317.5925926 | E31: =LINEST(C25:C44,B25:B44^{1,2,3},TRUE,FALSE) -> 0.9259259259 | F31: -2.283334185e-14 | G31: 2.47260021e-13 | H31: -2.273736754e-13
B32: 8 | C32: =((B32^3)*'B2'!$C$27)/('B2'!$C$18^3) -> 474.0740741
B33: 9 | C33: =((B33^3)*'B2'!$C$27)/('B2'!$C$18^3) -> 675 | J33: Design route (Optional)
B34: 10 | C34: =((B34^3)*'B2'!$C$27)/('B2'!$C$18^3) -> 925.9259259 | J34: Pulling out | M34: ='B2'!E13 -> 1500 | N34: kW | O34: 5 | P34: min | Q34: =(O34/60)*M34 -> 125 | R34: kWh
B35: 11 | C35: =((B35^3)*'B2'!$C$27)/('B2'!$C$18^3) -> 1232.407407 | J35: Transit without cargo, ECO | M35: ='B2'!E14 -> 1500 | N35: kW | O35: ='B1'!K18 -> 300 | P35: min | Q35: =(O35/60)*M35 -> 7500 | R35: kWh
B36: 12 | C36: =((B36^3)*'B2'!$C$27)/('B2'!$C$18^3) -> 1600 | J36: Transit without cargo, FULL | M36: ='B2'!E15 -> 2300 | N36: kW | O36: ='B1'!K19 -> 0 | P36: min | Q36: 0 | R36: kWh
B37: 13 | C37: =((B37^3)*'B2'!$C$27)/('B2'!$C$18^3) -> 2034.259259 | J37: Transit with cargo, ECO | M37: ='B2'!I12 -> 2000 | N37: kW | O37: ='B1'!K20 -> 600 | P37: min | Q37: 20000 | R37: kWh
B38: 14 | C38: =((B38^3)*'B2'!$C$27)/('B2'!$C$18^3) -> 2540.740741 | J38: Transit with cargo, FULL | M38: ='B2'!I13 -> 2600 | N38: kW | O38: ='B1'!K21 -> 0 | P38: min | Q38: 0 | R38: kWh
B39: 15 | C39: =((B39^3)*'B2'!$C$27)/('B2'!$C$18^3) -> 3125 | J39: Approaching | M39: ='B2'!I14 -> 2000 | N39: kW | O39: ='B1'!K22 -> 20 | P39: min | Q39: 666.6666667 | R39: kWh
B40: 16 | C40: =((B40^3)*'B2'!$C$27)/('B2'!$C$18^3) -> 3792.592593 | J40: Cargo Operations | M40: ='B2'!I15 -> 2450 | N40: kW | O40: ='B1'!K23 -> 120 | P40: min | Q40: 4900 | R40: kWh
B41: 17 | C41: =((B41^3)*'B2'!$C$27)/('B2'!$C$18^3) -> 4549.074074 | J41: Manoeuvring | M41: ='B2'!M12 -> 2300 | N41: kW | O41: ='B1'!K24 -> 40 | P41: min | Q41: 1533.333333 | R41: kWh
B42: 18 | C42: =((B42^3)*'B2'!$C$27)/('B2'!$C$18^3) -> 5400 | J42: Tankwash | M42: ='B2'!M13 -> 1000 | N42: kW | O42: ='B1'!K25 -> 60 | P42: min | Q42: 1000 | R42: kWh
B43: 19 | C43: =((B43^3)*'B2'!$C$27)/('B2'!$C$18^3) -> 6350.925926 | J43: Waiting on facility | M43: ='B2'!M14 -> 1000 | N43: kW | O43: ='B1'!K26 -> 30 | P43: min | Q43: 500 | R43: kWh
B44: 20 | C44: =((B44^3)*'B2'!$C$27)/('B2'!$C$18^3) -> 7407.407407 | J44: Operational STBY | M44: ='B2'!M15 -> 1000 | N44: kW | O44: ='B1'!K27 -> 0 | P44: min | Q44: 0 | R44: kWh
J45: Routes per day | M45: ='B1'!K28 -> 0 | N45: n | Q45: =SUM(Q34:Q44) -> 36225
A48: Results calculations
D49: Hours per month | E49: kW | F49: For propulsion | G49: For elecricity | H49: For propulsion with sea margin | I49: Max power for powertrain dimension
A50: ='B1'!A12:C12 -> Standby in Harbour | D50: ='B1'!E12 -> 72 | E50: ='B2'!E12 -> 280 | F50: ='B2'!E35 -> 0 | G50: =E50-F50 -> 280 | H50: =F50+(F50*'B2'!$H$18) -> 0 | I50: =F50+(F50*'B2'!$H$19) -> 0
A51: ='B1'!A13:C13 -> Pulling out | D51: ='B1'!E13 -> 8 | E51: ='B2'!E13 -> 1500 | F51: ='B2'!E36 -> 1300 | G51: =E51-F51 -> 200 | H51: =F51+(F51*'B2'!$H$18) -> 1365 | I51: =F51+(F51*'B2'!$H$19) -> 1820
A52: ='B1'!A14:C14 -> Transit without cargo, ECO | D52: ='B1'!E14 -> 150 | E52: ='B2'!E14 -> 1500 | F52: ='B2'!E37 -> 1100 | G52: 400 | H52: =F52+(F52*'B2'!$H$18) -> 1155 | I52: =F52+(F52*'B2'!$H$19) -> 1540
A53: ='B1'!A15:C15 -> Transit without cargo, FULL | D53: ='B1'!E15 -> 30 | E53: ='B2'!E15 -> 2300 | F53: ='B2'!E38 -> 2000 | G53: 300 | H53: =F53+(F53*'B2'!$H$18) -> 2100 | I53: =F53+(F53*'B2'!$H$19) -> 2800
A54: ='B1'!A16:C16 -> Transit with cargo, ECO | D54: ='B1'!E16 -> 150 | E54: ='B2'!I12 -> 2000 | F54: ='B2'!I35 -> 1700 | G54: 300 | H54: =F54+(F54*'B2'!$H$18) -> 1785 | I54: =F54+(F54*'B2'!$H$19) -> 2380
A55: ='B1'!A17:C17 -> Transit with cargo, FULL | D55: ='B1'!E17 -> 30 | E55: ='B2'!I13 -> 2600 | F55: ='B2'!I36 -> 2500 | G55: 100 | H55: =F55+(F55*'B2'!$H$18) -> 2625 | I55: =F55+(F55*'B2'!$H$19) -> 3500
A56: ='B1'!A18:C18 -> Approaching | D56: ='B1'!E18 -> 8 | E56: ='B2'!I14 -> 2000 | F56: ='B2'!I37 -> 1700 | G56: 300 | H56: =F56+(F56*'B2'!$H$18) -> 1785 | I56: =F56+(F56*'B2'!$H$19) -> 2380
A57: ='B1'!A19:C19 -> Cargo Operations | D57: ='B1'!E19 -> 200 | E57: ='B2'!I15 -> 2450 | F57: ='B2'!I38 -> 0 | G57: 2450 | H57: =F57+(F57*'B2'!$H$18) -> 0 | I57: =F57+(F57*'B2'!$H$19) -> 0
A58: ='B1'!A20:C20 -> Manoeuvring | D58: ='B1'!E20 -> 19 | E58: ='B2'!M12 -> 2300 | F58: ='B2'!M35 -> 1200 | G58: 1100 | H58: =F58+(F58*'B2'!$H$18) -> 1260 | I58: =F58+(F58*'B2'!$H$19) -> 1680
A59: ='B1'!A21:C21 -> Tankwash | D59: ='B1'!E21 -> 47 | E59: ='B2'!M13 -> 1000 | F59: ='B2'!M36 -> 300 | G59: 700 | H59: =F59+(F59*'B2'!$H$18) -> 315 | I59: =F59+(F59*'B2'!$H$19) -> 420
A60: ='B1'!A22:C22 -> Waiting on facility | D60: ='B1'!E22 -> 10 | E60: ='B2'!M14 -> 1000 | F60: ='B2'!M37 -> 400 | G60: 600 | H60: =F60+(F60*'B2'!$H$18) -> 420 | I60: =F60+(F60*'B2'!$H$19) -> 560
A61: ='B1'!A23:C23 -> Operational STBY | D61: ='B1'!E23 -> 20 | E61: ='B2'!M15 -> 1000 | F61: ='B2'!M38 -> 400 | G61: 600 | H61: =F61+(F61*'B2'!$H$18) -> 420 | I61: =F61+(F61*'B2'!$H$19) -> 560
A63: Diesel Variable RPM
C64: Const | D64: x | E64: x2 | F64: x3 | G64: x4 | H64: x5 | I64: x6 | M64: Diesel oil | N64: 11.97 | O64: kWh/kg
A65: Diesel variable rpm | C65: =F!C29 -> 0.3099 | D65: =F!D29 -> 0.58 | E65: =F!E29 -> -4.0844 | F65: =F!F29 -> 15.441 | G65: =F!G29 -> -29.665 | H65: =F!H29 -> 27.841 | I65: =F!I29 -> -10.15
D66: kW | E66: =F49 -> For propulsion | F66: For elecricity | G66: For propulsion with sea margin | H66: Max power for powertrain dimension | I66: For propulsion, incl losses | J66: For Electricity, incl losses | K66: Total Power | L66: % load | M66: Thermal Efficnecy Engine | N66: Necessary kW | O66: kg | P66: liters | Q66: CO2, kg | R66: Nox, g | S66: CO, g | T66: PM, g | U66: SO, g | V66: Overall efficiency | W66: Carbon Footprint | X66: Hours | Y66: =N66 -> Necessary kW | Z66: kg | AA66: liters | AB66: CO2, kg | AC66: Nox, g | AD66: CO, g | AE66: PM, g | AF66: SO, g
A67: ='B1'!A12:C12 -> Standby in Harbour | D67: =E50 -> 280 | E67: 0 | F67: 280 | G67: 0 | H67: 0 | I67: =E67/$J$19 -> 0 | J67: =F67/$J$30 -> 347.0913151 | K67: =J67+I67 -> 347.0913151 | L67: =K67/'B2'!$C$26 -> 0.0800979958 | M67: =$C$65+($D$65*L67)+($E$65*(L67^2))+($F$65*(L67^3))+($G$65*(L67^4))+($H$65*(L67^5))+($I$65*(L67^6)) -> 0.336955544 | N67: =K67/M67 -> 1030.08044 | O67: =N67/$N$64 -> 86.05517463 | P67: =O67/0.855 -> 100.6493271 | Q67: =O67*'B2'!$E$42 -> 272.7949036 | R67: ='B2'!$G$42*K67 -> 2724.666824 | S67: ='B2'!$I$42*K67 -> 1735.456576 | T67: ='B2'!$K$42*K67 -> 173.5456576 | U67: =O67*'B2'!$M$42 -> 86.05517463 | X67: =D50 -> 72 | Y67: =N67*X67 -> 74165.7917 | Z67: =O67*X67 -> 6195.972573 | AA67: =P67*X67 -> 7246.751548 | AB67: =Q67*X67 -> 19641.23306 | AC67: =R67*X67 -> 196176.0113 | AD67: =S67*X67 -> 124952.8734 | AE67: =T67*X67 -> 12495.28734 | AF67: =U67*X67 -> 6195.972573
A68: ='B1'!A13:C13 -> Pulling out | D68: =E51 -> 1500 | E68: 1300 | F68: 200 | G68: 1365 | H68: 1820 | I68: =E68/$J$19 -> 1368.421053 | J68: =F68/$J$30 -> 247.9223679 | K68: =J68+I68 -> 1616.343421 | L68: =K68/'B2'!$C$26 -> 0.3730023278 | M68: =$C$65+($D$65*L68)+($E$65*(L68^2))+($F$65*(L68^3))+($G$65*(L68^4))+($H$65*(L68^5))+($I$65*(L68^6)) -> 0.3587526284 | N68: =K68/M68 -> 4505.453877 | O68: =N68/$N$64 -> 376.3954784 | P68: 440.2286297 | Q68: =O68*'B2'!$E$42 -> 1193.173667 | R68: ='B2'!$G$42*K68 -> 12688.29585 | S68: ='B2'!$I$42*K68 -> 8081.717103 | T68: ='B2'!$K$42*K68 -> 808.1717103 | U68: =O68*'B2'!$M$42 -> 376.3954784 | X68: =D51 -> 8 | Y68: =N68*X68 -> 36043.63101 | Z68: =O68*X68 -> 3011.163827 | AA68: =P68*X68 -> 3521.829038 | AB68: =Q68*X68 -> 9545.389333 | AC68: =R68*X68 -> 101506.3668 | AD68: =S68*X68 -> 64653.73682 | AE68: =T68*X68 -> 6465.373682 | AF68: =U68*X68 -> 3011.163827
A69: ='B1'!A14:C14 -> Transit without cargo, ECO | D69: 1500 | E69: 1100 | F69: 400 | G69: 1155 | H69: 1540 | I69: 1157.894737 | J69: 495.8447359 | K69: 1653.739473 | L69: =K69/'B2'!$C$26 -> 0.381632186 | M69: 0.3593935544 | N69: 4601.472265 | O69: 384.4170648 | P69: 449.6106021 | Q69: =O69*'B2'!$E$42 -> 1218.602095 | R69: ='B2'!$G$42*K69 -> 12981.85486 | S69: ='B2'!$I$42*K69 -> 8268.697364 | T69: ='B2'!$K$42*K69 -> 826.8697364 | U69: =O69*'B2'!$M$42 -> 384.4170648 | X69: 150 | Y69: 690220.8398 | Z69: 57662.55972 | AA69: 67441.59031 | AB69: 182790.3143 | AC69: 1947278.229 | AD69: 1240304.605 | AE69: 124030.4605 | AF69: 57662.55972
A70: ='B1'!A15:C15 -> Transit without cargo, FULL | D70: 2300 | E70: 2000 | F70: 300 | G70: 2100 | H70: 2800 | I70: 2105.263158 | J70: 371.8835519 | K70: 2477.14671 | L70: =K70/'B2'!$C$26 -> 0.5716492407 | M70: 0.3687160439 | N70: 6718.304643 | O70: 561.2618749 | P70: 656.4466373 | Q70: =O70*'B2'!$E$42 -> 1779.200143 | R70: ='B2'!$G$42*K70 -> 19445.60167 | S70: ='B2'!$I$42*K70 -> 12385.73355 | T70: ='B2'!$K$42*K70 -> 1238.573355 | U70: =O70*'B2'!$M$42 -> 561.2618749 | X70: 30 | Y70: 201549.1393 | Z70: 16837.85625 | AA70: 19693.39912 | AB70: 53376.0043 | AC70: 583368.0502 | AD70: 371572.0065 | AE70: 37157.20065 | AF70: 16837.85625
A71: ='B1'!A16:C16 -> Transit with cargo, ECO | D71: 2000 | E71: 1700 | F71: 300 | G71: 1785 | H71: 2380 | I71: 1789.473684 | J71: 371.8835519 | K71: 2161.357236 | L71: =K71/'B2'!$C$26 -> 0.4987747468 | M71: 0.3662495157 | N71: 5901.324489 | O71: 493.0095646 | P71: 576.6193738 | Q71: =O71*'B2'!$E$42 -> 1562.84032 | R71: ='B2'!$G$42*K71 -> 16966.6543 | S71: ='B2'!$I$42*K71 -> 10806.78618 | T71: ='B2'!$K$42*K71 -> 1080.678618 | U71: =O71*'B2'!$M$42 -> 493.0095646 | X71: 150 | Y71: 885198.6733 | Z71: 73951.4347 | AA71: 86492.90608 | AB71: 234426.048 | AC71: 2544998.146 | AD71: 1621017.927 | AE71: 162101.7927 | AF71: 73951.4347
A72: ='B1'!A17:C17 -> Transit with cargo, FULL | D72: 2600 | E72: 2500 | F72: 100 | G72: 2625 | H72: 3500 | I72: 2631.578947 | J72: 123.961184 | K72: 2755.540131 | L72: =K72/'B2'!$C$26 -> 0.6358938765 | M72: 0.3706919297 | N72: 7433.504511 | O72: 621.0112373 | P72: 726.3289325 | Q72: =O72*'B2'!$E$42 -> 1968.605622 | R72: ='B2'!$G$42*K72 -> 21630.99003 | S72: ='B2'!$I$42*K72 -> 13777.70066 | T72: ='B2'!$K$42*K72 -> 1377.770066 | U72: =O72*'B2'!$M$42 -> 621.0112373 | X72: 30 | Y72: 223005.1353 | Z72: 18630.33712 | AA72: 21789.86798 | AB72: 59058.16867 | AC72: 648929.7009 | AD72: 413331.0197 | AE72: 41333.10197 | AF72: 18630.33712
A73: ='B1'!A18:C18 -> Approaching | D73: 2000 | E73: 1700 | F73: 300 | G73: 1785 | H73: 2380 | I73: 1789.473684 | J73: 371.8835519 | K73: 2161.357236 | L73: =K73/'B2'!$C$26 -> 0.4987747468 | M73: 0.3662495157 | N73: 5901.324489 | O73: 493.0095646 | P73: 576.6193738 | Q73: =O73*'B2'!$E$42 -> 1562.84032 | R73: ='B2'!$G$42*K73 -> 16966.6543 | S73: ='B2'!$I$42*K73 -> 10806.78618 | T73: ='B2'!$K$42*K73 -> 1080.678618 | U73: =O73*'B2'!$M$42 -> 493.0095646 | X73: 8 | Y73: 47210.59591 | Z73: 3944.076517 | AA73: 4612.954991 | AB73: 12502.72256 | AC73: 135733.2344 | AD73: 86454.28945 | AE73: 8645.428945 | AF73: 3944.076517
A74: ='B1'!A19:C19 -> Cargo Operations | D74: 2450 | E74: 0 | F74: 2450 | G74: 0 | H74: 0 | I74: 0 | J74: 3037.049007 | K74: 3037.049007 | L74: =K74/'B2'!$C$26 -> 0.7008574632 | M74: 0.373380701 | N74: 8133.920684 | O74: 679.5255375 | P74: 794.7667106 | Q74: =O74*'B2'!$E$42 -> 2154.095954 | R74: ='B2'!$G$42*K74 -> 23840.83471 | S74: ='B2'!$I$42*K74 -> 15185.24504 | T74: ='B2'!$K$42*K74 -> 1518.524504 | U74: =O74*'B2'!$M$42 -> 679.5255375 | X74: 200 | Y74: 1626784.137 | Z74: 135905.1075 | AA74: 158953.3421 | AB74: 430819.1908 | AC74: 4768166.942 | AD74: 3037049.007 | AE74: 303704.9007 | AF74: 135905.1075
A75: ='B1'!A20:C20 -> Manoeuvring | D75: 2300 | E75: 1200 | F75: 1100 | G75: 1260 | H75: 1680 | I75: 1263.157895 | J75: 1363.573024 | K75: 2626.730918 | L75: =K75/'B2'!$C$26 -> 0.6061686735 | M75: 0.3697313242 | N75: 7104.431642 | O75: 593.5197696 | P75: 694.1751691 | Q75: =O75*'B2'!$E$42 -> 1881.45767 | R75: ='B2'!$G$42*K75 -> 20619.83771 | S75: ='B2'!$I$42*K75 -> 13133.65459 | T75: ='B2'!$K$42*K75 -> 1313.365459 | U75: =O75*'B2'!$M$42 -> 593.5197696 | X75: 19 | Y75: 134984.2012 | Z75: 11276.87562 | AA75: 13189.32821 | AB75: 35747.69572 | AC75: 391776.9165 | AD75: 249539.4373 | AE75: 24953.94373 | AF75: 11276.87562
A76: ='B1'!A21:C21 -> Tankwash | D76: 1000 | E76: 300 | F76: 700 | G76: 315 | H76: 420 | I76: 315.7894737 | J76: 867.7282878 | K76: 1183.517761 | L76: =K76/'B2'!$C$26 -> 0.2731194834 | M76: 0.3512508135 | N76: 3369.437781 | O76: 281.4902072 | P76: 329.2283126 | Q76: =O76*'B2'!$E$42 -> 892.323957 | R76: ='B2'!$G$42*K76 -> 9290.614428 | S76: ='B2'!$I$42*K76 -> 5917.588807 | T76: ='B2'!$K$42*K76 -> 591.7588807 | U76: =O76*'B2'!$M$42 -> 281.4902072 | X76: 47 | Y76: 158363.5757 | Z76: 13230.03974 | AA76: 15473.73069 | AB76: 41939.22598 | AC76: 436658.8781 | AD76: 278126.674 | AE76: 27812.6674 | AF76: 13230.03974
A77: ='B1'!A22:C22 -> Waiting on facility | D77: 1000 | E77: 400 | F77: 600 | G77: 420 | H77: 560 | I77: 421.0526316 | J77: 743.7671038 | K77: 1164.819735 | L77: =K77/'B2'!$C$26 -> 0.2688045543 | M77: 0.3509555921 | N77: 3318.994658 | O77: 277.2760784 | P77: 324.2995069 | Q77: =O77*'B2'!$E$42 -> 878.9651685 | R77: ='B2'!$G$42*K77 -> 9143.834923 | S77: ='B2'!$I$42*K77 -> 5824.098677 | T77: ='B2'!$K$42*K77 -> 582.4098677 | U77: =O77*'B2'!$M$42 -> 277.2760784 | X77: 10 | Y77: 33189.94658 | Z77: 2772.760784 | AA77: 3242.995069 | AB77: 8789.651685 | AC77: 91438.34923 | AD77: 58240.98677 | AE77: 5824.098677 | AF77: 2772.760784
A78: ='B1'!A23:C23 -> Operational STBY | D78: 1000 | E78: 400 | F78: 600 | G78: 420 | H78: 560 | I78: 421.0526316 | J78: 743.7671038 | K78: 1164.819735 | L78: =K78/'B2'!$C$26 -> 0.2688045543 | M78: 0.3509555921 | N78: 3318.994658 | O78: 277.2760784 | P78: 324.2995069 | Q78: =O78*'B2'!$E$42 -> 878.9651685 | R78: ='B2'!$G$42*K78 -> 9143.834923 | S78: ='B2'!$I$42*K78 -> 5824.098677 | T78: ='B2'!$K$42*K78 -> 582.4098677 | U78: =O78*'B2'!$M$42 -> 277.2760784 | X78: 20 | Y78: 66379.89317 | Z78: 5545.521568 | AA78: 6485.990138 | AB78: 17579.30337 | AC78: 182876.6985 | AD78: 116481.9735 | AE78: 11648.19735 | AF78: 5545.521568
Y79: =SUM(Y67:Y78) -> 4177095.56 | Z79: =SUM(Z67:Z78) -> 348963.7059 | AA79: 408144.6853 | AB79: 1106214.948 | AC79: 12028907.52 | AD79: 7661724.536 | AE79: 766172.4536 | AF79: 348963.7059
A81: Diesel Const RPM
C82: Const | D82: x | E82: x2 | F82: x3 | G82: x4 | H82: x5 | I82: x6 | M82: Diesel oil | N82: 11.97 | O82: kWh/kg
A83: Diesel constant rpm | C83: =F!C30 -> 0.1667 | D83: =F!D30 -> 1.1482 | E83: =F!E30 -> -3.1976 | F83: =F!F30 -> 5.072 | G83: =F!G30 -> -4.1771 | H83: =F!H30 -> 1.3626 | I83: =F!I30 -> 0
D84: =D66 -> kW | E84: For propulsion | F84: For elecricity | G84: For propulsion with sea margin | H84: Max power for powertrain dimension | I84: For propulsion, incl losses | J84: For Electricity, incl losses | K84: Total Power | L84: % load | M84: Thermal Efficnecy Engine | N84: Necessary kW | O84: kg | P84: liters | Q84: CO2, kg | R84: Nox, g | S84: CO, g | T84: PM, g | U84: SO, g | V84: Overall efficiency | W84: Carbon Footprint | X84: Hours | Y84: =N84 -> Necessary kW | Z84: kg | AA84: liters | AB84: CO2, kg | AC84: Nox, g | AD84: CO, g | AE84: PM, g | AF84: SO, g
A85: =A67 -> Standby in Harbour | D85: 280 | E85: 0 | F85: 280 | G85: 0 | H85: 0 | I85: =E85/$K$19 -> 0 | J85: =F85/$K$30 -> 336.6785757 | K85: =J85+I85 -> 336.6785757 | L85: =K85/'B2'!$C$26 -> 0.07769505592 | M85: =$C$83+($D$83*L85)+($E$83*(L85^2))+($F$83*(L85^3))+($G$83*(L85^4))+($H$83*(L85^5))+($I$83*(L85^6)) -> 0.2388375353 | N85: =K85/M85 -> 1409.655208 | O85: =N85/$N$64 -> 117.7656816 | P85: =O85/0.855 -> 137.7376393 | Q85: =O85*'B2'!$E$43 -> 373.3172106 | R85: ='B2'!$G$43*K85 -> 2642.926819 | S85: ='B2'!$I$43*K85 -> 1683.392878 | T85: ='B2'!$K$43*K85 -> 168.3392878 | U85: =O85*'B2'!$M$43 -> 117.7656816 | X85: =X67 -> 72 | Y85: =N85*X85 -> 101495.175 | Z85: =O85*X85 -> 8479.129074 | AA85: =P85*X85 -> 9917.110028 | AB85: =Q85*X85 -> 26878.83916 | AC85: =R85*X85 -> 190290.731 | AD85: =S85*X85 -> 121204.2872 | AE85: =T85*X85 -> 12120.42872 | AF85: =U85*X85 -> 8479.129074
A86: =A68 -> Pulling out | D86: 1500 | E86: 1300 | F86: 200 | G86: 1365 | H86: 1820 | I86: =E86/$K$19 -> 1368.421053 | J86: =F86/$K$30 -> 240.4846969 | K86: =J86+I86 -> 1608.90575 | L86: =K86/'B2'!$C$26 -> 0.3712859422 | M86: =$C$83+($D$83*L86)+($E$83*(L86^2))+($F$83*(L86^3))+($G$83*(L86^4))+($H$83*(L86^5))+($I$83*(L86^6)) -> 0.3420455608 | N86: =K86/M86 -> 4703.776145 | O86: =N86/$N$64 -> 392.9637548 | P86: 459.6067307 | Q86: =O86*'B2'!$E$43 -> 1245.695103 | R86: ='B2'!$G$43*K86 -> 12629.91013 | S86: ='B2'!$I$43*K86 -> 8044.528748 | T86: ='B2'!$K$43*K86 -> 804.4528748 | U86: =O86*'B2'!$M$43 -> 392.9637548 | X86: =X68 -> 8 | Y86: =N86*X86 -> 37630.20916 | Z86: =O86*X86 -> 3143.710038 | AA86: =P86*X86 -> 3676.853846 | AB86: =Q86*X86 -> 9965.560821 | AC86: =R86*X86 -> 101039.2811 | AD86: =S86*X86 -> 64356.22998 | AE86: =T86*X86 -> 6435.622998 | AF86: =U86*X86 -> 3143.710038
A87: Transit without cargo, ECO | D87: 1500 | E87: 1100 | F87: 400 | G87: 1155 | H87: 1540 | I87: 1157.894737 | J87: 480.9693938 | K87: 1638.864131 | L87: =K87/'B2'!$C$26 -> 0.3781994148 | M87: 0.3430378833 | N87: 4777.501875 | O87: 399.1229636 | P87: 466.8104838 | Q87: =O87*'B2'!$E$43 -> 1265.219795 | R87: ='B2'!$G$43*K87 -> 12865.08343 | S87: ='B2'!$I$43*K87 -> 8194.320653 | T87: ='B2'!$K$43*K87 -> 819.4320653 | U87: =O87*'B2'!$M$43 -> 399.1229636 | X87: 150 | Y87: 716625.2812 | Z87: 59868.44455 | AA87: 70021.57257 | AB87: 189782.9692 | AC87: 1929762.514 | AD87: 1229148.098 | AE87: 122914.8098 | AF87: 59868.44455
A88: Transit without cargo, FULL | D88: 2300 | E88: 2000 | F88: 300 | G88: 2100 | H88: 2800 | I88: 2105.263158 | J88: 360.7270454 | K88: 2465.990203 | L88: =K88/'B2'!$C$26 -> 0.5690746623 | M88: 0.3625581983 | N88: 6801.639613 | O88: 568.2238607 | P88: 664.5893108 | Q88: =O88*'B2'!$E$43 -> 1801.269638 | R88: ='B2'!$G$43*K88 -> 19358.0231 | S88: ='B2'!$I$43*K88 -> 12329.95102 | T88: ='B2'!$K$43*K88 -> 1232.995102 | U88: =O88*'B2'!$M$43 -> 568.2238607 | X88: 30 | Y88: 204049.1884 | Z88: 17046.71582 | AA88: 19937.67932 | AB88: 54038.08915 | AC88: 580740.6929 | AD88: 369898.5305 | AE88: 36989.85305 | AF88: 17046.71582
A89: Transit with cargo, ECO | D89: 2000 | E89: 1700 | F89: 300 | G89: 1785 | H89: 2380 | I89: 1789.473684 | J89: 360.7270454 | K89: 2150.20073 | L89: =K89/'B2'!$C$26 -> 0.4962001684 | M89: 0.3565612363 | N89: 6030.382752 | O89: 503.7913745 | P89: 589.2296777 | Q89: =O89*'B2'!$E$43 -> 1597.018657 | R89: ='B2'!$G$43*K89 -> 16879.07573 | S89: ='B2'!$I$43*K89 -> 10751.00365 | T89: ='B2'!$K$43*K89 -> 1075.100365 | U89: =O89*'B2'!$M$43 -> 503.7913745 | X89: 150 | Y89: 904557.4129 | Z89: 75568.70617 | AA89: 88384.45166 | AB89: 239552.7986 | AC89: 2531861.359 | AD89: 1612650.547 | AE89: 161265.0547 | AF89: 75568.70617
A90: Transit with cargo, FULL | D90: 2600 | E90: 2500 | F90: 100 | G90: 2625 | H90: 3500 | I90: 2631.578947 | J90: 120.2423485 | K90: 2751.821296 | L90: =K90/'B2'!$C$26 -> 0.6350356837 | M90: 0.3666565723 | N90: 7505.173789 | O90: 626.9986457 | P90: 733.3317494 | Q90: =O90*'B2'!$E$43 -> 1987.585707 | R90: ='B2'!$G$43*K90 -> 21601.79717 | S90: ='B2'!$I$43*K90 -> 13759.10648 | T90: ='B2'!$K$43*K90 -> 1375.910648 | U90: =O90*'B2'!$M$43 -> 626.9986457 | X90: 30 | Y90: 225155.2137 | Z90: 18809.95937 | AA90: 21999.95248 | AB90: 59627.57121 | AC90: 648053.9152 | AD90: 412773.1944 | AE90: 41277.31944 | AF90: 18809.95937
A91: Approaching | D91: 2000 | E91: 1700 | F91: 300 | G91: 1785 | H91: 2380 | I91: 1789.473684 | J91: 360.7270454 | K91: 2150.20073 | L91: =K91/'B2'!$C$26 -> 0.4962001684 | M91: 0.3565612363 | N91: 6030.382752 | O91: 503.7913745 | P91: 589.2296777 | Q91: =O91*'B2'!$E$43 -> 1597.018657 | R91: ='B2'!$G$43*K91 -> 16879.07573 | S91: ='B2'!$I$43*K91 -> 10751.00365 | T91: ='B2'!$K$43*K91 -> 1075.100365 | U91: =O91*'B2'!$M$43 -> 503.7913745 | X91: 8 | Y91: 48243.06202 | Z91: 4030.330996 | AA91: 4713.837422 | AB91: 12776.14926 | AC91: 135032.6058 | AD91: 86008.02918 | AE91: 8600.802918 | AF91: 4030.330996
A92: Cargo Operations | D92: 2450 | E92: 0 | F92: 2450 | G92: 0 | H92: 0 | I92: 0 | J92: 2945.937537 | K92: 2945.937537 | L92: =K92/'B2'!$C$26 -> 0.6798317393 | M92: 0.3686899295 | N92: 7990.284793 | O92: 667.5258808 | P92: 780.7320244 | Q92: =O92*'B2'!$E$43 -> 2116.057042 | R92: ='B2'!$G$43*K92 -> 23125.60967 | S92: ='B2'!$I$43*K92 -> 14729.68769 | T92: ='B2'!$K$43*K92 -> 1472.968769 | U92: =O92*'B2'!$M$43 -> 667.5258808 | X92: 200 | Y92: 1598056.959 | Z92: 133505.1762 | AA92: 156146.4049 | AB92: 423211.4084 | AC92: 4625121.933 | AD92: 2945937.537 | AE92: 294593.7537 | AF92: 133505.1762
A93: Manoeuvring | D93: 2300 | E93: 1200 | F93: 1100 | G93: 1260 | H93: 1680 | I93: 1263.157895 | J93: 1322.665833 | K93: 2585.823728 | L93: =K93/'B2'!$C$26 -> 0.5967285526 | M93: 0.3644326255 | N93: 7095.47814 | O93: 592.7717744 | P93: 693.300321 | Q93: =O93*'B2'!$E$43 -> 1879.086525 | R93: ='B2'!$G$43*K93 -> 20298.71626 | S93: ='B2'!$I$43*K93 -> 12929.11864 | T93: ='B2'!$K$43*K93 -> 1292.911864 | U93: =O93*'B2'!$M$43 -> 592.7717744 | X93: 19 | Y93: 134814.0847 | Z93: 11262.66371 | AA93: 13172.7061 | AB93: 35702.64397 | AC93: 385675.609 | AD93: 245653.2541 | AE93: 24565.32541 | AF93: 11262.66371
A94: Tankwash | D94: 1000 | E94: 300 | F94: 700 | G94: 315 | H94: 420 | I94: 315.7894737 | J94: 841.6964392 | K94: 1157.485913 | L94: =K94/'B2'!$C$26 -> 0.2671121337 | M94: 0.3225045156 | N94: 3589.053353 | O94: 299.8373728 | P94: 350.6869858 | Q94: =O94*'B2'!$E$43 -> 950.4844719 | R94: ='B2'!$G$43*K94 -> 9086.264416 | S94: ='B2'!$I$43*K94 -> 5787.429564 | T94: ='B2'!$K$43*K94 -> 578.7429564 | U94: =O94*'B2'!$M$43 -> 299.8373728 | X94: 47 | Y94: 168685.5076 | Z94: 14092.35652 | AA94: 16482.28833 | AB94: 44672.77018 | AC94: 427054.4275 | AD94: 272009.1895 | AE94: 27200.91895 | AF94: 14092.35652
A95: =A77 -> Waiting on facility | D95: 1000 | E95: 400 | F95: 600 | G95: 420 | H95: 560 | I95: 421.0526316 | J95: 721.4540907 | K95: 1142.506722 | L95: =K95/'B2'!$C$26 -> 0.2636553975 | M95: 0.3216604945 | N95: 3551.902524 | O95: 296.7337113 | P95: 347.0569723 | Q95: =O95*'B2'!$E$43 -> 940.6458648 | R95: ='B2'!$G$43*K95 -> 8968.67777 | S95: ='B2'!$I$43*K95 -> 5712.533611 | T95: ='B2'!$K$43*K95 -> 571.2533611 | U95: =O95*'B2'!$M$43 -> 296.7337113 | X95: 10 | Y95: 35519.02524 | Z95: 2967.337113 | AA95: 3470.569723 | AB95: 9406.458648 | AC95: 89686.7777 | AD95: 57125.33611 | AE95: 5712.533611 | AF95: 2967.337113
A96: Operational STBY | D96: 1000 | E96: 400 | F96: 600 | G96: 420 | H96: 560 | I96: 421.0526316 | J96: 721.4540907 | K96: 1142.506722 | L96: =K96/'B2'!$C$26 -> 0.2636553975 | M96: 0.3216604945 | N96: 3551.902524 | O96: 296.7337113 | P96: 347.0569723 | Q96: =O96*'B2'!$E$43 -> 940.6458648 | R96: ='B2'!$G$43*K96 -> 8968.67777 | S96: ='B2'!$I$43*K96 -> 5712.533611 | T96: ='B2'!$K$43*K96 -> 571.2533611 | U96: =O96*'B2'!$M$43 -> 296.7337113 | X96: 20 | Y96: 71038.05048 | Z96: 5934.674226 | AA96: 6941.139445 | AB96: 18812.9173 | AC96: 179373.5554 | AD96: 114250.6722 | AE96: 11425.06722 | AF96: 5934.674226
Y97: =SUM(Y85:Y96) -> 4245869.169 | Z97: 354709.2038 | AA97: 414864.5658 | AB97: 1124428.176 | AC97: 11823693.4 | AD97: 7531014.906 | AE97: 753101.4906 | AF97: 354709.2038
A99: Diesel Const RPM (Diesel electric) | AH99: Hybridization
C100: Const | D100: x | E100: x2 | F100: x3 | G100: x4 | H100: x5 | I100: x6 | M100: Diesel oil | N100: 11.89 | O100: kWh/kg
A101: Diesel constant rpm | C101: =F!C30 -> 0.1667 | D101: =F!D30 -> 1.1482 | E101: =F!E30 -> -3.1976 | F101: =F!F30 -> 5.072 | G101: =F!G30 -> -4.1771 | H101: =F!H30 -> 1.3626 | I101: =F!I30 -> 0
D102: =D84 -> kW | E102: For propulsion | F102: For elecricity | G102: For propulsion with sea margin | H102: Max power for powertrain dimension | I102: For propulsion, incl losses | J102: For Electricity, incl losses | K102: Total Power | L102: % load | M102: Thermal Efficnecy Engine | N102: Necessary kW | O102: kg | P102: liters | Q102: CO2, kg | R102: Nox, g | S102: CO, g | T102: PM, g | U102: SO, g | V102: Overall efficiency | W102: Carbon Footprint | X102: Hours | Y102: =N102 -> Necessary kW | Z102: kg | AA102: liters | AB102: CO2, kg | AC102: Nox, g | AD102: CO, g | AE102: PM, g | AF102: SO, g | AH102: Charging power | AI102: =F!C53 -> 1400 | AJ102: kW | AL102: Battery cycluses | AN102: =AI104*365*AI105 -> 4473.191489 | AP102: Admirality coefficient
A103: =A85 -> Standby in Harbour | D103: 280 | E103: =F50 -> 0 | F103: 280 | G103: 0 | H103: 0 | I103: =(E103/$L$19)+BP108 -> 0 | J103: =F103/$L$30 -> 354.3985007 | K103: =IF(I103>BQ108,J103+I103,J103+BQ108) -> 354.3985007 | L103: =K103/'B2'!$C$26 -> 0.08178426939 | M103: =$C$101+($D$101*L103)+($E$101*(L103^2))+($F$101*(L103^3))+($G$101*(L103^4))+($H$101*(L103^5))+($I$101*(L103^6)) -> 0.2418096514 | N103: =K103/M103 -> 1465.609411 | O103: =N103/$N$64 -> 122.4402181 | P103: =O103/0.855 -> 143.2049335 | Q103: =O103*'B2'!$E$43 -> 388.1354914 | R103: ='B2'!$G$43*K103 -> 2782.028231 | S103: ='B2'!$I$43*K103 -> 1771.992504 | T103: ='B2'!$K$43*K103 -> 177.1992504 | U103: =O103*'B2'!$M$43 -> 122.4402181 | X103: =X85 -> 72 | Y103: =N103*X103 -> 105523.8776 | Z103: =O103*X103 -> 8815.695703 | AA103: =P103*X103 -> 10310.75521 | AB103: =Q103*X103 -> 27945.75538 | AC103: =R103*X103 -> 200306.0326 | AD103: =S103*X103 -> 127583.4603 | AE103: =T103*X103 -> 12758.34603 | AF103: =U103*X103 -> 8815.695703 | AH103: Time for charging | AI103: =F!C54 -> 60 | AJ103: min | AL103: DoD | AN103: =IF(AN102<6000,"80%",IF(AND(AN102<=9000,AN102>=6000),"60%",IF(AND(AN102<=14000,AN102>=9000),"50%",IF(AND(AN102<=22000,AN102>=14000),"40%",IF(AND(AN102<=41000,AN102>=22000),"30%",IF(AND(AN102<=95000,AN102>=41000),"20%",IF(AND(AN102<=160000,AN102>=95000),"15%",IF(AND(AN102<=360000,AN102>=160000),"10%","")))))))) -> 80%
A104: =A86 -> Pulling out | D104: 1500 | E104: =F51 -> 1300 | F104: 200 | G104: 1365 | H104: 1820 | I104: =E104/$L$19 -> 1712.534954 | J104: =F104/$L$30 -> 253.1417862 | K104: =J104+I104 -> 1965.67674 | L104: =K104/'B2'!$C$26 -> 0.4536177093 | M104: =$C$65+($D$65*L104)+($E$65*(L104^2))+($F$65*(L104^3))+($G$65*(L104^4))+($H$65*(L104^5))+($I$65*(L104^6)) -> 0.3640820033 | N104: =K104/M104 -> 5398.994519 | O104: =N104/$N$64 -> 451.0438195 | P104: =O104/0.855 -> 527.536631 | Q104: =O104*'B2'!$E$43 -> 1429.808908 | R104: ='B2'!$G$43*K104 -> 15430.56241 | S104: ='B2'!$I$43*K104 -> 9828.383701 | T104: ='B2'!$K$43*K104 -> 982.8383701 | U104: =O104*'B2'!$M$43 -> 451.0438195 | X104: =X86 -> 8 | Y104: =N104*X104 -> 43191.95615 | Z104: =O104*X104 -> 3608.350556 | AA104: =P104*X104 -> 4220.293048 | AB104: =Q104*X104 -> 11438.47126 | AC104: =R104*X104 -> 123444.4993 | AD104: =S104*X104 -> 78627.06961 | AE104: =T104*X104 -> 7862.706961 | AF104: =U104*X104 -> 3608.350556 | AH104: Per day | AI104: =F!C55 -> 1.225531915 | AJ104: tours | AL104: Battery size | AN104: =AI107/AN103 -> 8833.84571 | AP104: =AI107/AN104 -> 0.8
A105: Transit without cargo, ECO | D105: 1500 | E105: 1100 | F105: 400 | G105: 1155 | H105: 1540 | I105: 1449.068038 | J105: 506.2835724 | K105: 1955.35161 | L105: =K105/'B2'!$C$26 -> 0.451234987 | M105: 0.3639502394 | N105: 5372.579542 | O105: 448.8370544 | P105: 524.9556192 | Q105: =O105*'B2'!$E$43 -> 1422.813463 | R105: ='B2'!$G$43*K105 -> 15349.51014 | S105: ='B2'!$I$43*K105 -> 9776.758052 | T105: ='B2'!$K$43*K105 -> 977.6758052 | U105: =O105*'B2'!$M$43 -> 448.8370544 | X105: 150 | Y105: 805886.9312 | Z105: 67325.55817 | AA105: 78743.34288 | AB105: 213422.0194 | AC105: 2302426.521 | AD105: 1466513.708 | AE105: 146651.3708 | AF105: 67325.55817 | AH105: Battery lifetime | AI105: =F!G53 -> 10 | AJ105: years | AL105: Battery weight, ton | AN105: =(AN104*13)/1000 -> 114.8399942 | AZ105: charging | BA105: C-rate | BB105: =((AI103/60)*AI107)/AN104 -> 0.8 | BJ105: Adding admirality coefficients
A106: Transit without cargo, FULL | D106: 2300 | E106: 2000 | F106: 300 | G106: 2100 | H106: 2800 | I106: 2634.66916 | J106: 379.7126793 | K106: 3014.381839 | L106: =K106/'B2'!$C$26 -> 0.6956265783 | M106: 0.3731341038 | N106: 8078.54819 | O106: 674.8995982 | P106: 789.3562552 | Q106: =O106*'B2'!$E$43 -> 2139.431726 | R106: ='B2'!$G$43*K106 -> 23662.89744 | S106: ='B2'!$I$43*K106 -> 15071.9092 | T106: ='B2'!$K$43*K106 -> 1507.19092 | U106: =O106*'B2'!$M$43 -> 674.8995982 | X106: 30 | Y106: 242356.4457 | Z106: 20246.98795 | AA106: 23680.68766 | AB106: 64182.95179 | AC106: 709886.9231 | AD106: 452157.2759 | AE106: 45215.72759 | AF106: 20246.98795 | AH106: Battery % of kWh | AI106: =F!G54 -> 0.15 | BA106: Losses | BB106: =IF(BB105<=0.5,"0,95%",IF(AND(BB105<=1,BB105>0.5),"1,75%",IF(AND(BB105<=1.5,BB105>1),"2,55%",IF(AND(BB105<=2,BB105>1.5),"3,5%",IF(AND(BB105<=2.5,BB105>2),"4,3%",IF(BB105>=2.5,"5,25","")))))) -> 1,75%
A107: Transit with cargo, ECO | D107: 2000 | E107: 1700 | F107: 300 | G107: 1785 | H107: 2380 | I107: 2239.468786 | J107: 379.7126793 | K107: 2619.181465 | L107: =K107/'B2'!$C$26 -> 0.604426492 | M107: 0.3696785733 | N107: 7085.023733 | O107: 591.8983904 | P107: 692.2788192 | Q107: =O107*'B2'!$E$43 -> 1876.317898 | R107: ='B2'!$G$43*K107 -> 20560.5745 | S107: ='B2'!$I$43*K107 -> 13095.90733 | T107: ='B2'!$K$43*K107 -> 1309.590733 | U107: =O107*'B2'!$M$43 -> 591.8983904 | X107: 150 | Y107: 1062753.56 | Z107: 88784.75856 | AA107: 103841.8229 | AB107: 281447.6846 | AC107: 3084086.175 | AD107: 1964386.099 | AE107: 196438.6099 | AF107: 88784.75856 | AH107: Total kWh battery | AI107: =AN135*AI106 -> 7067.076568 | AJ107: kWh | BJ107: Displacement | BK107: ='B2'!I9+'B2'!J9 -> 8000 | BM107: =E102 -> For propulsion | BN107: New propulsion | BO107: ∆ | BP107: incl losses | BQ107: Propulsion | BR107: Total
A108: Transit with cargo, FULL | D108: 2600 | E108: 2500 | F108: 100 | G108: 2625 | H108: 3500 | I108: 3293.33645 | J108: 126.5708931 | K108: 3419.907343 | L108: =K108/'B2'!$C$26 -> 0.7892093868 | M108: 0.3769832224 | N108: 9071.775983 | O108: 757.876022 | P108: 886.4047041 | Q108: =O108*'B2'!$E$43 -> 2402.46699 | R108: ='B2'!$G$43*K108 -> 26846.27264 | S108: ='B2'!$I$43*K108 -> 17099.53671 | T108: ='B2'!$K$43*K108 -> 1709.953671 | U108: =O108*'B2'!$M$43 -> 757.876022 | X108: 30 | Y108: 272153.2795 | Z108: 22736.28066 | AA108: 26592.14112 | AB108: 72074.00969 | AC108: 805388.1793 | AD108: 512986.1014 | AE108: 51298.61014 | AF108: 22736.28066 | AL108: =D102 -> kW | AM108: =E102 -> For propulsion | AN108: For elecricity | AO108: For propulsion with sea margin | AP108: Max power for powertrain dimension | AQ108: For propulsion, incl losses | AR108: For Electricity, incl losses | AS108: Hours per day | AT108: Total power | AV108: Battery calculations | AY108: kW for batteries | AZ108: hours | BA108: Consumed | BB108: C-rate | BC108: losses | BD108: consumed | BE108: with charging losses | BI108: Battery | BK108: =Data!AN105 -> 114.8399942 | BM108: =E85 -> 0 | BN108: =IFERROR(BM108*((($BK$107+$BK$108)/$BK$107)^(2/3)),0) -> 0 | BO108: =IF(BN108>0,BN108-BM108,"0") -> 0 | BP108: =IFERROR(BO108/$L$19,0) -> 0 | BQ108: =IFERROR(BN108/$L$19,0) -> 0 | BR108: =BQ108+AP123 -> 1670.825229
A109: Approaching | D109: 2000 | E109: 1700 | F109: 300 | G109: 1785 | H109: 2380 | I109: 2239.468786 | J109: 379.7126793 | K109: 2619.181465 | L109: =K109/'B2'!$C$26 -> 0.604426492 | M109: 0.3696785733 | N109: 7085.023733 | O109: 591.8983904 | P109: 692.2788192 | Q109: =O109*'B2'!$E$43 -> 1876.317898 | R109: ='B2'!$G$43*K109 -> 20560.5745 | S109: ='B2'!$I$43*K109 -> 13095.90733 | T109: ='B2'!$K$43*K109 -> 1309.590733 | U109: =O109*'B2'!$M$43 -> 591.8983904 | X109: 8 | Y109: 56680.18986 | Z109: 4735.187123 | AA109: 5538.230553 | AB109: 15010.54318 | AC109: 164484.596 | AD109: 104767.2586 | AE109: 10476.72586 | AF109: 4735.187123 | AI109: =A103 -> Standby in Harbour | AL109: =D103 -> 280 | AM109: =E103 -> 0 | AN109: =F103 -> 280 | AO109: 0 | AP109: 0 | AQ109: =AM109/$R$19 -> 0 | AR109: =AN109/$R$30 -> 336.6785757 | AS109: =D50/31 -> 2.322580645 | AT109: =AQ109+AR109 -> 336.6785757 | AY109: =AL109 -> 280 | AZ109: =X103 -> 72 | BA109: =AY109*AZ109 -> 20160 | BB109: =AY109/$AN$104 -> 0.03169627467 | BC109: =IF(BB109<=0.5,"0,95%",IF(AND(BB109<=1,BB109>0.5),"1,75%",IF(AND(BB109<=1.5,BB109>1),"2,55%",IF(AND(BB109<=2,BB109>1.5),"3,5%",IF(AND(BB109<=2.5,BB109>2),"4,3%",IF(BB109>=2.5,"5,25","")))))) -> 0,95% | BD109: =BA109+(BA109*BC109) -> 20351.52 | BE109: =BD109+(BD109*$BB$106) -> 20707.6716 | BM109: =E86 -> 1300 | BN109: 1312.411423 | BO109: =IF(BN109>0,BN109-BM109,"") -> 12.41142261 | BP109: =IFERROR(BO109/$L$19,0) -> 16.34999619 | BQ109: =IFERROR(BN109/$L$19,0) -> 1728.88495 | BR109: =BQ109+J86 -> 1969.369647
A110: Cargo Operations | D110: 2450 | E110: 0 | F110: 2450 | G110: 0 | H110: 0 | I110: 0 | J110: 3100.986881 | K110: 3100.986881 | L110: =K110/'B2'!$C$26 -> 0.7156123572 | M110: 0.3740923646 | N110: 8289.361597 | O110: 692.5114116 | P110: 809.9548674 | Q110: =O110*'B2'!$E$43 -> 2195.261175 | R110: ='B2'!$G$43*K110 -> 24342.74702 | S110: ='B2'!$I$43*K110 -> 15504.93441 | T110: ='B2'!$K$43*K110 -> 1550.493441 | U110: =O110*'B2'!$M$43 -> 692.5114116 | X110: 200 | Y110: 1657872.319 | Z110: 138502.2823 | AA110: 161990.9735 | AB110: 439052.235 | AC110: 4868549.403 | AD110: 3100986.881 | AE110: 310098.6881 | AF110: 138502.2823 | AI110: =A104 -> Pulling out | AL110: =D104 -> 1500 | AM110: 1300 | AN110: 200 | AO110: 1365 | AP110: 1820 | AQ110: =AM110/$R$19 -> 1645.42161 | AR110: =AN110/$R$30 -> 240.4846969 | AS110: =D51/31 -> 0.2580645161 | AT110: =AQ110+AR110 -> 1885.906307 | AY110: =AM123-AP123 -> 294.851511 | AZ110: =X104 -> 8 | BA110: =AY110*AZ110 -> 2358.812088 | BB110: =AY110/$AN$104 -> 0.03337748029 | BC110: =IF(BB110<=0.5,"0,95%",IF(AND(BB110<=1,BB110>0.5),"1,75%",IF(AND(BB110<=1.5,BB110>1),"2,55%",IF(AND(BB110<=2,BB110>1.5),"3,5%",IF(AND(BB110<=2.5,BB110>2),"4,3%",IF(BB110>=2.5,"5,25","")))))) -> 0,95% | BD110: =BA110+(BA110*BC110) -> 2381.220803 | BE110: =BD110+(BD110*$BB$106) -> 2422.892167 | BM110: 1100 | BN110: 1110.501973 | BO110: 10.50197298 | BP110: 13.83461216 | BQ110: =IFERROR(BN110/$L$19,0) -> 1462.90265 | BR110: 1943.872044
A111: Manoeuvring | D111: 2300 | E111: 1200 | F111: 1100 | G111: 1260 | H111: 1680 | I111: 1580.801496 | J111: 1392.279824 | K111: 2973.08132 | L111: =K111/'B2'!$C$26 -> 0.6860956893 | M111: 0.3726958715 | N111: 7977.231699 | O111: 666.4353967 | P111: 779.4566044 | Q111: =O111*'B2'!$E$43 -> 2112.600208 | R111: ='B2'!$G$43*K111 -> 23338.68836 | S111: ='B2'!$I$43*K111 -> 14865.4066 | T111: ='B2'!$K$43*K111 -> 1486.54066 | U111: =O111*'B2'!$M$43 -> 666.4353967 | X111: 19 | Y111: 151567.4023 | Z111: 12662.27254 | AA111: 14809.67548 | AB111: 40139.40395 | AC111: 443435.0789 | AD111: 282442.7254 | AE111: 28244.27254 | AF111: 12662.27254 | AI111: Transit without cargo, ECO | AL111: 1500 | AM111: 1100 | AN111: 400 | AO111: 1155 | AP111: 1540 | AQ111: 1392.279824 | AR111: 480.9693938 | AS111: 4.838709677 | AT111: 1873.249218 | AY111: =AM124-AP124 -> 293.3027416 | AZ111: 150 | BA111: 43995.41123 | BB111: 0.03320215806 | BC111: 0,95% | BD111: =BA111+(BA111*BC111) -> 44413.36764 | BE111: 45190.60157 | BM111: 2000 | BN111: 2019.094496 | BO111: 19.09449632 | BP111: 25.15384029 | BQ111: 2659.823 | BR111: 3020.550046
A112: Tankwash | D112: 1000 | E112: 300 | F112: 700 | G112: 315 | H112: 420 | I112: 395.200374 | J112: 885.9962518 | K112: 1281.196626 | L112: =K112/'B2'!$C$26 -> 0.2956607598 | M112: 0.3528583813 | N112: 3630.908868 | O112: 303.3340742 | P112: 354.7766949 | Q112: =O112*'B2'!$E$43 -> 961.5690151 | R112: ='B2'!$G$43*K112 -> 10057.39351 | S112: ='B2'!$I$43*K112 -> 6405.983129 | T112: ='B2'!$K$43*K112 -> 640.5983129 | U112: =O112*'B2'!$M$43 -> 303.3340742 | X112: 47 | Y112: 170652.7168 | Z112: 14256.70149 | AA112: 16674.50466 | AB112: 45193.74371 | AC112: 472697.4951 | AD112: 301081.207 | AE112: 30108.1207 | AF112: 14256.70149 | AI112: Transit without cargo, FULL | AL112: 2300 | AM112: 2000 | AN112: 300 | AO112: 2100 | AP112: 2800 | AQ112: 2531.417862 | AR112: 360.7270454 | AS112: 0.9677419355 | AT112: 2892.144908 | AY112: 452.1572759 | AZ112: 30 | BA112: 13564.71828 | BB112: 0.05118464718 | BC112: 0,95% | BD112: 13693.5831 | BE112: 13933.2208 | BM112: 1700 | BN112: 1716.230322 | BO112: 16.23032188 | BP112: 21.38076425 | BQ112: 2260.84955 | BR112: 2621.576596
A113: =A95 -> Waiting on facility | D113: 1000 | E113: 400 | F113: 600 | G113: 420 | H113: 560 | I113: 526.933832 | J113: 759.4253587 | K113: 1286.359191 | L113: =K113/'B2'!$C$26 -> 0.2968521209 | M113: 0.3529460427 | N113: 3644.634122 | O113: 304.480712 | P113: 356.1177918 | Q113: =O113*'B2'!$E$43 -> 965.203857 | R113: ='B2'!$G$43*K113 -> 10097.91965 | S113: ='B2'!$I$43*K113 -> 6431.795953 | T113: ='B2'!$K$43*K113 -> 643.1795953 | U113: =O113*'B2'!$M$43 -> 304.480712 | X113: 10 | Y113: 36446.34122 | Z113: 3044.80712 | AA113: 3561.177918 | AB113: 9652.03857 | AC113: 100979.1965 | AD113: 64317.95953 | AE113: 6431.795953 | AF113: 3044.80712 | AI113: Transit with cargo, ECO | AL113: 2000 | AM113: 1700 | AN113: 300 | AO113: 1785 | AP113: 2380 | AQ113: 2151.705183 | AR113: 360.7270454 | AS113: 4.838709677 | AT113: 2512.432228 | AY113: 392.8772198 | AZ113: 150 | BA113: 58931.58297 | BB113: 0.04447408668 | BC113: 0,95% | BD113: 59491.43301 | BE113: 60532.53308 | BG113: Sum | BH113: =IFERROR(SUM(BE109:BE120),0) -> 281307.0073 | BM113: 2500 | BN113: 2523.86812 | BO113: 23.86812041 | BP113: 31.44230037 | BQ113: 3324.77875 | BR113: 3445.021099
A114: Operational STBY | D114: 1000 | E114: 400 | F114: 600 | G114: 420 | H114: 560 | I114: 526.933832 | J114: 759.4253587 | K114: 1286.359191 | L114: =K114/'B2'!$C$26 -> 0.2968521209 | M114: 0.3529460427 | N114: 3644.634122 | O114: 304.480712 | P114: 356.1177918 | Q114: =O114*'B2'!$E$43 -> 965.203857 | R114: ='B2'!$G$43*K114 -> 10097.91965 | S114: ='B2'!$I$43*K114 -> 6431.795953 | T114: ='B2'!$K$43*K114 -> 643.1795953 | U114: =O114*'B2'!$M$43 -> 304.480712 | X114: 20 | Y114: 72892.68245 | Z114: 6089.61424 | AA114: 7122.355836 | AB114: 19304.07714 | AC114: 201958.3929 | AD114: 128635.9191 | AE114: 12863.59191 | AF114: 6089.61424 | AI114: Transit with cargo, FULL | AL114: 2600 | AM114: 2500 | AN114: 100 | AO114: 2625 | AP114: 3500 | AQ114: 3164.272328 | AR114: 120.2423485 | AS114: 0.9677419355 | AT114: 3284.514676 | AY114: 512.9861014 | AZ114: 30 | BA114: 15389.58304 | BB114: 0.0580705299 | BC114: 0,95% | BD114: 15535.78408 | BE114: 15807.6603 | BM114: 1700 | BN114: 1716.230322 | BO114: 16.23032188 | BP114: 21.38076425 | BQ114: 2260.84955 | BR114: 2621.576596
Y115: =SUM(Y103:Y114) -> 4677977.702 | Z115: 390808.4964 | AA115: 457085.9607 | AB115: 1238862.934 | AC115: 13477642.49 | AD115: 8584485.665 | AE115: 858448.5665 | AF115: 390808.4964 | AI115: Approaching | AL115: 2000 | AM115: 1700 | AN115: 300 | AO115: 1785 | AP115: 2380 | AQ115: 2151.705183 | AR115: 360.7270454 | AS115: 0.2580645161 | AT115: 2512.432228 | AY115: 392.8772198 | AZ115: 8 | BA115: 3143.017758 | BB115: 0.04447408668 | BC115: 0,95% | BD115: 3172.876427 | BE115: 3228.401764 | BM115: 0 | BN115: 0 | BO115: =IF(BN115>0,BN115-BM115,"0") -> 0 | BP115: 0 | BQ115: 0 | BR115: 2945.937537
AI116: Cargo Operations | AL116: 2450 | AM116: 0 | AN116: 2450 | AO116: 0 | AP116: 0 | AQ116: 0 | AR116: 2945.937537 | AS116: 6.451612903 | AT116: 2945.937537 | AY116: =AM129-AP129 -> 465.1480322 | AZ116: 200 | BA116: 93029.60643 | BB116: 0.05265521354 | BC116: 0,95% | BD116: 93913.3877 | BE116: 95556.87198 | BM116: 1200 | BN116: 1211.456698 | BO116: 11.45669779 | BP116: 15.09230418 | BQ116: 1595.8938 | BR116: 2918.559633
AI117: =A111 -> Manoeuvring | AL117: 2300 | AM117: 1200 | AN117: 1100 | AO117: 1260 | AP117: 1680 | AQ117: 1518.850717 | AR117: 1322.665833 | AS117: 0.6129032258 | AT117: 2841.51655 | AY117: 445.962198 | AZ117: 19 | BA117: 8473.281762 | BB117: 0.05048335829 | BC117: 0,95% | BD117: 8553.777939 | BE117: 8703.469053 | BM117: 300 | BN117: 302.8641744 | BO117: 2.864174449 | BP117: 3.773076044 | BQ117: 398.97345 | BR117: 1240.669889
A118: LNG Const RPM | AI118: Tankwash | AL118: 1000 | AM118: 300 | AN118: 700 | AO118: 315 | AP118: 420 | AQ118: 379.7126793 | AR118: 841.6964392 | AS118: 1.516129032 | AT118: 1221.409118 | AY118: 192.1794939 | AZ118: 47 | BA118: 9032.436211 | BB118: 0.02175490723 | BC118: 0,95% | BD118: 9118.244356 | BE118: 9277.813632 | BM118: 400 | BN118: 403.8188993 | BO118: 3.818899265 | BP118: 5.030768059 | BQ118: 531.9646 | BR118: 1253.418691
C119: Const | D119: x | E119: x2 | F119: x3 | G119: x4 | H119: x5 | I119: x6 | M119: LNG | N119: 13.69 | O119: kWh/kg | AI119: Waiting on facility | AL119: 1000 | AM119: 400 | AN119: 600 | AO119: 420 | AP119: 560 | AQ119: 506.2835724 | AR119: 721.4540907 | AS119: 0.3225806452 | AT119: 1227.737663 | AY119: =AM132-AP132 -> 192.9538786 | AZ119: 10 | BA119: 1929.538786 | BB119: 0.02184256834 | BC119: 0,95% | BD119: 1947.869404 | BE119: 1981.957119 | BM119: 400 | BN119: 403.8188993 | BO119: 3.818899265 | BP119: 5.030768059 | BQ119: 531.9646 | BR119: 1253.418691
A120: LNG | C120: 0.3101 | D120: 0.3883 | E120: -0.204 | F120: 0 | G120: 0 | H120: 0 | I120: =F!I31 -> 0 | AI120: Operational STBY | AL120: 1000 | AM120: 400 | AN120: 600 | AO120: 420 | AP120: 560 | AQ120: 506.2835724 | AR120: 721.4540907 | AS120: 0.6451612903 | AT120: 1227.737663 | AY120: 192.9538786 | AZ120: 20 | BA120: 3859.077572 | BB120: 0.02184256834 | BC120: 0,95% | BD120: 3895.738809 | BE120: 3963.914238
D121: =D102 -> kW | E121: =E102 -> For propulsion | F121: =F102 -> For elecricity | G121: =G102 -> For propulsion with sea margin | H121: =H102 -> Max power for powertrain dimension | I121: For propulsion, incl losses | J121: For Electricity, incl losses | K121: Total Power | L121: % load | M121: Thermal Efficnecy Engine | N121: Necessary kW | O121: kg | P121: liters | Q121: CO2, kg | R121: Nox, g | S121: CO, g | T121: PM, g | U121: SO, g | V121: Overall efficiency | W121: Carbon Footprint | X121: Hours | Y121: =N121 -> Necessary kW | Z121: kg | AA121: liters | AB121: CO2, kg | AC121: Nox, g | AD121: CO, g | AE121: PM, g | AF121: SO, g | BM121: Adding Admiralty
A122: =A50 -> Standby in Harbour | D122: =E50 -> 280 | E122: =F50 -> 0 | F122: =G50 -> 280 | G122: =H50 -> 0 | H122: =I50 -> 0 | I122: =E122/$N$19 -> 0 | J122: =F122/$N$30 -> 354.3985007 | K122: =J122+I122 -> 354.3985007 | L122: =K122/'B2'!$C$26 -> 0.08178426939 | M122: =$C$120+($D$120*L122)+($E$120*(L122^2))+($F$120*(L122^3))+($G$120*(L122^4))+($H$120*(L122^5))+($I$120*(L122^6)) -> 0.3404923438 | N122: =K122/M122 -> 1040.84132 | O122: =N122/$N$119 -> 76.02931486 | P122: =O122/0.855 -> 88.92317527 | Q122: =O122*'B2'!$E$44 -> 209.5367917 | R122: ='B2'!$G$44*K122 -> 531.5977511 | S122: ='B2'!$I$44*K122 -> 17.71992504 | T122: ='B2'!$K$44*K122 -> 1.771992504 | U122: =O122*'B2'!$M$44 -> 0.7602931486 | X122: =X103 -> 72 | Y122: =N122*X122 -> 74940.57507 | Z122: =O122*X122 -> 5474.11067 | AA122: =P122*X122 -> 6402.46862 | AB122: =Q122*X122 -> 15086.64901 | AC122: =R122*X122 -> 38275.03808 | AD122: =S122*X122 -> 1275.834603 | AE122: =T122*X122 -> 127.5834603 | AF122: =U122*X122 -> 54.7411067 | AL122: min | AM122: kW | AN122: kWh | AO122: Thermal Efficiency, before hybrid | AP122: Left for engine | AQ122: % | AR122: Engine efficiency | AS122: kW consumed | AT122: kg fuel | AU122: CO2, kg | AV122: Nox, g | AW122: CO, g | AX122: PM, g | AY122: SO, g | AZ122: =V84 -> Overall efficiency | BA122: =W84 -> Carbon Footprint | BB122: =X84 -> Hours | BC122: =Y84 -> Necessary kW | BD122: =Z84 -> kg | BE122: CO2, kg | BF122: Nox, g | BG122: CO, g | BH122: PM, g | BI122: SO, g | BM122: kW | BN122: Thermal Efficiency, before hybrid | BO122: Left for engine | BP122: % | BQ122: Engine efficiency | BR122: kW consumed | BS122: kg fuel | BT122: CO2, kg | BU122: Nox, g | BV122: CO, g | BW122: PM, g | BX122: SO, g | BY122: =AZ122 -> Overall efficiency | BZ122: =BA122 -> Carbon Footprint | CA122: Hours | CB122: Necessary kW | CC122: kg | CD122: CO2, kg | CE122: Nox, g | CF122: CO, g | CG122: PM, g | CH122: SO, g
A123: =A51 -> Pulling out | D123: =E51 -> 1500 | E123: 1300 | F123: 200 | G123: 1365 | H123: 1820 | I123: =E123/$N$19 -> 1645.42161 | J123: =F123/$N$30 -> 253.1417862 | K123: =J123+I123 -> 1898.563397 | L123: =K123/'B2'!$C$26 -> 0.4381300146 | M123: =$C$120+($D$120*L123)+($E$120*(L123^2))+($F$120*(L123^3))+($G$120*(L123^4))+($H$120*(L123^5))+($I$120*(L123^6)) -> 0.4410664711 | N123: =K123/M123 -> 4304.483612 | O123: =N123/$N$119 -> 314.4253917 | P123: =O123/0.855 -> 367.7489961 | Q123: =O123*'B2'!$E$44 -> 866.5563795 | R123: ='B2'!$G$44*K123 -> 2847.845095 | S123: ='B2'!$I$44*K123 -> 94.92816983 | T123: ='B2'!$K$44*K123 -> 9.492816983 | U123: =O123*'B2'!$M$44 -> 3.144253917 | X123: =X104 -> 8 | Y123: =N123*X123 -> 34435.8689 | Z123: =O123*X123 -> 2515.403133 | AA123: =P123*X123 -> 2941.991969 | AB123: =Q123*X123 -> 6932.451036 | AC123: =R123*X123 -> 22782.76076 | AD123: =S123*X123 -> 759.4253587 | AE123: =T123*X123 -> 75.94253587 | AF123: =U123*X123 -> 25.15403133 | AI123: ='B1'!H17 -> Pulling out | AL123: ='B1'!K17 -> 5 | AM123: =K104 -> 1965.67674 | AN123: =AM123*((1/60)*AL123) -> 163.806395 | AO123: =M103 -> 0.2418096514 | AP123: =AM123*(1-$AI$106) -> 1670.825229 | AQ123: =AP123/'B2'!$C$26 -> 0.3855750529 | AR123: =$C$101+($D$101*AQ123)+($E$101*(AQ123^2))+($F$101*(AQ123^3))+($G$101*(AQ123^4))+($H$101*(AQ123^5))+($I$101*(AQ123^6)) -> 0.3440659378 | AS123: =AP123/AR123 -> 4856.119266 | AT123: =AS123/$N$82 -> 405.6908325 | AU123: =AT123*3.17 -> 1286.039939 | AV123: =AP123*7.85 -> 13115.97805 | AW123: =AP123*5 -> 8354.126146 | AX123: =AP123*0.5 -> 835.4126146 | AY123: =(AT123*1000)*0.001 -> 405.6908325 | BB123: =X123 -> 8 | BC123: =AS123*BB123 -> 38848.95412 | BD123: =AT123*BB123 -> 3245.52666 | BE123: =AU123*BB123 -> 10288.31951 | BF123: =AV123*BB123 -> 104927.8244 | BG123: =AW123*BB123 -> 66833.00916 | BH123: =AX123*BB123 -> 6683.300916 | BI123: =AY123*BB123 -> 3245.52666 | BM123: =K104+BO108 -> 1965.67674 | BN123: =AO123 -> 0.2418096514 | BO123: =BM123*(1-$AI$106) -> 1670.825229 | BP123: =BO123/'B2'!$C$26 -> 0.3855750529 | BQ123: =$C$101+($D$101*BP123)+($E$101*(BP123^2))+($F$101*(BP123^3))+($G$101*(BP123^4))+($H$101*(BP123^5))+($I$101*(BP123^6)) -> 0.3440659378 | BR123: =BO123/BQ123 -> 4856.119266 | BS123: =BR123/$N$82 -> 405.6908325 | BT123: =BS123*'B2'!$E$43 -> 1286.039939 | BU123: =BO123*'B2'!$G$43 -> 13115.97805 | BV123: =BO123*'B2'!$I$43 -> 8354.126146 | BW123: =BO123*'B2'!$K$43 -> 835.4126146 | BX123: =BS123*'B2'!$M$43 -> 405.6908325 | CA123: =BB123 -> 8 | CB123: =BR123*CA123 -> 38848.95412 | CC123: =BS123*CA123 -> 3245.52666 | CD123: =BT123*CA123 -> 10288.31951 | CE123: =BU123*CA123 -> 104927.8244 | CF123: =BV123*CA123 -> 66833.00916 | CG123: =BW123*CA123 -> 6683.300916 | CH123: =BX123*CA123 -> 3245.52666
A124: Transit without cargo, ECO | D124: 1500 | E124: 1100 | F124: 400 | G124: 1155 | H124: 1540 | I124: 1392.279824 | J124: 506.2835724 | K124: 1898.563397 | L124: =K124/'B2'!$C$26 -> 0.4381300146 | M124: 0.4410664711 | N124: 4304.483612 | O124: 314.4253917 | P124: 367.7489961 | Q124: =O124*'B2'!$E$44 -> 866.5563795 | R124: ='B2'!$G$44*K124 -> 2847.845095 | S124: ='B2'!$I$44*K124 -> 94.92816983 | T124: ='B2'!$K$44*K124 -> 9.492816983 | U124: =O124*'B2'!$M$44 -> 3.144253917 | X124: 150 | Y124: 645672.5418 | Z124: 47163.80875 | AA124: 55162.34942 | AB124: 129983.4569 | AC124: 427176.7642 | AD124: 14239.22547 | AE124: 1423.922547 | AF124: 471.6380875 | AI124: ='B1'!H18 -> Transit without cargo, ECO | AL124: ='B1'!K18 -> 300 | AM124: =K105 -> 1955.35161 | AN124: =AM124*((1/60)*AL124) -> 9776.758052 | AO124: =M104 -> 0.3640820033 | AP124: =AM124*(1-$AI$106) -> 1662.048869 | AQ124: =AP124/'B2'!$C$26 -> 0.383549739 | AR124: =$C$101+($D$101*AQ124)+($E$101*(AQ124^2))+($F$101*(AQ124^3))+($G$101*(AQ124^4))+($H$101*(AQ124^5))+($I$101*(AQ124^6)) -> 0.3437866937 | AS124: =AP124/AR124 -> 4834.53519 | AT124: =AS124/$N$82 -> 403.8876516 | AU124: =AT124*3.17 -> 1280.323856 | AV124: =AP124*7.85 -> 13047.08362 | AW124: =AP124*5 -> 8310.244344 | AX124: =AP124*0.5 -> 831.0244344 | AY124: =(AT124*1000)*0.001 -> 403.8876516 | BB124: =X124 -> 150 | BC124: =AS124*BB124 -> 725180.2785 | BD124: =AT124*BB124 -> 60583.14775 | BE124: =AU124*BB124 -> 192048.5784 | BF124: =AV124*BB124 -> 1957062.543 | BG124: =AW124*BB124 -> 1246536.652 | BH124: =AX124*BB124 -> 124653.6652 | BI124: =AY124*BB124 -> 60583.14775 | BM124: =K105+BO109 -> 1967.763033 | BN124: =AO124 -> 0.3640820033 | BO124: =BM124*(1-$AI$106) -> 1672.598578 | BP124: =BO124/'B2'!$C$26 -> 0.3859842872 | BQ124: =$C$101+($D$101*BP124)+($E$101*(BP124^2))+($F$101*(BP124^3))+($G$101*(BP124^4))+($H$101*(BP124^5))+($I$101*(BP124^6)) -> 0.3441220861 | BR124: =BO124/BQ124 -> 4860.480177 | BS124: =BR124/$N$82 -> 406.0551526 | BT124: =BS124*'B2'!$E$43 -> 1287.194834 | BU124: =BO124*'B2'!$G$43 -> 13129.89884 | BV124: =BO124*'B2'!$I$43 -> 8362.99289 | BW124: =BO124*'B2'!$K$43 -> 836.299289 | BX124: =BS124*'B2'!$M$43 -> 406.0551526 | CA124: =BB124 -> 150 | CB124: =BR124*CA124 -> 729072.0266 | CC124: =BS124*CA124 -> 60908.2729 | CD124: =BT124*CA124 -> 193079.2251 | CE124: =BU124*CA124 -> 1969484.826 | CF124: =BV124*CA124 -> 1254448.934 | CG124: =BW124*CA124 -> 125444.8934 | CH124: =BX124*CA124 -> 60908.2729
A125: Transit without cargo, FULL | D125: 2300 | E125: 2000 | F125: 300 | G125: 2100 | H125: 2800 | I125: 2531.417862 | J125: 379.7126793 | K125: 2911.130542 | L125: =K125/'B2'!$C$26 -> 0.6717993557 | M125: 0.4788915575 | N125: 6078.893011 | O125: 444.0389343 | P125: 519.3437828 | Q125: =O125*'B2'!$E$44 -> 1223.771303 | R125: ='B2'!$G$44*K125 -> 4366.695812 | S125: ='B2'!$I$44*K125 -> 145.5565271 | T125: ='B2'!$K$44*K125 -> 14.55565271 | U125: =O125*'B2'!$M$44 -> 4.440389343 | X125: 30 | Y125: 182366.7903 | Z125: 13321.16803 | AA125: 15580.31348 | AB125: 36713.13909 | AC125: 131000.8744 | AD125: 4366.695812 | AE125: 436.6695812 | AF125: 133.2116803 | AI125: ='B1'!H19 -> Transit without cargo, FULL | AL125: ='B1'!K19 -> 0 | AM125: 3014.381839 | AN125: 0 | AO125: 0.3639502394 | AP125: 2562.224563 | AQ125: =AP125/'B2'!$C$26 -> 0.5912825915 | AR125: 0.3640810821 | AS125: 7037.510844 | AT125: 587.9290596 | AU125: 1863.735119 | AV125: 20113.46282 | AW125: 12811.12282 | AX125: 1281.112282 | AY125: 587.9290596 | BB125: 30 | BC125: 211125.3253 | BD125: 17637.87179 | BE125: 55912.05357 | BF125: 603403.8847 | BG125: 384333.6845 | BH125: 38433.36845 | BI125: 17637.87179 | BM125: 3024.883812 | BN125: 0.3639502394 | BO125: 2571.15124 | BP125: =BO125/'B2'!$C$26 -> 0.5933425939 | BQ125: 0.3642150793 | BR125: 7059.431052 | BS125: 589.7603218 | BT125: =BS125*'B2'!$E$43 -> 1869.54022 | BU125: =BO125*'B2'!$G$43 -> 20183.53724 | BV125: =BO125*'B2'!$I$43 -> 12855.7562 | BW125: =BO125*'B2'!$K$43 -> 1285.57562 | BX125: =BS125*'B2'!$M$43 -> 589.7603218 | CA125: 30 | CB125: 211782.9316 | CC125: 17692.80965 | CD125: 56086.2066 | CE125: 605506.1171 | CF125: 385672.6861 | CG125: 38567.26861 | CH125: 17692.80965
A126: Transit with cargo, ECO | D126: 2000 | E126: 1700 | F126: 300 | G126: 1785 | H126: 2380 | I126: 2151.705183 | J126: 379.7126793 | K126: 2531.417862 | L126: =K126/'B2'!$C$26 -> 0.5841733528 | M126: 0.4673177776 | N126: 5416.908971 | O126: 395.6836356 | P126: 462.7878779 | Q126: =O126*'B2'!$E$44 -> 1090.5041 | R126: ='B2'!$G$44*K126 -> 3797.126793 | S126: ='B2'!$I$44*K126 -> 126.5708931 | T126: ='B2'!$K$44*K126 -> 12.65708931 | U126: =O126*'B2'!$M$44 -> 3.956836356 | X126: 150 | Y126: 812536.3457 | Z126: 59352.54534 | AA126: 69418.18168 | AB126: 163575.615 | AC126: 569569.019 | AD126: 18985.63397 | AE126: 1898.563397 | AF126: 593.5254534 | AI126: ='B1'!H20 -> Transit with cargo, ECO | AL126: ='B1'!K20 -> 600 | AM126: 2619.181465 | AN126: 26191.81465 | AO126: 0.3731341038 | AP126: 2226.304245 | AQ126: =AP126/'B2'!$C$26 -> 0.5137625182 | AR126: 0.3581482665 | AS126: 6216.152509 | AT126: 519.3109865 | AU126: 1646.215827 | AV126: 17476.48833 | AW126: 11131.52123 | AX126: 1113.152123 | AY126: 519.3109865 | BB126: 150 | BC126: 932422.8763 | BD126: 77896.64798 | BE126: 246932.3741 | BF126: 2621473.249 | BG126: 1669728.184 | BH126: 166972.8184 | BI126: 77896.64798 | BM126: 2638.275962 | BN126: 0.3731341038 | BO126: 2242.534567 | BP126: =BO126/'B2'!$C$26 -> 0.5175079771 | BQ126: 0.358474831 | BR126: 6255.765742 | BS126: 522.6203628 | BT126: =BS126*'B2'!$E$43 -> 1656.70655 | BU126: =BO126*'B2'!$G$43 -> 17603.89635 | BV126: =BO126*'B2'!$I$43 -> 11212.67284 | BW126: =BO126*'B2'!$K$43 -> 1121.267284 | BX126: =BS126*'B2'!$M$43 -> 522.6203628 | CA126: 150 | CB126: 938364.8613 | CC126: 78393.05441 | CD126: 248505.9825 | CE126: 2640584.453 | CF126: 1681900.925 | CG126: 168190.0925 | CH126: 78393.05441
A127: Transit with cargo, FULL | D127: 2600 | E127: 2500 | F127: 100 | G127: 2625 | H127: 3500 | I127: 3164.272328 | J127: 126.5708931 | K127: 3290.843221 | L127: =K127/'B2'!$C$26 -> 0.7594253587 | M127: 0.4873325842 | N127: 6752.766648 | O127: 493.2627208 | P127: 576.9154629 | Q127: =O127*'B2'!$E$44 -> 1359.432059 | R127: ='B2'!$G$44*K127 -> 4936.264831 | S127: ='B2'!$I$44*K127 -> 164.542161 | T127: ='B2'!$K$44*K127 -> 16.4542161 | U127: =O127*'B2'!$M$44 -> 4.932627208 | X127: 30 | Y127: 202582.9994 | Z127: 14797.88162 | AA127: 17307.46389 | AB127: 40782.96176 | AC127: 148087.9449 | AD127: 4936.264831 | AE127: 493.6264831 | AF127: 147.9788162 | AI127: ='B1'!H21 -> Transit with cargo, FULL | AL127: ='B1'!K21 -> 0 | AM127: 3419.907343 | AN127: 0 | AO127: 0.3696785733 | AP127: 2906.921242 | AQ127: =AP127/'B2'!$C$26 -> 0.6708279788 | AR127: 0.3683311272 | AS127: 7892.141138 | AT127: 659.326745 | AU127: 2090.065782 | AV127: 22819.33175 | AW127: 14534.60621 | AX127: 1453.460621 | AY127: 659.326745 | BB127: 30 | BC127: 236764.2341 | BD127: 19779.80235 | BE127: 62701.97345 | BF127: 684579.9524 | BG127: 436038.1862 | BH127: 43603.81862 | BI127: 19779.80235 | BM127: 3436.137665 | BN127: 0.3696785733 | BO127: 2920.717015 | BP127: =BO127/'B2'!$C$26 -> 0.6740116189 | BQ127: 0.3684608738 | BR127: 7926.803693 | BS127: 662.2225307 | BT127: =BS127*'B2'!$E$43 -> 2099.245422 | BU127: =BO127*'B2'!$G$43 -> 22927.62857 | BV127: =BO127*'B2'!$I$43 -> 14603.58508 | BW127: =BO127*'B2'!$K$43 -> 1460.358508 | BX127: =BS127*'B2'!$M$43 -> 662.2225307 | CA127: 30 | CB127: 237804.1108 | CC127: 19866.67592 | CD127: 62977.36267 | CE127: 687828.8571 | CF127: 438107.5523 | CG127: 43810.75523 | CH127: 19866.67592
A128: Approaching | D128: 2000 | E128: 1700 | F128: 300 | G128: 1785 | H128: 2380 | I128: 2151.705183 | J128: 379.7126793 | K128: 2531.417862 | L128: =K128/'B2'!$C$26 -> 0.5841733528 | M128: 0.4673177776 | N128: 5416.908971 | O128: 395.6836356 | P128: 462.7878779 | Q128: =O128*'B2'!$E$44 -> 1090.5041 | R128: ='B2'!$G$44*K128 -> 3797.126793 | S128: ='B2'!$I$44*K128 -> 126.5708931 | T128: ='B2'!$K$44*K128 -> 12.65708931 | U128: =O128*'B2'!$M$44 -> 3.956836356 | X128: 8 | Y128: 43335.27177 | Z128: 3165.469085 | AA128: 3702.303023 | AB128: 8724.032798 | AC128: 30377.01435 | AD128: 1012.567145 | AE128: 101.2567145 | AF128: 31.65469085 | AI128: ='B1'!H22 -> Approaching | AL128: ='B1'!K22 -> 20 | AM128: 2619.181465 | AN128: 873.0604884 | AO128: 0.3769832224 | AP128: 2226.304245 | AQ128: =AP128/'B2'!$C$26 -> 0.5137625182 | AR128: 0.3581482665 | AS128: 6216.152509 | AT128: 519.3109865 | AU128: 1646.215827 | AV128: 17476.48833 | AW128: 11131.52123 | AX128: 1113.152123 | AY128: 519.3109865 | BB128: 8 | BC128: 49729.22007 | BD128: 4154.487892 | BE128: 13169.72662 | BF128: 139811.9066 | BG128: 89052.16982 | BH128: 8905.216982 | BI128: 4154.487892 | BM128: 2643.049586 | BN128: 0.3769832224 | BO128: 2246.592148 | BP128: =BO128/'B2'!$C$26 -> 0.5184443418 | BQ128: 0.3585558276 | BR128: 6265.66904 | BS128: 523.4477059 | BT128: =BS128*'B2'!$E$43 -> 1659.329228 | BU128: =BO128*'B2'!$G$43 -> 17635.74836 | BV128: =BO128*'B2'!$I$43 -> 11232.96074 | BW128: =BO128*'B2'!$K$43 -> 1123.296074 | BX128: =BS128*'B2'!$M$43 -> 523.4477059 | CA128: 8 | CB128: 50125.35232 | CC128: 4187.581647 | CD128: 13274.63382 | CE128: 141085.9869 | CF128: 89863.68591 | CG128: 8986.368591 | CH128: 4187.581647
A129: Cargo Operations | D129: 2450 | E129: 0 | F129: 2450 | G129: 0 | H129: 0 | I129: 0 | J129: 3100.986881 | K129: 3100.986881 | L129: =K129/'B2'!$C$26 -> 0.7156123572 | M129: 0.483503665 | N129: 6413.574717 | O129: 468.4861006 | P129: 547.9369597 | Q129: =O129*'B2'!$E$44 -> 1291.147693 | R129: ='B2'!$G$44*K129 -> 4651.480322 | S129: ='B2'!$I$44*K129 -> 155.0493441 | T129: ='B2'!$K$44*K129 -> 15.50493441 | U129: =O129*'B2'!$M$44 -> 4.684861006 | X129: 200 | Y129: 1282714.943 | Z129: 93697.22012 | AA129: 109587.3919 | AB129: 258229.5386 | AC129: 930296.0643 | AD129: 31009.86881 | AE129: 3100.986881 | AF129: 936.9722012 | AI129: ='B1'!H23 -> Cargo Operations | AL129: ='B1'!K23 -> 120 | AM129: 3100.986881 | AN129: 6201.973762 | AO129: 0.3696785733 | AP129: 2635.838849 | AQ129: =AP129/'B2'!$C$26 -> 0.6082705036 | AR129: 0.36514882 | AS129: 7218.533114 | AT129: 603.0520563 | AU129: 1911.675019 | AV129: 20691.33496 | AW129: 13179.19424 | AX129: 1317.919424 | AY129: 603.0520563 | BB129: 200 | BC129: 1443706.623 | BD129: 120610.4113 | BE129: 382335.0037 | BF129: 4138266.993 | BG129: 2635838.849 | BH129: 263583.8849 | BI129: 120610.4113 | BM129: 3117.217203 | BN129: 0.3696785733 | BO129: 2649.634623 | BP129: =BO129/'B2'!$C$26 -> 0.6114541437 | BQ129: 0.3653394253 | BR129: 7252.528577 | BS129: 605.8921117 | BT129: =BS129*'B2'!$E$43 -> 1920.677994 | BU129: =BO129*'B2'!$G$43 -> 20799.63179 | BV129: =BO129*'B2'!$I$43 -> 13248.17311 | BW129: =BO129*'B2'!$K$43 -> 1324.817311 | BX129: =BS129*'B2'!$M$43 -> 605.8921117 | CA129: 200 | CB129: 1450505.715 | CC129: 121178.4223 | CD129: 384135.5988 | CE129: 4159926.357 | CF129: 2649634.623 | CG129: 264963.4623 | CH129: 121178.4223
A130: Manoeuvring | D130: 2300 | E130: 1200 | F130: 1100 | G130: 1260 | H130: 1680 | I130: 1518.850717 | J130: 1392.279824 | K130: 2911.130542 | L130: =K130/'B2'!$C$26 -> 0.6717993557 | M130: 0.4788915575 | N130: 6078.893011 | O130: 444.0389343 | P130: 519.3437828 | Q130: =O130*'B2'!$E$44 -> 1223.771303 | R130: ='B2'!$G$44*K130 -> 4366.695812 | S130: ='B2'!$I$44*K130 -> 145.5565271 | T130: ='B2'!$K$44*K130 -> 14.55565271 | U130: =O130*'B2'!$M$44 -> 4.440389343 | X130: 19 | Y130: 115498.9672 | Z130: 8436.739752 | AA130: 9867.531873 | AB130: 23251.65476 | AC130: 82967.22043 | AD130: 2765.574014 | AE130: 276.5574014 | AF130: 84.36739752 | AI130: ='B1'!H24 -> Manoeuvring | AL130: ='B1'!K24 -> 40 | AM130: 2973.08132 | AN130: 1982.054213 | AO130: 0.3740923646 | AP130: 2527.119122 | AQ130: =AP130/'B2'!$C$26 -> 0.5831813359 | AR130: 0.3635421112 | AS130: 6951.379344 | AT130: 580.7334456 | AU130: 1840.925022 | AV130: 19837.88511 | AW130: 12635.59561 | AX130: 1263.559561 | AY130: 580.7334456 | BB130: 19 | BC130: 132076.2075 | BD130: 11033.93547 | BE130: 34977.57543 | BF130: 376919.8171 | BG130: 240076.3166 | BH130: 24007.63166 | BI130: 11033.93547 | BM130: 2973.08132 | BN130: 0.3740923646 | BO130: 2527.119122 | BP130: =BO130/'B2'!$C$26 -> 0.5831813359 | BQ130: 0.3635421112 | BR130: 6951.379344 | BS130: 580.7334456 | BT130: =BS130*'B2'!$E$43 -> 1840.925022 | BU130: =BO130*'B2'!$G$43 -> 19837.88511 | BV130: =BO130*'B2'!$I$43 -> 12635.59561 | BW130: =BO130*'B2'!$K$43 -> 1263.559561 | BX130: =BS130*'B2'!$M$43 -> 580.7334456 | CA130: 19 | CB130: 132076.2075 | CC130: 11033.93547 | CD130: 34977.57543 | CE130: 376919.8171 | CF130: 240076.3166 | CG130: 24007.63166 | CH130: 11033.93547
A131: Tankwash | D131: 1000 | E131: 300 | F131: 700 | G131: 315 | H131: 420 | I131: 379.7126793 | J131: 885.9962518 | K131: 1265.708931 | L131: =K131/'B2'!$C$26 -> 0.2920866764 | M131: 0.4061130726 | N131: 3116.641685 | O131: 227.6582677 | P131: 266.2669798 | Q131: =O131*'B2'!$E$44 -> 627.4261859 | R131: ='B2'!$G$44*K131 -> 1898.563397 | S131: ='B2'!$I$44*K131 -> 63.28544655 | T131: ='B2'!$K$44*K131 -> 6.328544655 | U131: =O131*'B2'!$M$44 -> 2.276582677 | X131: 47 | Y131: 146482.1592 | Z131: 10699.93858 | AA131: 12514.54805 | AB131: 29489.03074 | AC131: 89232.47964 | AD131: 2974.415988 | AE131: 297.4415988 | AF131: 106.9993858 | AI131: ='B1'!H25 -> Tankwash | AL131: ='B1'!K25 -> 60 | AM131: 1281.196626 | AN131: 1281.196626 | AO131: 0.3726958715 | AP131: 1089.017132 | AQ131: =AP131/'B2'!$C$26 -> 0.2513116458 | AR131: 0.3185114108 | AS131: 3419.083571 | AT131: 285.6377252 | AU131: 905.471589 | AV131: 8548.784485 | AW131: 5445.085659 | AX131: 544.5085659 | AY131: 285.6377252 | BB131: 47 | BC131: 160696.9278 | BD131: 13424.97309 | BE131: 42557.16468 | BF131: 401792.8708 | BG131: 255919.026 | BH131: 25591.9026 | BI131: 13424.97309 | BM131: 1292.653324 | BN131: 0.3726958715 | BO131: 1098.755325 | BP131: =BO131/'B2'!$C$26 -> 0.2535589212 | BQ131: 0.3191009584 | BR131: 3443.284316 | BS131: 287.6595084 | BT131: =BS131*'B2'!$E$43 -> 911.8806417 | BU131: =BO131*'B2'!$G$43 -> 8625.229301 | BV131: =BO131*'B2'!$I$43 -> 5493.776625 | BW131: =BO131*'B2'!$K$43 -> 549.3776625 | BX131: =BS131*'B2'!$M$43 -> 287.6595084 | CA131: 47 | CB131: 161834.3628 | CC131: 13519.9969 | CD131: 42858.39016 | CE131: 405385.7772 | CF131: 258207.5014 | CG131: 25820.75014 | CH131: 13519.9969
A132: Waiting on facility | D132: 1000 | E132: 400 | F132: 600 | G132: 420 | H132: 560 | I132: 506.2835724 | J132: 759.4253587 | K132: 1265.708931 | L132: =K132/'B2'!$C$26 -> 0.2920866764 | M132: 0.4061130726 | N132: 3116.641685 | O132: 227.6582677 | P132: 266.2669798 | Q132: =O132*'B2'!$E$44 -> 627.4261859 | R132: ='B2'!$G$44*K132 -> 1898.563397 | S132: ='B2'!$I$44*K132 -> 63.28544655 | T132: ='B2'!$K$44*K132 -> 6.328544655 | U132: =O132*'B2'!$M$44 -> 2.276582677 | X132: 10 | Y132: 31166.41685 | Z132: 2276.582677 | AA132: 2662.669798 | AB132: 6274.261859 | AC132: 18985.63397 | AD132: 632.8544655 | AE132: 63.28544655 | AF132: 22.76582677 | AI132: ='B1'!H26 -> Waiting on facility | AL132: ='B1'!K26 -> 30 | AM132: 1286.359191 | AN132: 643.1795953 | AO132: 0.3528583813 | AP132: 1093.405312 | AQ132: =AP132/'B2'!$C$26 -> 0.2523243028 | AR132: 0.3187779885 | AS132: 3429.989998 | AT132: 286.548872 | AU132: 908.3599242 | AV132: 8583.231699 | AW132: 5467.02656 | AX132: 546.702656 | AY132: 286.548872 | BB132: 10 | BC132: 34299.89998 | BD132: 2865.48872 | BE132: 9083.599242 | BF132: 85832.31699 | BG132: 54670.2656 | BH132: 5467.02656 | BI132: 2865.48872 | BM132: 1289.223365 | BN132: 0.3528583813 | BO132: 1095.83986 | BP132: =BO132/'B2'!$C$26 -> 0.2528861216 | BQ132: 0.3189252341 | BR132: 3436.039997 | BS132: 287.0543022 | BT132: =BS132*'B2'!$E$43 -> 909.9621378 | BU132: =BO132*'B2'!$G$43 -> 8602.342903 | BV132: =BO132*'B2'!$I$43 -> 5479.199302 | BW132: =BO132*'B2'!$K$43 -> 547.9199302 | BX132: =BS132*'B2'!$M$43 -> 287.0543022 | CA132: 10 | CB132: 34360.39997 | CC132: 2870.543022 | CD132: 9099.621378 | CE132: 86023.42903 | CF132: 54791.99302 | CG132: 5479.199302 | CH132: 2870.543022
A133: Operational STBY | D133: 1000 | E133: 400 | F133: 600 | G133: 420 | H133: 560 | I133: 506.2835724 | J133: 759.4253587 | K133: 1265.708931 | L133: =K133/'B2'!$C$26 -> 0.2920866764 | M133: 0.4061130726 | N133: 3116.641685 | O133: 227.6582677 | P133: 266.2669798 | Q133: =O133*'B2'!$E$44 -> 627.4261859 | R133: ='B2'!$G$44*K133 -> 1898.563397 | S133: ='B2'!$I$44*K133 -> 63.28544655 | T133: ='B2'!$K$44*K133 -> 6.328544655 | U133: =O133*'B2'!$M$44 -> 2.276582677 | X133: 20 | Y133: 62332.8337 | Z133: 4553.165355 | AA133: 5325.339596 | AB133: 12548.52372 | AC133: 37971.26793 | AD133: 1265.708931 | AE133: 126.5708931 | AF133: 45.53165355 | AI133: ='B1'!H27 -> Operational STBY | AL133: ='B1'!K27 -> 0 | AM133: 1286.359191 | AN133: 0 | AO133: 0.3529460427 | AP133: 1093.405312 | AQ133: =AP133/'B2'!$C$26 -> 0.2523243028 | AR133: 0.3187779885 | AS133: 3429.989998 | AT133: 286.548872 | AU133: 908.3599242 | AV133: 8583.231699 | AW133: 5467.02656 | AX133: 546.702656 | AY133: 286.548872 | BB133: 20 | BC133: 68599.79995 | BD133: 5730.97744 | BE133: 18167.19848 | BF133: 171664.634 | BG133: 109340.5312 | BH133: 10934.05312 | BI133: 5730.97744 | BM133: 1290.17809 | BN133: 0.3529460427 | BO133: 1096.651376 | BP133: =BO133/'B2'!$C$26 -> 0.2530733946 | BQ133: 0.3189742132 | BR133: 3438.05653 | BS133: 287.2227677 | BT133: =BS133*'B2'!$E$43 -> 910.4961737 | BU133: =BO133*'B2'!$G$43 -> 8608.713305 | BV133: =BO133*'B2'!$I$43 -> 5483.256882 | BW133: =BO133*'B2'!$K$43 -> 548.3256882 | BX133: =BS133*'B2'!$M$43 -> 287.2227677 | CA133: 20 | CB133: 68761.1306 | CC133: 5744.455355 | CD133: 18209.92347 | CE133: 172174.2661 | CF133: 109665.1376 | CG133: 10966.51376 | CH133: 5744.455355
Y134: =SUM(Y122:Y133) -> 3634065.713 | Z134: 265454.0331 | AA134: 310472.5534 | AB134: 731591.3153 | AC134: 2526722.082 | AD134: 84224.0694 | AE134: 8422.40694 | AF134: 2654.540331 | AL134: =(SUM(AL123:AL133))/60 -> 19.58333333 | BC134: =SUM(BC123:BC133) -> 4033450.347 | BD134: 336963.2704 | BE134: 1068173.567 | BF134: 11285735.99 | BG134: 7188366.874 | BH134: 718836.6874 | BI134: 336963.2704 | CB134: =SUM(CB123:CB133) -> 4053536.053 | CC134: =SUM(CC123:CC133) -> 338641.2743 | CD134: 1073492.839 | CE134: 11349847.71 | CF134: 7229202.364 | CG134: 722920.2364 | CH134: 338641.2743
AI135: ='B1'!H28 -> 0 | AL135: ='B1'!K28 -> 0 | AN135: =SUM(AN123:AN133) -> 47113.84378 | AO135: kWh
CA136: =SUM(CA123:CA133) -> 672
A137: LNG Const RPM - hybrid | AH137: Hybridization
C138: Const | D138: x | E138: x2 | F138: x3 | G138: x4 | H138: x5 | I138: x6 | M138: LNG | N138: 13.69 | O138: kWh/kg
A139: LNG hybrid | C139: =C120 -> 0.3101 | D139: =D120 -> 0.3883 | E139: -0.204 | F139: 0 | G139: 0 | H139: 0 | I139: 0
D140: =D66 -> kW | E140: =E66 -> For propulsion | F140: For elecricity | G140: For propulsion with sea margin | H140: Max power for powertrain dimension | I140: For propulsion, incl losses | J140: For Electricity, incl losses | K140: Total Power | L140: % load | M140: Thermal Efficnecy Engine | N140: Necessary kW | O140: kg | P140: liters | Q140: CO2, kg | R140: Nox, g | S140: CO, g | T140: PM, g | U140: SO, g | V140: Overall efficiency | W140: Carbon Footprint | X140: Hours | Y140: Necessary kW | Z140: kg | AA140: liters | AB140: CO2, kg | AC140: Nox, g | AD140: CO, g | AE140: PM, g | AF140: SO, g | AH140: Charging power | AI140: =F!C53 -> 1400 | AJ140: kW | AL140: Battery cycluses | AN140: =AI142*365*AI143 -> 4473.191489 | AP140: Admirality coefficient
A141: =A50 -> Standby in Harbour | D141: =E50 -> 280 | E141: =F50 -> 0 | F141: =G50 -> 280 | G141: =H50 -> 0 | H141: =I50 -> 0 | I141: =E141/$P$19 -> 0 | J141: =F141/$P$30 -> 354.3985007 | K141: =J141+I141 -> 354.3985007 | L141: =K141/'B2'!$C$26 -> 0.08178426939 | M141: =$C$139+($D$139*L141)+($E$139*(L141^2))+($F$139*(L141^3))+($G$139*(L141^4))+($H$139*(L141^5))+($I$139*(L141^6)) -> 0.3404923438 | N141: =K141/M141 -> 1040.84132 | O141: =N141/$N$138 -> 76.02931486 | P141: =O141/0.855 -> 88.92317527 | Q141: =O141*'B2'!$E$44 -> 209.5367917 | R141: ='B2'!$G$44*K141 -> 531.5977511 | S141: ='B2'!$I$44*K141 -> 17.71992504 | T141: ='B2'!$K$44*K141 -> 1.771992504 | U141: =O141*'B2'!$M$44 -> 0.7602931486 | X141: =X122 -> 72 | Y141: =N141*X141 -> 74940.57507 | Z141: =O141*X141 -> 5474.11067 | AA141: =P141*X141 -> 6402.46862 | AB141: =Q141*X141 -> 15086.64901 | AC141: =R141*X141 -> 38275.03808 | AD141: =S141*X141 -> 1275.834603 | AE141: =T141*X141 -> 127.5834603 | AF141: =U141*X141 -> 54.7411067 | AH141: Time for charging | AI141: =F!C54 -> 60 | AJ141: min | AL141: DoD | AN141: =IF(AN140<6000,"80%",IF(AND(AN140<=9000,AN140>=6000),"60%",IF(AND(AN140<=14000,AN140>=9000),"50%",IF(AND(AN140<=22000,AN140>=14000),"40%",IF(AND(AN140<=41000,AN140>=22000),"30%",IF(AND(AN140<=95000,AN140>=41000),"20%",IF(AND(AN140<=160000,AN140>=95000),"15%",IF(AND(AN140<=360000,AN140>=160000),"10%","")))))))) -> 80%
A142: =A51 -> Pulling out | D142: =E51 -> 1500 | E142: 1300 | F142: 200 | G142: 1365 | H142: 1820 | I142: =E142/$P$19 -> 1645.42161 | J142: =F142/$P$30 -> 253.1417862 | K142: =J142+I142 -> 1898.563397 | L142: =K142/'B2'!$C$26 -> 0.4381300146 | M142: =$C$139+($D$139*L142)+($E$139*(L142^2))+($F$139*(L142^3))+($G$139*(L142^4))+($H$139*(L142^5))+($I$139*(L142^6)) -> 0.4410664711 | N142: =K142/M142 -> 4304.483612 | O142: =N142/$N$138 -> 314.4253917 | P142: =O142/0.855 -> 367.7489961 | Q142: =O142*'B2'!$E$44 -> 866.5563795 | R142: ='B2'!$G$44*K142 -> 2847.845095 | S142: ='B2'!$I$44*K142 -> 94.92816983 | T142: ='B2'!$K$44*K142 -> 9.492816983 | U142: =O142*'B2'!$M$44 -> 3.144253917 | X142: =X123 -> 8 | Y142: =N142*X142 -> 34435.8689 | Z142: =O142*X142 -> 2515.403133 | AA142: =P142*X142 -> 2941.991969 | AB142: =Q142*X142 -> 6932.451036 | AC142: =R142*X142 -> 22782.76076 | AD142: =S142*X142 -> 759.4253587 | AE142: =T142*X142 -> 75.94253587 | AF142: =U142*X142 -> 25.15403133 | AH142: Per day | AI142: =F!C55 -> 1.225531915 | AJ142: tours | AL142: Battery size | AN142: =AI145/AN141 -> 8596.93238 | AP142: =AI145/AN142 -> 0.8
A143: Transit without cargo, ECO | D143: 1500 | E143: 1100 | F143: 400 | G143: 1155 | H143: 1540 | I143: 1392.279824 | J143: 506.2835724 | K143: 1898.563397 | L143: =K143/'B2'!$C$26 -> 0.4381300146 | M143: 0.4410664711 | N143: 4304.483612 | O143: 314.4253917 | P143: 367.7489961 | Q143: =O143*'B2'!$E$44 -> 866.5563795 | R143: ='B2'!$G$44*K143 -> 2847.845095 | S143: ='B2'!$I$44*K143 -> 94.92816983 | T143: ='B2'!$K$44*K143 -> 9.492816983 | U143: =O143*'B2'!$M$44 -> 3.144253917 | X143: 150 | Y143: 645672.5418 | Z143: 47163.80875 | AA143: 55162.34942 | AB143: 129983.4569 | AC143: 427176.7642 | AD143: 14239.22547 | AE143: 1423.922547 | AF143: 471.6380875 | AH143: Battery lifetime | AI143: =F!G53 -> 10 | AJ143: years | AL143: Battery weight, ton | AN143: =(AN142*13)/1000 -> 111.7601209 | AZ143: charging | BA143: C-rate | BB143: =((AI141/60)*AI145)/AN142 -> 0.8 | BJ143: Adding admirality coefficients
A144: Transit without cargo, FULL | D144: 2300 | E144: 2000 | F144: 300 | G144: 2100 | H144: 2800 | I144: 2531.417862 | J144: 379.7126793 | K144: 2911.130542 | L144: =K144/'B2'!$C$26 -> 0.6717993557 | M144: 0.4788915575 | N144: 6078.893011 | O144: 444.0389343 | P144: 519.3437828 | Q144: =O144*'B2'!$E$44 -> 1223.771303 | R144: ='B2'!$G$44*K144 -> 4366.695812 | S144: ='B2'!$I$44*K144 -> 145.5565271 | T144: ='B2'!$K$44*K144 -> 14.55565271 | U144: =O144*'B2'!$M$44 -> 4.440389343 | X144: 30 | Y144: 182366.7903 | Z144: 13321.16803 | AA144: 15580.31348 | AB144: 36713.13909 | AC144: 131000.8744 | AD144: 4366.695812 | AE144: 436.6695812 | AF144: 133.2116803 | AH144: Battery % of kWh | AI144: =F!G54 -> 0.15 | BA144: Losses | BB144: =IF(BB143<=0.5,"0,95%",IF(AND(BB143<=1,BB143>0.5),"1,75%",IF(AND(BB143<=1.5,BB143>1),"2,55%",IF(AND(BB143<=2,BB143>1.5),"3,5%",IF(AND(BB143<=2.5,BB143>2),"4,3%",IF(BB143>=2.5,"5,25","")))))) -> 1,75%
A145: Transit with cargo, ECO | D145: 2000 | E145: 1700 | F145: 300 | G145: 1785 | H145: 2380 | I145: 2151.705183 | J145: 379.7126793 | K145: 2531.417862 | L145: =K145/'B2'!$C$26 -> 0.5841733528 | M145: 0.4673177776 | N145: 5416.908971 | O145: 395.6836356 | P145: 462.7878779 | Q145: =O145*'B2'!$E$44 -> 1090.5041 | R145: ='B2'!$G$44*K145 -> 3797.126793 | S145: ='B2'!$I$44*K145 -> 126.5708931 | T145: ='B2'!$K$44*K145 -> 12.65708931 | U145: =O145*'B2'!$M$44 -> 3.956836356 | X145: 150 | Y145: 812536.3457 | Z145: 59352.54534 | AA145: 69418.18168 | AB145: 163575.615 | AC145: 569569.019 | AD145: 18985.63397 | AE145: 1898.563397 | AF145: 593.5254534 | AH145: Total kWh battery | AI145: =AN173*AI144 -> 6877.545904 | AJ145: kWh | BJ145: Displacement | BK145: ='B2'!I9+'B2'!J9 -> 8000 | BM145: =E140 -> For propulsion | BN145: New propulsion | BO145: ∆ | BP145: incl losses | BQ145: Propulsion | BR145: Total
A146: Transit with cargo, FULL | D146: 2600 | E146: 2500 | F146: 100 | G146: 2625 | H146: 3500 | I146: 3164.272328 | J146: 126.5708931 | K146: 3290.843221 | L146: =K146/'B2'!$C$26 -> 0.7594253587 | M146: 0.4873325842 | N146: 6752.766648 | O146: 493.2627208 | P146: 576.9154629 | Q146: =O146*'B2'!$E$44 -> 1359.432059 | R146: ='B2'!$G$44*K146 -> 4936.264831 | S146: ='B2'!$I$44*K146 -> 164.542161 | T146: ='B2'!$K$44*K146 -> 16.4542161 | U146: =O146*'B2'!$M$44 -> 4.932627208 | X146: 30 | Y146: 202582.9994 | Z146: 14797.88162 | AA146: 17307.46389 | AB146: 40782.96176 | AC146: 148087.9449 | AD146: 4936.264831 | AE146: 493.6264831 | AF146: 147.9788162 | AL146: =D140 -> kW | AM146: =E140 -> For propulsion | AN146: =F140 -> For elecricity | AO146: =G140 -> For propulsion with sea margin | AP146: =H140 -> Max power for powertrain dimension | AQ146: =I140 -> For propulsion, incl losses | AR146: =J140 -> For Electricity, incl losses | AS146: Hours per day | AT146: Total power | AV146: Battery calculations | AY146: kW for batteries | AZ146: hours | BA146: Consumed | BB146: C-rate | BC146: losses | BD146: consumed | BE146: with charging losses | BI146: Battery | BK146: =Data!AN143 -> 111.7601209 | BM146: =E141 -> 0 | BN146: =IFERROR(BM146*((($BK$145+$BK$146)/$BK$145)^(2/3)),0) -> 0 | BO146: =IF(BN146>0,BN146-BM146,"0") -> 0 | BP146: =IFERROR(BO146/$L$19,0) -> 0 | BQ146: =IFERROR(BN146/$L$19,0) -> 0 | BR146: =BQ146+J123 -> 253.1417862
A147: Approaching | D147: 2000 | E147: 1700 | F147: 300 | G147: 1785 | H147: 2380 | I147: 2151.705183 | J147: 379.7126793 | K147: 2531.417862 | L147: =K147/'B2'!$C$26 -> 0.5841733528 | M147: 0.4673177776 | N147: 5416.908971 | O147: 395.6836356 | P147: 462.7878779 | Q147: =O147*'B2'!$E$44 -> 1090.5041 | R147: ='B2'!$G$44*K147 -> 3797.126793 | S147: ='B2'!$I$44*K147 -> 126.5708931 | T147: ='B2'!$K$44*K147 -> 12.65708931 | U147: =O147*'B2'!$M$44 -> 3.956836356 | X147: 8 | Y147: 43335.27177 | Z147: 3165.469085 | AA147: 3702.303023 | AB147: 8724.032798 | AC147: 30377.01435 | AD147: 1012.567145 | AE147: 101.2567145 | AF147: 31.65469085 | AI147: =A141 -> Standby in Harbour | AL147: =D141 -> 280 | AM147: =E141 -> 0 | AN147: =F141 -> 280 | AO147: =G141 -> 0 | AP147: =H141 -> 0 | AQ147: =AM147/$R$19 -> 0 | AR147: =AN147/$R$30 -> 336.6785757 | AS147: =D50/31 -> 2.322580645 | AT147: =AQ147+AR147 -> 336.6785757 | AY147: =AL147 -> 280 | AZ147: =X141 -> 72 | BA147: =AY147*AZ147 -> 20160 | BB147: =AY147/$AN$104 -> 0.03169627467 | BC147: =IF(BB147<=0.5,"0,95%",IF(AND(BB147<=1,BB147>0.5),"1,75%",IF(AND(BB147<=1.5,BB147>1),"2,55%",IF(AND(BB147<=2,BB147>1.5),"3,5%",IF(AND(BB147<=2.5,BB147>2),"4,3%",IF(BB147>=2.5,"5,25","")))))) -> 0,95% | BD147: =BA147+(BA147*BC147) -> 20351.52 | BE147: =BD147+(BD147*$BB$144) -> 20707.6716 | BM147: =E142 -> 1300 | BN147: =IFERROR(BM147*((($BK$145+$BK$146)/$BK$145)^(2/3)),0) -> 1312.07933 | BO147: =IF(BN147>0,BN147-BM147,"") -> 12.07933008 | BP147: =IFERROR(BO147/$L$19,0) -> 15.91251922 | BQ147: =IFERROR(BN147/$L$19,0) -> 1728.447473 | BR147: =BQ147+J124 -> 2234.731046
A148: Cargo Operations | D148: 2450 | E148: 0 | F148: 2450 | G148: 0 | H148: 0 | I148: 0 | J148: 3100.986881 | K148: 3100.986881 | L148: =K148/'B2'!$C$26 -> 0.7156123572 | M148: 0.483503665 | N148: 6413.574717 | O148: 468.4861006 | P148: 547.9369597 | Q148: =O148*'B2'!$E$44 -> 1291.147693 | R148: ='B2'!$G$44*K148 -> 4651.480322 | S148: ='B2'!$I$44*K148 -> 155.0493441 | T148: ='B2'!$K$44*K148 -> 15.50493441 | U148: =O148*'B2'!$M$44 -> 4.684861006 | X148: 200 | Y148: 1282714.943 | Z148: 93697.22012 | AA148: 109587.3919 | AB148: 258229.5386 | AC148: 930296.0643 | AD148: 31009.86881 | AE148: 3100.986881 | AF148: 936.9722012 | AI148: =A142 -> Pulling out | AL148: =D142 -> 1500 | AM148: 1300 | AN148: 200 | AO148: 1365 | AP148: 1820 | AQ148: =AM148/$R$19 -> 1645.42161 | AR148: =AN148/$R$30 -> 240.4846969 | AS148: =D51/31 -> 0.2580645161 | AT148: =AQ148+AR148 -> 1885.906307 | AY148: =AM161-AP161 -> 284.7845095 | AZ148: =X142 -> 8 | BA148: =AY148*AZ148 -> 2278.276076 | BB148: =AY148/$AN$104 -> 0.03223788584 | BC148: =IF(BB148<=0.5,"0,95%",IF(AND(BB148<=1,BB148>0.5),"1,75%",IF(AND(BB148<=1.5,BB148>1),"2,55%",IF(AND(BB148<=2,BB148>1.5),"3,5%",IF(AND(BB148<=2.5,BB148>2),"4,3%",IF(BB148>=2.5,"5,25","")))))) -> 0,95% | BD148: =BA148+(BA148*BC148) -> 2299.919699 | BE148: =BD148+(BD148*$BB$144) -> 2340.168293 | BM148: 1100 | BN148: 1110.220972 | BO148: 10.22097161 | BP148: 13.46443934 | BQ148: =IFERROR(BN148/$L$19,0) -> 1462.532477 | BR148: 1842.245157
A149: Manoeuvring | D149: 2300 | E149: 1200 | F149: 1100 | G149: 1260 | H149: 1680 | I149: 1518.850717 | J149: 1392.279824 | K149: 2911.130542 | L149: =K149/'B2'!$C$26 -> 0.6717993557 | M149: 0.4788915575 | N149: 6078.893011 | O149: 444.0389343 | P149: 519.3437828 | Q149: =O149*'B2'!$E$44 -> 1223.771303 | R149: ='B2'!$G$44*K149 -> 4366.695812 | S149: ='B2'!$I$44*K149 -> 145.5565271 | T149: ='B2'!$K$44*K149 -> 14.55565271 | U149: =O149*'B2'!$M$44 -> 4.440389343 | X149: 19 | Y149: 115498.9672 | Z149: 8436.739752 | AA149: 9867.531873 | AB149: 23251.65476 | AC149: 82967.22043 | AD149: 2765.574014 | AE149: 276.5574014 | AF149: 84.36739752 | AI149: Transit without cargo, ECO | AL149: 1500 | AM149: 1100 | AN149: 400 | AO149: 1155 | AP149: 1540 | AQ149: 1392.279824 | AR149: 480.9693938 | AS149: 4.838709677 | AT149: 1873.249218 | AY149: 284.7845095 | AZ149: 150 | BA149: 42717.67642 | BB149: 0.03223788584 | BC149: 0,95% | BD149: =BA149+(BA149*BC149) -> 43123.49435 | BE149: 43878.1555 | BM149: 2000 | BN149: 2018.583585 | BO149: 18.58358474 | BP149: 24.4807988 | BQ149: 2659.149959 | BR149: 3038.862638
A150: Tankwash | D150: 1000 | E150: 300 | F150: 700 | G150: 315 | H150: 420 | I150: 379.7126793 | J150: 885.9962518 | K150: 1265.708931 | L150: =K150/'B2'!$C$26 -> 0.2920866764 | M150: 0.4061130726 | N150: 3116.641685 | O150: 227.6582677 | P150: 266.2669798 | Q150: =O150*'B2'!$E$44 -> 627.4261859 | R150: ='B2'!$G$44*K150 -> 1898.563397 | S150: ='B2'!$I$44*K150 -> 63.28544655 | T150: ='B2'!$K$44*K150 -> 6.328544655 | U150: =O150*'B2'!$M$44 -> 2.276582677 | X150: 47 | Y150: 146482.1592 | Z150: 10699.93858 | AA150: 12514.54805 | AB150: 29489.03074 | AC150: 89232.47964 | AD150: 2974.415988 | AE150: 297.4415988 | AF150: 106.9993858 | AI150: Transit without cargo, FULL | AL150: 2300 | AM150: 2000 | AN150: 300 | AO150: 2100 | AP150: 2800 | AQ150: 2531.417862 | AR150: 360.7270454 | AS150: 0.9677419355 | AT150: 2892.144908 | AY150: 436.6695812 | AZ150: 30 | BA150: 13100.08744 | BB150: 0.04943142495 | BC150: 0,95% | BD150: =BA150+(BA150*BC150) -> 13224.53827 | BE150: 13455.96769 | BM150: 1700 | BN150: 1715.796047 | BO150: 15.79604703 | BP150: 20.80867898 | BQ150: 2260.277465 | BR150: 2386.848358
A151: Waiting on facility | D151: 1000 | E151: 400 | F151: 600 | G151: 420 | H151: 560 | I151: 506.2835724 | J151: 759.4253587 | K151: 1265.708931 | L151: =K151/'B2'!$C$26 -> 0.2920866764 | M151: 0.4061130726 | N151: 3116.641685 | O151: 227.6582677 | P151: 266.2669798 | Q151: =O151*'B2'!$E$44 -> 627.4261859 | R151: ='B2'!$G$44*K151 -> 1898.563397 | S151: ='B2'!$I$44*K151 -> 63.28544655 | T151: ='B2'!$K$44*K151 -> 6.328544655 | U151: =O151*'B2'!$M$44 -> 2.276582677 | X151: 10 | Y151: 31166.41685 | Z151: 2276.582677 | AA151: 2662.669798 | AB151: 6274.261859 | AC151: 18985.63397 | AD151: 632.8544655 | AE151: 63.28544655 | AF151: 22.76582677 | AI151: Transit with cargo, ECO | AL151: 2000 | AM151: 1700 | AN151: 300 | AO151: 1785 | AP151: 2380 | AQ151: 2151.705183 | AR151: 360.7270454 | AS151: 4.838709677 | AT151: 2512.432228 | AY151: 379.7126793 | AZ151: 150 | BA151: 56956.9019 | BB151: 0.04298384778 | BC151: 0,95% | BD151: 57497.99247 | BE151: 58504.20734 | BG151: Sum | BH151: =IFERROR(SUM(BE147:BE158),0) -> 276312.5534 | BM151: 2500 | BN151: 2523.229481 | BO151: 23.22948093 | BP151: 30.6009985 | BQ151: 3323.937448 | BR151: 3703.650128
A152: Operational STBY | D152: 1000 | E152: 400 | F152: 600 | G152: 420 | H152: 560 | I152: 506.2835724 | J152: 759.4253587 | K152: 1265.708931 | L152: =K152/'B2'!$C$26 -> 0.2920866764 | M152: 0.4061130726 | N152: 3116.641685 | O152: 227.6582677 | P152: 266.2669798 | Q152: =O152*'B2'!$E$44 -> 627.4261859 | R152: ='B2'!$G$44*K152 -> 1898.563397 | S152: ='B2'!$I$44*K152 -> 63.28544655 | T152: ='B2'!$K$44*K152 -> 6.328544655 | U152: =O152*'B2'!$M$44 -> 2.276582677 | X152: 20 | Y152: 62332.8337 | Z152: 4553.165355 | AA152: 5325.339596 | AB152: 12548.52372 | AC152: 37971.26793 | AD152: 1265.708931 | AE152: 126.5708931 | AF152: 45.53165355 | AI152: Transit with cargo, FULL | AL152: 2600 | AM152: 2500 | AN152: 100 | AO152: 2625 | AP152: 3500 | AQ152: 3164.272328 | AR152: 120.2423485 | AS152: 0.9677419355 | AT152: 3284.514676 | AY152: 493.6264831 | AZ152: 30 | BA152: 14808.79449 | BB152: 0.05587900212 | BC152: 0,95% | BD152: 14949.47804 | BE152: 15211.09391 | BM152: 1700 | BN152: 1715.796047 | BO152: 15.79604703 | BP152: 20.80867898 | BQ152: 2260.277465 | BR152: 5361.264346
Y153: =SUM(Y141:Y152) -> 3634065.713 | Z153: 265454.0331 | AA153: 310472.5534 | AB153: 731591.3153 | AC153: 2526722.082 | AD153: 84224.0694 | AE153: 8422.40694 | AF153: 2654.540331 | AI153: Approaching | AL153: 2000 | AM153: 1700 | AN153: 300 | AO153: 1785 | AP153: 2380 | AQ153: 2151.705183 | AR153: 360.7270454 | AS153: 0.2580645161 | AT153: 2512.432228 | AY153: 379.7126793 | AZ153: 8 | BA153: 3037.701435 | BB153: 0.04298384778 | BC153: 0,95% | BD153: 3066.559598 | BE153: 3120.224391 | BM153: 0 | BN153: 0 | BO153: =IF(BN153>0,BN153-BM153,"0") -> 0 | BP153: 0 | BQ153: 0 | BR153: 1392.279824
AI154: Cargo Operations | AL154: 2450 | AM154: 0 | AN154: 2450 | AO154: 0 | AP154: 0 | AQ154: 0 | AR154: 2945.937537 | AS154: 6.451612903 | AT154: 2945.937537 | AY154: 465.1480322 | AZ154: 200 | BA154: 93029.60643 | BB154: 0.05265521354 | BC154: 0,95% | BD154: 93913.3877 | BE154: 95556.87198 | BM154: 1200 | BN154: 1211.150151 | BO154: 11.15015085 | BP154: 14.68847928 | BQ154: 1595.489975 | BR154: 2481.486227
AI155: =A149 -> Manoeuvring | AL155: 2300 | AM155: 1200 | AN155: 1100 | AO155: 1260 | AP155: 1680 | AQ155: 1518.850717 | AR155: 1322.665833 | AS155: 0.6129032258 | AT155: 2841.51655 | AY155: 436.6695812 | AZ155: 19 | BA155: 8296.722043 | BB155: 0.04943142495 | BC155: 0,95% | BD155: 8375.540903 | BE155: 8522.112868 | BM155: 300 | BN155: 302.7875377 | BO155: 2.787537711 | BP155: 3.67211982 | BQ155: 398.8724938 | BR155: 1158.297852
AI156: =A150 -> Tankwash | AL156: 1000 | AM156: 300 | AN156: 700 | AO156: 315 | AP156: 420 | AQ156: 379.7126793 | AR156: 841.6964392 | AS156: 1.516129032 | AT156: 1221.409118 | AY156: 189.8563397 | AZ156: 47 | BA156: 8923.247964 | BB156: 0.02149192389 | BC156: 0,95% | BD156: 9008.01882 | BE156: 9165.659149 | BM156: 400 | BN156: 403.7167169 | BO156: 3.716716948 | BP156: 4.89615976 | BQ156: 531.8299917 | BR156: 1291.25535
AI157: =A151 -> Waiting on facility | AL157: 1000 | AM157: 400 | AN157: 600 | AO157: 420 | AP157: 560 | AQ157: 506.2835724 | AR157: 721.4540907 | AS157: 0.3225806452 | AT157: 1227.737663 | AY157: 189.8563397 | AZ157: 10 | BA157: 1898.563397 | BB157: 0.02149192389 | BC157: 0,95% | BD157: 1916.599749 | BE157: 1950.140245 | BM157: 400 | BN157: 403.7167169 | BO157: 3.716716948 | BP157: 4.89615976 | BQ157: 531.8299917 | BR157: 531.8299917
AI158: =A152 -> Operational STBY | AL158: 1000 | AM158: 400 | AN158: 600 | AO158: 420 | AP158: 560 | AQ158: 506.2835724 | AR158: 721.4540907 | AS158: 0.6451612903 | AT158: 1227.737663 | AY158: 189.8563397 | AZ158: 20 | BA158: 3797.126793 | BB158: 0.02149192389 | BC158: 0,95% | BD158: 3833.199498 | BE158: 3900.280489
BM159: Adding Admiralty
AL160: min | AM160: kW | AN160: kWh | AO160: Thermal Efficiency, before hybrid | AP160: Left for engine | AQ160: % | AR160: Engine efficiency | AS160: kW consumed | AT160: kg fuel | AU160: CO2, kg | AV160: Nox, g | AW160: CO, g | AX160: PM, g | AY160: SO, g | AZ160: =AZ122 -> Overall efficiency | BA160: =BA122 -> Carbon Footprint | BB160: =BB122 -> Hours | BC160: =BC122 -> Necessary kW | BD160: kg | BE160: CO2, kg | BF160: =BF122 -> Nox, g | BG160: CO, g | BH160: PM, g | BI160: SO, g | BM160: kW | BN160: Thermal Efficiency, before hybrid | BO160: Left for engine | BP160: % | BQ160: Engine efficiency | BR160: kW consumed | BS160: kg fuel | BT160: CO2, kg | BU160: Nox, g | BV160: CO, g | BW160: PM, g | BX160: SO, g | BY160: =AZ160 -> Overall efficiency | BZ160: Carbon Footprint | CA160: Hours | CB160: Necessary kW | CC160: kg | CD160: CO2, kg | CE160: Nox, g | CF160: CO, g | CG160: PM, g | CH160: SO, g
AI161: =A142 -> Pulling out | AL161: ='B1'!K17 -> 5 | AM161: =K142 -> 1898.563397 | AN161: =AM161*((1/60)*AL161) -> 158.2136164 | AO161: =M141 -> 0.3404923438 | AP161: =AM161*(1-$AI$144) -> 1613.778887 | AQ161: =AP161/'B2'!$C$26 -> 0.3724105124 | AR161: =$C$139+($D$139*AQ161)+($E$139*(AQ161^2))+($F$139*(AQ161^3))+($G$139*(AQ161^4))+($H$139*(AQ161^5))+($I$139*(AQ161^6)) -> 0.4264143257 | AS161: =AP161/AR161 -> 3784.532531 | AT161: =AS161/$N$119 -> 276.4450351 | AU161: =AT161*'B2'!$E$44 -> 761.8825168 | AV161: =AP161*'B2'!$G$44 -> 2420.668331 | AW161: =AP161*'B2'!$I$44 -> 80.68894436 | AX161: =AP161*'B2'!$K$44 -> 8.068894436 | AY161: =AT161*'B2'!$M$44 -> 2.764450351 | BB161: =X142 -> 8 | BC161: =AS161*BB161 -> 30276.26025 | BD161: =AT161*BB161 -> 2211.560281 | BE161: =AU161*BB161 -> 6095.060135 | BF161: =AV161*BB161 -> 19365.34665 | BG161: =AW161*BB161 -> 645.5115549 | BH161: =AX161*BB161 -> 64.55115549 | BI161: =AY161*BB161 -> 22.11560281 | BM161: =K104+BO146 -> 1965.67674 | BN161: =AO161 -> 0.3404923438 | BO161: =BM161*(1-$AI$106) -> 1670.825229 | BP161: =BO161/'B2'!$C$26 -> 0.3855750529 | BQ161: =$C$139+($D$139*BP161)+($E$139*(BP161^2))+($F$139*(BP161^3))+($G$139*(BP161^4))+($H$139*(BP161^5))+($I$139*(BP161^6)) -> 0.4294904963 | BR161: =BO161/BQ161 -> 3890.249595 | BS161: =BR161/$N$82 -> 324.9999662 | BT161: =BS161*'B2'!$E$44 -> 895.6999067 | BU161: =BO161*'B2'!$G$44 -> 2506.237844 | BV161: =BO161*'B2'!$I$44 -> 83.54126146 | BW161: =BO161*'B2'!$K$44 -> 8.354126146 | BX161: =BS161*'B2'!$M$44 -> 3.249999662 | CA161: =BB161 -> 8 | CB161: =BR161*CA161 -> 31121.99676 | CC161: =BS161*CA161 -> 2599.999729 | CD161: =BT161*CA161 -> 7165.599254 | CE161: =BU161*CA161 -> 20049.90275 | CF161: =BV161*CA161 -> 668.3300916 | CG161: =BW161*CA161 -> 66.83300916 | CH161: =BX161*CA161 -> 25.99999729
AI162: =A143 -> Transit without cargo, ECO | AL162: ='B1'!K18 -> 300 | AM162: =K143 -> 1898.563397 | AN162: =AM162*((1/60)*AL162) -> 9492.816983 | AO162: =M142 -> 0.4410664711 | AP162: =AM162*(1-$AI$144) -> 1613.778887 | AQ162: =AP162/'B2'!$C$26 -> 0.3724105124 | AR162: =$C$139+($D$139*AQ162)+($E$139*(AQ162^2))+($F$139*(AQ162^3))+($G$139*(AQ162^4))+($H$139*(AQ162^5))+($I$139*(AQ162^6)) -> 0.4264143257 | AS162: =AP162/AR162 -> 3784.532531 | AT162: =AS162/$N$119 -> 276.4450351 | AU162: =AT162*'B2'!$E$44 -> 761.8825168 | AV162: =AP162*'B2'!$G$44 -> 2420.668331 | AW162: =AP162*'B2'!$I$44 -> 80.68894436 | AX162: =AP162*'B2'!$K$44 -> 8.068894436 | AY162: =AT162*'B2'!$M$44 -> 2.764450351 | BB162: =X143 -> 150 | BC162: =AS162*BB162 -> 567679.8796 | BD162: =AT162*BB162 -> 41466.75527 | BE162: =AU162*BB162 -> 114282.3775 | BF162: =AV162*BB162 -> 363100.2496 | BG162: =AW162*BB162 -> 12103.34165 | BH162: =AX162*BB162 -> 1210.334165 | BI162: =AY162*BB162 -> 414.6675527 | BM162: =K105+BO147 -> 1967.43094 | BN162: =AO162 -> 0.4410664711 | BO162: =BM162*(1-$AI$106) -> 1672.316299 | BP162: =BO162/'B2'!$C$26 -> 0.385919146 | BQ162: =$C$139+($D$139*BP162)+($E$139*(BP162^2))+($F$139*(BP162^3))+($G$139*(BP162^4))+($H$139*(BP162^5))+($I$139*(BP162^6)) -> 0.4295699526 | BR162: =BO162/BQ162 -> 3893.001103 | BS162: =BR162/$N$82 -> 325.2298332 | BT162: =BS162*'B2'!$E$44 -> 896.3334203 | BU162: =BO162*'B2'!$G$44 -> 2508.474449 | BV162: =BO162*'B2'!$I$44 -> 83.61581497 | BW162: =BO162*'B2'!$K$44 -> 8.361581497 | BX162: =BS162*'B2'!$M$44 -> 3.252298332 | CA162: =BB162 -> 150 | CB162: =BR162*CA162 -> 583950.1655 | CC162: =BS162*CA162 -> 48784.47498 | CD162: =BT162*CA162 -> 134450.013 | CE162: =BU162*CA162 -> 376271.1674 | CF162: =BV162*CA162 -> 12542.37225 | CG162: =BW162*CA162 -> 1254.237225 | CH162: =BX162*CA162 -> 487.8447498
AI163: Transit without cargo, FULL | AL163: ='B1'!K19 -> 0 | AM163: 2911.130542 | AN163: 0 | AO163: 0.4410664711 | AP163: 2474.46096 | AQ163: =AP163/'B2'!$C$26 -> 0.5710294524 | AR163: 0.4653115107 | AS163: =AP163/AR163 -> 5317.858904 | AT163: 388.4484225 | AU163: =AT163*'B2'!$E$44 -> 1070.563852 | AV163: =AP163*'B2'!$G$44 -> 3711.69144 | AW163: =AP163*'B2'!$I$44 -> 123.723048 | AX163: =AP163*'B2'!$K$44 -> 12.3723048 | AY163: =AT163*'B2'!$M$44 -> 3.884484225 | BB163: 30 | BC163: 159535.7671 | BD163: 11653.45267 | BE163: 32116.91557 | BF163: 111350.7432 | BG163: 3711.69144 | BH163: 371.169144 | BI163: 116.5345267 | BM163: 3024.602811 | BN163: 0.4410664711 | BO163: 2570.912389 | BP163: =BO163/'B2'!$C$26 -> 0.5932874744 | BQ163: 0.4686675607 | BR163: 5485.577848 | BS163: 458.2771803 | BT163: =BS163*'B2'!$E$44 -> 1263.011909 | BU163: =BO163*'B2'!$G$44 -> 3856.368584 | BV163: =BO163*'B2'!$I$44 -> 128.5456195 | BW163: =BO163*'B2'!$K$44 -> 12.85456195 | BX163: =BS163*'B2'!$M$44 -> 4.582771803 | CA163: 30 | CB163: 164567.3354 | CC163: 13748.31541 | CD163: 37890.35726 | CE163: 115691.0575 | CF163: 3856.368584 | CG163: 385.6368584 | CH163: 137.4831541
AI164: Transit with cargo, ECO | AL164: ='B1'!K20 -> 600 | AM164: 2531.417862 | AN164: 25314.17862 | AO164: 0.4788915575 | AP164: 2151.705183 | AQ164: =AP164/'B2'!$C$26 -> 0.4965473499 | AR164: 0.4526112447 | AS164: 4753.980834 | AT164: 347.2593743 | AU164: =AT164*'B2'!$E$44 -> 957.0468356 | AV164: =AP164*'B2'!$G$44 -> 3227.557774 | AW164: =AP164*'B2'!$I$44 -> 107.5852591 | AX164: =AP164*'B2'!$K$44 -> 10.75852591 | AY164: =AT164*'B2'!$M$44 -> 3.472593743 | BB164: 150 | BC164: 713097.1251 | BD164: 52088.90615 | BE164: 143557.0253 | BF164: 484133.6661 | BG164: 16137.78887 | BH164: 1613.778887 | BI164: 520.8890615 | BM164: 2637.76505 | BN164: 0.4788915575 | BO164: 2242.100292 | BP164: =BO164/'B2'!$C$26 -> 0.5174077598 | BQ164: 0.456396432 | BR164: 4912.615733 | BS164: 410.4106711 | BT164: =BS164*'B2'!$E$44 -> 1131.09181 | BU164: =BO164*'B2'!$G$44 -> 3363.150439 | BV164: =BO164*'B2'!$I$44 -> 112.1050146 | BW164: =BO164*'B2'!$K$44 -> 11.21050146 | BX164: =BS164*'B2'!$M$44 -> 4.104106711 | CA164: 150 | CB164: 736892.36 | CC164: 61561.60067 | CD164: 169663.7714 | CE164: 504472.5658 | CF164: 16815.75219 | CG164: 1681.575219 | CH164: 615.6160067
AI165: Transit with cargo, FULL | AL165: ='B1'!K21 -> 0 | AM165: 3290.843221 | AN165: 0 | AO165: 0.4673177776 | AP165: 2797.216738 | AQ165: =AP165/'B2'!$C$26 -> 0.6455115549 | AR165: 0.4757483626 | AS165: 5879.61401 | AT165: 429.4823966 | AU165: =AT165*'B2'!$E$44 -> 1183.653485 | AV165: =AP165*'B2'!$G$44 -> 4195.825107 | AW165: =AP165*'B2'!$I$44 -> 139.8608369 | AX165: =AP165*'B2'!$K$44 -> 13.98608369 | AY165: =AT165*'B2'!$M$44 -> 4.294823966 | BB165: 30 | BC165: 176388.4203 | BD165: 12884.4719 | BE165: 35509.60455 | BF165: 125874.7532 | BG165: 4195.825107 | BH165: 419.5825107 | BI165: 128.844719 | BM165: 3435.70339 | BN165: 0.4673177776 | BO165: 2920.347881 | BP165: =BO165/'B2'!$C$26 -> 0.6739264342 | BQ165: 0.4791335593 | BR165: 6095.060187 | BS165: 509.1946689 | BT165: =BS165*'B2'!$E$44 -> 1403.340508 | BU165: =BO165*'B2'!$G$44 -> 4380.521822 | BV165: =BO165*'B2'!$I$44 -> 146.0173941 | BW165: =BO165*'B2'!$K$44 -> 14.60173941 | BX165: =BS165*'B2'!$M$44 -> 5.091946689 | CA165: 30 | CB165: 182851.8056 | CC165: 15275.84007 | CD165: 42100.21523 | CE165: 131415.6547 | CF165: 4380.521822 | CG165: 438.0521822 | CH165: 152.7584007
AI166: Approaching | AL166: ='B1'!K22 -> 20 | AM166: 2531.417862 | AN166: 843.8059541 | AO166: 0.4873325842 | AP166: 2151.705183 | AQ166: =AP166/'B2'!$C$26 -> 0.4965473499 | AR166: 0.4526112447 | AS166: 4753.980834 | AT166: 347.2593743 | AU166: =AT166*'B2'!$E$44 -> 957.0468356 | AV166: =AP166*'B2'!$G$44 -> 3227.557774 | AW166: =AP166*'B2'!$I$44 -> 107.5852591 | AX166: =AP166*'B2'!$K$44 -> 10.75852591 | AY166: =AT166*'B2'!$M$44 -> 3.472593743 | BB166: 8 | BC166: 38031.84667 | BD166: 2778.074994 | BE166: 7656.374685 | BF166: 25820.46219 | BG166: 860.6820731 | BH166: 86.06820731 | BI166: 27.78074994 | BM166: 2642.410946 | BN166: 0.4873325842 | BO166: 2246.049304 | BP166: =BO166/'B2'!$C$26 -> 0.5183190702 | BQ166: 0.4565577446 | BR166: 4919.529524 | BS166: 410.9882644 | BT166: =BS166*'B2'!$E$44 -> 1132.683657 | BU166: =BO166*'B2'!$G$44 -> 3369.073956 | BV166: =BO166*'B2'!$I$44 -> 112.3024652 | BW166: =BO166*'B2'!$K$44 -> 11.23024652 | BX166: =BS166*'B2'!$M$44 -> 4.109882644 | CA166: 8 | CB166: 39356.23619 | CC166: 3287.906115 | CD166: 9061.469253 | CE166: 26952.59165 | CF166: 898.4197217 | CG166: 89.84197217 | CH166: 32.87906115
AI167: Cargo Operations | AL167: ='B1'!K23 -> 120 | AM167: 3100.986881 | AN167: 6201.973762 | AO167: 0.4673177776 | AP167: 2635.838849 | AQ167: =AP167/'B2'!$C$26 -> 0.6082705036 | AR167: 0.4708128634 | AS167: 5598.485202 | AT167: 408.9470564 | AU167: =AT167*'B2'!$E$44 -> 1127.058088 | AV167: =AP167*'B2'!$G$44 -> 3953.758273 | AW167: =AP167*'B2'!$I$44 -> 131.7919424 | AX167: =AP167*'B2'!$K$44 -> 13.17919424 | AY167: =AT167*'B2'!$M$44 -> 4.089470564 | BB167: 200 | BC167: 1119697.04 | BD167: 81789.41129 | BE167: 225411.6175 | BF167: 790751.6547 | BG167: 26358.38849 | BH167: 2635.838849 | BI167: 817.8941129 | BM167: 3116.782928 | BN167: 0.4673177776 | BO167: 2649.265489 | BP167: =BO167/'B2'!$C$26 -> 0.611368959 | BQ167: 0.471245078 | BR167: 5621.842249 | BS167: 469.6610066 | BT167: =BS167*'B2'!$E$44 -> 1294.385734 | BU167: =BO167*'B2'!$G$44 -> 3973.898233 | BV167: =BO167*'B2'!$I$44 -> 132.4632744 | BW167: =BO167*'B2'!$K$44 -> 13.24632744 | BX167: =BS167*'B2'!$M$44 -> 4.696610066 | CA167: 200 | CB167: 1124368.45 | CC167: 93932.20132 | CD167: 258877.1468 | CE167: 794779.6467 | CF167: 26492.65489 | CG167: 2649.265489 | CH167: 939.3220132
AI168: Manoeuvring | AL168: ='B1'!K24 -> 40 | AM168: 2911.130542 | AN168: 1940.753694 | AO168: 0.483503665 | AP168: 2474.46096 | AQ168: =AP168/'B2'!$C$26 -> 0.5710294524 | AR168: 0.4653115107 | AS168: 5317.858904 | AT168: 388.4484225 | AU168: =AT168*'B2'!$E$44 -> 1070.563852 | AV168: =AP168*'B2'!$G$44 -> 3711.69144 | AW168: =AP168*'B2'!$I$44 -> 123.723048 | AX168: =AP168*'B2'!$K$44 -> 12.3723048 | AY168: =AT168*'B2'!$M$44 -> 3.884484225 | BB168: 19 | BC168: 101039.3192 | BD168: 7380.520027 | BE168: 20340.71319 | BF168: 70522.13737 | BG168: 2350.737912 | BH168: 235.0737912 | BI168: 73.80520027 | BM168: 2973.08132 | BN168: 0.483503665 | BO168: 2527.119122 | BP168: =BO168/'B2'!$C$26 -> 0.5831813359 | BQ168: 0.4671688167 | BR168: 5409.434516 | BS168: 451.9159997 | BT168: =BS168*'B2'!$E$44 -> 1245.480495 | BU168: =BO168*'B2'!$G$44 -> 3790.678683 | BV168: =BO168*'B2'!$I$44 -> 126.3559561 | BW168: =BO168*'B2'!$K$44 -> 12.63559561 | BX168: =BS168*'B2'!$M$44 -> 4.519159997 | CA168: 19 | CB168: 102779.2558 | CC168: 8586.403994 | CD168: 23664.12941 | CE168: 72022.89498 | CF168: 2400.763166 | CG168: 240.0763166 | CH168: 85.86403994
AI169: Tankwash | AL169: ='B1'!K25 -> 60 | AM169: 1265.708931 | AN169: 1265.708931 | AO169: 0.4788915575 | AP169: 1075.852591 | AQ169: =AP169/'B2'!$C$26 -> 0.2482736749 | AR169: 0.3939301452 | AS169: 2731.074544 | AT169: 199.494123 | AU169: =AT169*'B2'!$E$44 -> 549.8058029 | AV169: =AP169*'B2'!$G$44 -> 1613.778887 | AW169: =AP169*'B2'!$I$44 -> 53.79262957 | AX169: =AP169*'B2'!$K$44 -> 5.379262957 | AY169: =AT169*'B2'!$M$44 -> 1.99494123 | BB169: 47 | BC169: 128360.5035 | BD169: 9376.22378 | BE169: 25840.87274 | BF169: 75847.6077 | BG169: 2528.25359 | BH169: 252.825359 | BI169: 93.7622378 | BM169: 1292.346777 | BN169: 0.4788915575 | BO169: 1098.49476 | BP169: =BO169/'B2'!$C$26 -> 0.2534987908 | BQ169: 0.3954242065 | BR169: 2778.015969 | BS169: 232.0815346 | BT169: =BS169*'B2'!$E$44 -> 639.6167092 | BU169: =BO169*'B2'!$G$44 -> 1647.74214 | BV169: =BO169*'B2'!$I$44 -> 54.92473801 | BW169: =BO169*'B2'!$K$44 -> 5.492473801 | BX169: =BS169*'B2'!$M$44 -> 2.320815346 | CA169: 47 | CB169: 130566.7505 | CC169: 10907.83212 | CD169: 30061.98533 | CE169: 77443.88059 | CF169: 2581.462686 | CG169: 258.1462686 | CH169: 109.0783212
AI170: Waiting on facility | AL170: ='B1'!K26 -> 30 | AM170: 1265.708931 | AN170: 632.8544655 | AO170: 0.4061130726 | AP170: 1075.852591 | AQ170: =AP170/'B2'!$C$26 -> 0.2482736749 | AR170: 0.3939301452 | AS170: 2731.074544 | AT170: 199.494123 | AU170: =AT170*'B2'!$E$44 -> 549.8058029 | AV170: =AP170*'B2'!$G$44 -> 1613.778887 | AW170: =AP170*'B2'!$I$44 -> 53.79262957 | AX170: =AP170*'B2'!$K$44 -> 5.379262957 | AY170: =AT170*'B2'!$M$44 -> 1.99494123 | BB170: 10 | BC170: 27310.74544 | BD170: 1994.94123 | BE170: 5498.058029 | BF170: 16137.78887 | BG170: 537.9262957 | BH170: 53.79262957 | BI170: 19.9494123 | BM170: 1289.146728 | BN170: 0.4061130726 | BO170: 1095.774719 | BP170: =BO170/'B2'!$C$26 -> 0.252871089 | BQ170: 0.3952453112 | BR170: 2772.391444 | BS170: 231.6116495 | BT170: =BS170*'B2'!$E$44 -> 638.321706 | BU170: =BO170*'B2'!$G$44 -> 1643.662079 | BV170: =BO170*'B2'!$I$44 -> 54.78873595 | BW170: =BO170*'B2'!$K$44 -> 5.478873595 | BX170: =BS170*'B2'!$M$44 -> 2.316116495 | CA170: 10 | CB170: 27723.91444 | CC170: 2316.116495 | CD170: 6383.21706 | CE170: 16436.62079 | CF170: 547.8873595 | CG170: 54.78873595 | CH170: 23.16116495
AI171: Operational STBY | AL171: ='B1'!K27 -> 0 | AM171: 1265.708931 | AN171: 0 | AO171: 0.4061130726 | AP171: 1075.852591 | AQ171: =AP171/'B2'!$C$26 -> 0.2482736749 | AR171: 0.3939301452 | AS171: 2731.074544 | AT171: 199.494123 | AU171: =AT171*'B2'!$E$44 -> 549.8058029 | AV171: =AP171*'B2'!$G$44 -> 1613.778887 | AW171: =AP171*'B2'!$I$44 -> 53.79262957 | AX171: =AP171*'B2'!$K$44 -> 5.379262957 | AY171: =AT171*'B2'!$M$44 -> 1.99494123 | BB171: 20 | BC171: 54621.49087 | BD171: 3989.88246 | BE171: 10996.11606 | BF171: 32275.57774 | BG171: 1075.852591 | BH171: 107.5852591 | BI171: 39.8988246 | BM171: 1290.075908 | BN171: 0.4061130726 | BO171: 1096.564521 | BP171: =BO171/'B2'!$C$26 -> 0.2530533511 | BQ171: 0.3952972725 | BR171: 2774.025013 | BS171: 231.7481214 | BT171: =BS171*'B2'!$E$44 -> 638.6978225 | BU171: =BO171*'B2'!$G$44 -> 1644.846782 | BV171: =BO171*'B2'!$I$44 -> 54.82822607 | BW171: =BO171*'B2'!$K$44 -> 5.482822607 | BX171: =BS171*'B2'!$M$44 -> 2.317481214 | CA171: 20 | CB171: 55480.50025 | CC171: 4634.962427 | CD171: 12773.95645 | CE171: 32896.93564 | CF171: 1096.564521 | CG171: 109.6564521 | CH171: 46.34962427
AL172: =(SUM(AL161:AL171))/60 -> 19.58333333 | BC172: =SUM(BC161:BC171) -> 3116038.399 | BD172: 227614.2 | BE172: 627304.7353 | BF172: 2115179.987 | BG172: 70505.99958 | BH172: 7050.599958 | BI172: 2276.142 | CB172: =SUM(CB161:CB171) -> 3179658.77 | CC172: 265635.6533 | CD172: 732091.8606 | CE172: 2168432.918 | CF172: 72281.09728 | CG172: 7228.109728 | CH172: 2656.356533
AI173: Routes per day | AL173: ='B1'!K28 -> 0 | AN173: =SUM(AN161:AN171) -> 45850.30603
A176: BATTERIES
D179: =D66 -> kW | E179: =E66 -> For propulsion | F179: For elecricity | G179: For propulsion with sea margin | H179: Max power for powertrain dimension | I179: For propulsion, incl losses | J179: For Electricity, incl losses | K179: Total Power | L179: C-rate | M179: losses, operation | N179: losses charging | O179: total power, operation | P179: total power, chargin losses | Q179: hours | R179: Total
A180: =A50 -> Standby in Harbour | D180: =E50 -> 280 | E180: =F50 -> 0 | F180: =G50 -> 280 | G180: =H50 -> 0 | H180: =I50 -> 0 | I180: =E180/$R$19 -> 0 | J180: =F180/$R$30 -> 336.6785757 | K180: =J180+I180 -> 336.6785757 | L180: =K180/$M$197 -> 0.005971238162 | M180: =IF(L180<=0.5,"0,95%",IF(AND(L180<=1,L180>0.5),"1,75%",IF(AND(L180<=1.5,L180>1),"2,55%",IF(AND(L180<=2,L180>1.5),"3,5%",IF(AND(L180<=2.5,L180>2),"4,3%",IF(L180>=2.5,"5,25","")))))) -> 0,95% | N180: =IF(M199<=0.5,"0,95%",IF(AND(M199<=1,M199>0.5),"1,75%",IF(AND(M199<=1.5,M199>1),"2,55%",IF(AND(M199<=2,M199>1.5),"3,5%",IF(AND(M199<=2.5,M199>2),"4,3%",IF(M199>=2.5,"5,25","")))))) -> 1,75% | O180: =K180+(K180*M180) -> 339.8770221 | P180: =O180+(O180*N180) -> 345.82487 | Q180: =D50 -> 72 | R180: =P180*Q180 -> 24899.39064
A181: =A51 -> Pulling out | D181: =E51 -> 1500 | E181: 1300 | F181: 200 | G181: 1365 | H181: 1820 | I181: =E181/$R$19 -> 1645.42161 | J181: =F181/$R$30 -> 240.4846969 | K181: =J181+I181 -> 1885.906307 | L181: =K181/$M$197 -> 0.03344791301 | M181: =IF(L181<=0.5,"0,95%",IF(AND(L181<=1,L181>0.5),"1,75%",IF(AND(L181<=1.5,L181>1),"2,55%",IF(AND(L181<=2,L181>1.5),"3,5%",IF(AND(L181<=2.5,L181>2),"4,3%",IF(L181>=2.5,"5,25","")))))) -> 0,95% | N181: =IF(M200<=0.5,"0,95%",IF(AND(M200<=1,M200>0.5),"1,75%",IF(AND(M200<=1.5,M200>1),"2,55%",IF(AND(M200<=2,M200>1.5),"3,5%",IF(AND(M200<=2.5,M200>2),"4,3%",IF(M200>=2.5,"5,25","")))))) -> 0,95% | O181: =K181+(K181*M181) -> 1903.822417 | P181: =O181+(O181*N181) -> 1921.90873 | Q181: =D51 -> 8 | R181: =P181*Q181 -> 15375.26984
A182: Transit without cargo, ECO | D182: 1500 | E182: 1100 | F182: 400 | G182: 1155 | H182: 1540 | I182: 1392.279824 | J182: 480.9693938 | K182: 1873.249218 | L182: 0.03322343038 | M182: 0,95% | N182: 0,95% | O182: 1891.045086 | P182: 1909.010014 | Q182: 150 | R182: 286351.5021
A183: Transit without cargo, FULL | D183: 2300 | E183: 2000 | F183: 300 | G183: 2100 | H183: 2800 | I183: 2531.417862 | J183: 360.7270454 | K183: 2892.144908 | L183: 0.05129428271 | M183: 0,95% | N183: 0,95% | O183: 2919.620284 | P183: 2947.356677 | Q183: 30 | R183: 88420.70031
A184: Transit with cargo, ECO | D184: 2000 | E184: 1700 | F184: 300 | G184: 1785 | H184: 2380 | I184: 2151.705183 | J184: 360.7270454 | K184: 2512.432228 | L184: 0.04455980358 | M184: 0,95% | N184: 0,95% | O184: 2536.300334 | P184: 2560.395188 | Q184: 150 | R184: 384059.2781
A185: Transit with cargo, FULL | D185: 2600 | E185: 2500 | F185: 100 | G185: 2625 | H185: 3500 | I185: 3164.272328 | J185: 120.2423485 | K185: 3284.514676 | L185: 0.05825324448 | M185: 0,95% | N185: 0,95% | O185: 3315.717566 | P185: 3347.216882 | Q185: 30 | R185: 100416.5065
A186: Approaching | D186: 2000 | E186: 1700 | F186: 300 | G186: 1785 | H186: 2380 | I186: 2151.705183 | J186: 360.7270454 | K186: 2512.432228 | L186: 0.04455980358 | M186: 0,95% | N186: 0,95% | O186: 2536.300334 | P186: 2560.395188 | Q186: 8 | R186: 20483.1615
A187: Cargo Operations | D187: 2450 | E187: 0 | F187: 2450 | G187: 0 | H187: 0 | I187: 0 | J187: 2945.937537 | K187: 2945.937537 | L187: 0.05224833392 | M187: 0,95% | N187: 0,95% | O187: 2973.923944 | P187: 3002.176221 | Q187: 200 | R187: 600435.2442
A188: Manoeuvring | D188: 2300 | E188: 1200 | F188: 1100 | G188: 1260 | H188: 1680 | I188: 1518.850717 | J188: 1322.665833 | K188: 2841.51655 | L188: 0.05039635216 | M188: 0,95% | N188: 0,95% | O188: 2868.510958 | P188: 2895.761812 | Q188: 19 | R188: 55019.47442
A189: Tankwash | D189: 1000 | E189: 300 | F189: 700 | G189: 315 | H189: 420 | I189: 379.7126793 | J189: 841.6964392 | K189: 1221.409118 | L189: 0.02166257454 | M189: 0,95% | N189: 0,95% | O189: 1233.012505 | P189: 1244.726124 | Q189: 47 | R189: 58502.12782
A190: Waiting on facility | D190: 1000 | E190: 400 | F190: 600 | G190: 420 | H190: 560 | I190: 506.2835724 | J190: 721.4540907 | K190: 1227.737663 | L190: 0.02177481585 | M190: 0,95% | N190: 0,95% | O190: 1239.401171 | P190: 1251.175482 | Q190: 10 | R190: 12511.75482
A191: Operational STBY | D191: 1000 | E191: 400 | F191: 600 | G191: 420 | H191: 560 | I191: 506.2835724 | J191: 721.4540907 | K191: 1227.737663 | L191: 0.02177481585 | M191: 0,95% | N191: 0,95% | O191: 1239.401171 | P191: 1251.175482 | Q191: 20 | R191: 25023.50964
R192: =SUM(R180:R191) -> 1671497.92
A193: DESIGN ROUTE
D194: MIN | E194: kW | F194: For electricity | G194: For electricity, with losses | H194: For propulsion | I194: For propulsion, with losses | J194: kWh in total | L194: Design lifetime | M194: =F!C44 -> 10
A195: ='B1'!H17 -> Pulling out | D195: ='B1'!K17 -> 5 | E195: =D181 -> 1500 | F195: =F181 -> 200 | G195: =F195/$R$30 -> 240.4846969 | H195: =E181 -> 1300 | I195: =H195/$R$19 -> 1645.42161 | J195: =(I195+G195)*((1/60)*D195) -> 157.1588589 | L195: cycluses | M195: =M194*365*D207 -> 4473.191489
A196: ='B1'!H18 -> Transit without cargo, ECO | D196: ='B1'!K18 -> 300 | E196: =D182 -> 1500 | F196: =F182 -> 400 | G196: =F196/$R$30 -> 480.9693938 | H196: =E182 -> 1100 | I196: =H196/$R$19 -> 1392.279824 | J196: =(I196+G196)*((1/60)*D196) -> 9366.24609 | L196: DoD | M196: =IF(M195<6000,"80%",IF(AND(M195<=9000,M195>=6000),"60%",IF(AND(M195<=14000,M195>=9000),"50%",IF(AND(M195<=22000,M195>=14000),"40%",IF(AND(M195<=41000,M195>=22000),"30%",IF(AND(M195<=95000,M195>=41000),"20%",IF(AND(M195<=160000,M195>=95000),"15%",IF(AND(M195<=360000,M195>=160000),"10%","")))))))) -> 80%
A197: ='B1'!H19 -> Transit without cargo, FULL | D197: ='B1'!K19 -> 0 | E197: 2300 | F197: 300 | G197: 360.7270454 | H197: 2000 | I197: 2531.417862 | J197: 0 | L197: Battery size | M197: =J206/M196 -> 56383.37754
A198: ='B1'!H20 -> Transit with cargo, ECO | D198: ='B1'!K20 -> 600 | E198: 2000 | F198: 300 | G198: 360.7270454 | H198: 1700 | I198: 2151.705183 | J198: 25124.32228 | L198: Charging power | M198: =M197/(F!L48/60) -> 56383.37754
A199: ='B1'!H21 -> Transit with cargo, FULL | D199: ='B1'!K21 -> 0 | E199: 2600 | F199: 100 | G199: 120.2423485 | H199: 2500 | I199: 3164.272328 | J199: 0 | L199: C - charging | M199: =M198/M197 -> 1
A200: ='B1'!H22 -> Approaching | D200: ='B1'!K22 -> 20 | E200: 2000 | F200: 300 | G200: 360.7270454 | H200: 1700 | I200: 2151.705183 | J200: 837.4774094
A201: ='B1'!H23 -> Cargo Operations | D201: ='B1'!K23 -> 120 | E201: 2450 | F201: 2450 | G201: 2945.937537 | H201: 0 | I201: 0 | J201: 5891.875074
A202: ='B1'!H24 -> Manoeuvring | D202: ='B1'!K24 -> 40 | E202: 2300 | F202: 1100 | G202: 1322.665833 | H202: 1200 | I202: 1518.850717 | J202: 1894.344367
A203: ='B1'!H25 -> Tankwash | D203: ='B1'!K25 -> 60 | E203: 1000 | F203: 700 | G203: 841.6964392 | H203: 300 | I203: 379.7126793 | J203: 1221.409118
A204: ='B1'!H26 -> Waiting on facility | D204: ='B1'!K26 -> 30 | E204: 1000 | F204: 600 | G204: 721.4540907 | H204: 400 | I204: 506.2835724 | J204: 613.8688316
A205: ='B1'!H27 -> Operational STBY | D205: ='B1'!K27 -> 0 | E205: 1000 | F205: 600 | G205: 721.4540907 | H205: 400 | I205: 506.2835724 | J205: 0
J206: =SUM(J195:J205) -> 45106.70203
A207: charge per day | D207: =F!C55 -> 1.225531915
A211: Hydrogen | L211: Hydrogen | W211: Hydrogen
L212: 39.4 | M212: kWh/kg
D214: =D179 -> kW | E214: =E179 -> For propulsion | F214: For elecricity | G214: For propulsion with sea margin | H214: Max power for powertrain dimension | I214: For propulsion, incl losses | J214: For Electricity, incl losses | K214: Total Power | L214: % | M214: thermal efficiency | N214: Energy needed | O214: kg hydrogen | P214: hours | Q214: energy | R214: mass
A215: =A85 -> Standby in Harbour | D215: =E50 -> 280 | E215: =F50 -> 0 | F215: =G50 -> 280 | G215: =H50 -> 0 | H215: =I50 -> 0 | I215: =E215/$T$19 -> 0 | J215: =F215/$T$30 -> 336.6785757 | K215: =J215+I215 -> 336.6785757 | L215: =K215/$D$230 -> 0.07582850803 | M215: =IF(L215<$F$231,$E$231,($B$236+($C$236*L215)+($D$236*(L215^2))+($E$236*(L215^3))+($F$236*(L215^4))+($G$236*(L215^5))+($H$236*(L215^6)))) -> 35 | N215: =K215/M215 -> 9.619387876 | O215: =N215/$L$212 -> 0.2441469004 | P215: =D50 -> 72 | Q215: =N215*P215 -> 692.5959271 | R215: =O215*P215 -> 17.57857683
A216: =A86 -> Pulling out | D216: =E51 -> 1500 | E216: 1300 | F216: 200 | G216: 1365 | H216: 1820 | I216: =E216/$T$19 -> 1732.022748 | J216: =F216/$T$30 -> 240.4846969 | K216: =J216+I216 -> 1972.507445 | L216: =K216/$D$230 -> 0.4442584335 | M216: =IF(L216<$F$231,$E$231,($B$236+($C$236*L216)+($D$236*(L216^2))+($E$236*(L216^3))+($F$236*(L216^4))+($G$236*(L216^5))+($H$236*(L216^6)))) -> 0.5227138047 | N216: =K216/M216 -> 3773.589729 | O216: =N216/$L$212 -> 95.77638907 | P216: =D51 -> 8 | Q216: =N216*P216 -> 30188.71783 | R216: =O216*P216 -> 766.2111125
A217: Transit without cargo, ECO | D217: 1500 | E217: 1100 | F217: 400 | G217: 1155 | H217: 1540 | I217: 1465.55771 | J217: 480.9693938 | K217: 1946.527103 | L217: 0.4384070053 | M217: 0.5233116307 | N217: 3719.632795 | O217: 94.40692372 | P217: 150 | Q217: 557944.9192 | R217: 14161.03856
A218: Transit without cargo, FULL | D218: 2300 | E218: 2000 | F218: 300 | G218: 2100 | H218: 2800 | I218: 2664.650381 | J218: 360.7270454 | K218: 3025.377427 | L218: 0.6813913123 | M218: 0.5000436494 | N218: 6050.226676 | O218: 153.5590527 | P218: 30 | Q218: 181506.8003 | R218: 4606.771581
A219: Transit with cargo, ECO | D219: 2000 | E219: 1700 | F219: 300 | G219: 1785 | H219: 2380 | I219: 2264.952824 | J219: 360.7270454 | K219: 2625.679869 | L219: 0.59136934 | M219: 0.5077536899 | N219: 5171.168465 | O219: 131.2479306 | P219: 150 | Q219: 775675.2697 | R219: 19687.18959
... 59 more rows
